{"text_format":"3","workbook":"xlsx","n_sheets":28,"sheets":["备注","_ServiceExtensions","Controllers","_MediatR","Reading","Allocation","Common","Doctor","Document","Financial","ImageAndDoc","Inspection","Institution","Management","QC","ReadingAndReport","SiteSurvey","Stat","TrialSiteUser","Visit","WorkLoad","Triggers","BusinessFilter","Helper","IRaCIS.Core.Domain","IRaCIS.Core.Infrastructure","Sheet1","Sheet2"],"not_rendered":{"defined_names":5},"read":"whole","date_system":"1900"}

{"sheet":"备注","index":0,"n_rows":3,"n_cols":1,"rows_kept":3}
["删除"]
["新增"]
["修改"]

{"sheet":"_ServiceExtensions","index":1,"n_rows":4,"n_cols":7,"rows_kept":4}
["文件夹","文件","字段名","中文","英文"]
[{"$nulls":5},{"$f":"IF(ISBLANK(C2),\"//\"&B3,\"\"\"\"&C2&\"\"\":\"\"\"&D2&\"\"\"\")","v":"//ApiResponseHandler"},{"$f":"IF(ISBLANK(C2),\"//\"&B3,\"\"\"\"&C2&\"\"\":\"\"\"&E2&\"\"\"\")","v":"//ApiResponseHandler"}]
["Authorization","ApiResponseHandler","ApiResponse_NoAccess","您无权访问该接口","You do not have access to this API",{"$f":"IF(ISBLANK(C3),\"//\"&B4,\"\"\"\"&C3&\"\"\":\"\"\"&D3&\"\"\"\")","v":"\"ApiResponse_NoAccess\":\"您无权访问该接口\""},{"$f":"IF(ISBLANK(C3),\"//\"&B4,\"\"\"\"&C3&\"\"\":\"\"\"&E3&\"\"\"\")","v":"\"ApiResponse_NoAccess\":\"You do not have access to this API\""}]
[null,"ApiResponseHandler","ApiResponse_Permission","您的权限不允许进行该操作","You do not have permission to do this",{"$f":"IF(ISBLANK(C4),\"//\"&B5,\"\"\"\"&C4&\"\"\":\"\"\"&D4&\"\"\"\")","v":"\"ApiResponse_Permission\":\"您的权限不允许进行该操作\""},{"$f":"IF(ISBLANK(C4),\"//\"&B5,\"\"\"\"&C4&\"\"\":\"\"\"&E4&\"\"\"\")","v":"\"ApiResponse_Permission\":\"You do not have permission to do this\""}]

{"sheet":"Controllers","index":2,"n_rows":23,"n_cols":7,"rows_kept":23}
["文件夹","文件","字段名","中文","英文"]
[{"$nulls":5},{"$f":"IF(ISBLANK(C2),\"//\"&B3,\"\"\"\"&C2&\"\"\":\"\"\"&D2&\"\"\"\")","v":"//FinancialChangeController"},{"$f":"IF(ISBLANK(C2),\"//\"&B3,\"\"\"\"&C2&\"\"\":\"\"\"&E2&\"\"\"\")","v":"//FinancialChangeController"}]
["Controllers","FinancialChangeController","Financial_ChargeSettled","费用已经结算，无法重置工作量","Expenses have been settled and workload can not be reset.",{"$f":"IF(ISBLANK(C3),\"//\"&B4,\"\"\"\"&C3&\"\"\":\"\"\"&D3&\"\"\"\")","v":"\"Financial_ChargeSettled\":\"费用已经结算，无法重置工作量\""},{"$f":"IF(ISBLANK(C3),\"//\"&B4,\"\"\"\"&C3&\"\"\":\"\"\"&E3&\"\"\"\")","v":"\"Financial_ChargeSettled\":\"Expenses have been settled and workload can not be reset.\""}]
["Controllers","FinancialChangeController","Financial_InvalidParameter","无效的参数。","Invalid parameter.","\"Financial_InvalidParameter\":\"无效的参数。\"","\"Financial_InvalidParameter\":\"Invalid parameter.\""]
["Controllers",{"$nulls":4},"//UploadDownLoadController","//UploadDownLoadController"]
["Controllers","UploadDownLoadController","UploadDownLoad_UnsupportedMedia","不支持的MediaType","Unsupported media type.","\"UploadDownLoad_UnsupportedMedia\":\"不支持的MediaType\"","\"UploadDownLoad_UnsupportedMedia\":\"Unsupported media type.\""]
["Controllers","UploadDownLoadController","UploadDownLoad_ArchiveInProgress","当前已有人正在上传和归档该检查!","Another user is uploading or archiving this study.","\"UploadDownLoad_ArchiveInProgress\":\"当前已有人正在上传和归档该检查!\"","\"UploadDownLoad_ArchiveInProgress\":\"Another user is uploading or archiving this study.\""]
["Controllers","UploadDownLoadController","UploadDownLoad_InvalidData","请保证上传数据符合模板文件中的样式，且存在有效数据。","Please ensure that the uploaded data conforms to the style of the template file and contains valid data.","\"UploadDownLoad_InvalidData\":\"请保证上传数据符合模板文件中的样式，且存在有效数据。\"","\"UploadDownLoad_InvalidData\":\"Please ensure that the uploaded data conforms to the style of the template file and contains valid data.\""]
["Controllers","UploadDownLoadController","UploadDownLoad_RequestError","请求异常,请重试！","Request error, please try again!","\"UploadDownLoad_RequestError\":\"请求异常,请重试！\"","\"UploadDownLoad_RequestError\":\"Request error, please try again!\""]
["Controllers","UploadDownLoadController","UploadDownLoad_SupportedFormats","支持.xlsx、.xls、.csv格式的文件上传。","Supports upload of .xlsx, .xls, and .csv formats.","\"UploadDownLoad_SupportedFormats\":\"支持.xlsx、.xls、.csv格式的文件上传。\"","\"UploadDownLoad_SupportedFormats\":\"Supports upload of .xlsx, .xls, and .csv formats.\""]
[{"$nulls":5},{"$f":"IF(ISBLANK(C11),\"//\"&B12,\"\"\"\"&C11&\"\"\":\"\"\"&D11&\"\"\"\")","v":"//"}]
[{"$nulls":5},"//"]
[{"$nulls":5},"//"]
[{"$nulls":5},"//"]
[{"$nulls":5},"//"]
[{"$nulls":5},"//"]
[{"$nulls":5},"//"]
[{"$nulls":5},"//"]
[{"$nulls":5},"//"]
[{"$nulls":5},"//"]
[{"$nulls":5},"//"]
[{"$nulls":5},"//"]
[{"$nulls":5},"//"]

{"sheet":"_MediatR","index":3,"n_rows":18,"n_cols":7,"rows_kept":18}
["文件夹","文件","字段名","中文","英文"]
[{"$nulls":5},{"$f":"IF(ISBLANK(C2),\"//\"&B3,\"\"\"\"&C2&\"\"\":\"\"\"&D2&\"\"\"\")","v":"//ConsistencyVerificationRequest"},{"$f":"IF(ISBLANK(C2),\"//\"&B3,\"\"\"\"&C2&\"\"\":\"\"\"&E2&\"\"\"\")","v":"//ConsistencyVerificationRequest"}]
["CommandAndQueries","ConsistencyVerificationRequest","ConsistencyVerification_Tech","检查技术","Study Type",{"$f":"IF(ISBLANK(C3),\"//\"&B4,\"\"\"\"&C3&\"\"\":\"\"\"&D3&\"\"\"\")","v":"\"ConsistencyVerification_Tech\":\"检查技术\""},{"$f":"IF(ISBLANK(C3),\"//\"&B4,\"\"\"\"&C3&\"\"\":\"\"\"&E3&\"\"\"\")","v":"\"ConsistencyVerification_Tech\":\"Study Type\""}]
[null,"ConsistencyVerificationRequest","ConsistencyVerification_Time","时间格式不对","Incorrect time format","\"ConsistencyVerification_Time\":\"时间格式不对\"","\"ConsistencyVerification_Time\":\"Incorrect time format\""]
[{"$nulls":5},"//ConsistencyVerificationHandler","//ConsistencyVerificationHandler"]
["Handlers","ConsistencyVerificationHandler","ConsistencyVerification_Img","您好,根据本系统自动识别，该受试者当前访视在IRC系统中已提交的影像检查情况如下：","Hello, according to the automatic recognition of this system, the imaging study submitted by the subject in the current visit in the IRC system is as follows:","\"ConsistencyVerification_Img\":\"您好,根据本系统自动识别，该受试者当前访视在IRC系统中已提交的影像检查情况如下：\"","\"ConsistencyVerification_Img\":\"Hello, according to the automatic recognition of this system, the imaging study submitted by the subject in the current visit in the IRC system is as follows:\""]
[null,"ConsistencyVerificationHandler","ConsistencyVerification_Of","的","Of","\"ConsistencyVerification_Of\":\"的\"","\"ConsistencyVerification_Of\":\"Of\""]
[null,"ConsistencyVerificationHandler","ConsistencyVerification_ImgC","影像检查","Imaging study","\"ConsistencyVerification_ImgC\":\"影像检查\"","\"ConsistencyVerification_ImgC\":\"Imaging study\""]
[null,"ConsistencyVerificationHandler","ConsistencyVerification_EDCA","核对EDC数据，完全一致, 审核通过","Check EDC data, completely consistent, approved","\"ConsistencyVerification_EDCA\":\"核对EDC数据，完全一致, 审核通过\"","\"ConsistencyVerification_EDCA\":\"Check EDC data, completely consistent, approved\""]
[null,"ConsistencyVerificationHandler","ConsistencyVerification_EDCB","核对EDC数据，完全一致","Check EDC data, completely consistent","\"ConsistencyVerification_EDCB\":\"核对EDC数据，完全一致\"","\"ConsistencyVerification_EDCB\":\"Check EDC data, completely consistent\""]
[null,"ConsistencyVerificationHandler","ConsistencyVerification_Auto","自动核查通过","Automatically verified pass","\"ConsistencyVerification_Auto\":\"自动核查通过\"","\"ConsistencyVerification_Auto\":\"Automatically verified pass\""]
[null,"ConsistencyVerificationHandler","ConsistencyVerification_Prob","存在问题如下：","The following problems exist:","\"ConsistencyVerification_Prob\":\"存在问题如下：\"","\"ConsistencyVerification_Prob\":\"The following problems exist:\""]
[null,"ConsistencyVerificationHandler","ConsistencyVerification_EdcL","影像检查(EDC 缺少)","Image study (EDC missing)","\"ConsistencyVerification_EdcL\":\"影像检查(EDC 缺少)\"","\"ConsistencyVerification_EdcL\":\"Image study (EDC missing)\""]
[null,"ConsistencyVerificationHandler","ConsistencyVerification_IrcL","影像检查(IRC 缺少)","Image study (IRC missing)","\"ConsistencyVerification_IrcL\":\"影像检查(IRC 缺少)\"","\"ConsistencyVerification_IrcL\":\"Image study (IRC missing)\""]
[null,"ConsistencyVerificationHandler","ConsistencyVerification_Desc","说明：为高效解决/处理以上全部质疑问题，麻烦您准确核实实际影像检查情况。请注意影像日期与实际检查的日期可能会不一致，部分检查（如PET -CT)可能同时存在多种模态影像。准确核实后，请回复该访视正确的影像检查情况。","Description: In order to efficiently solve all the above doubts, please verify the actual image study accurately. Please note that the image date may not be consistent with the actual study date, and multiple modalities of image studys (such as PET-CT) may exist at the same time. After accurate verification, please reply with the correct image study for this visit.","\"ConsistencyVerification_Desc\":\"说明：为高效解决/处理以上全部质疑问题，麻烦您准确核实实际影像检查情况。请注意影像日期与实际检查的日期可能会不一致，部分检查（如PET -CT)可能同时存在多种模态影像。准确核实后，请回复该访视正确的影像检查情况。\"","\"ConsistencyVerification_Desc\":\"Description: In order to efficiently solve all the above doubts, please verify the actual image study accurately. Please note that the image date may not be consistent with the actual study date, and multiple modalities of image studys (such as PET-CT) may exist at the same time. After accurate verification, please reply with the correct image study for this visit.\""]
[null,"ConsistencyVerificationHandler","ConsistencyVerification_Conf","根据导入的一致性核查数据，请确认本访视以下不一致检查项信息：","According to the imported consistency check data, please confirm the following inconsistent inspection item information of this visit:","\"ConsistencyVerification_Conf\":\"根据导入的一致性核查数据，请确认本访视以下不一致检查项信息：\"","\"ConsistencyVerification_Conf\":\"According to the imported consistency check data, please confirm the following inconsistent inspection item information of this visit:\""]
[null,"ConsistencyVerificationHandler","ConsistencyVerification_Edc","EDC 缺少：","EDC is lack of:","\"ConsistencyVerification_Edc\":\"EDC 缺少：\"","\"ConsistencyVerification_Edc\":\"EDC is lack of:\""]
[null,"ConsistencyVerificationHandler","ConsistencyVerification_IrcLi","IRC 缺少:","IRC is lack of:","\"ConsistencyVerification_IrcLi\":\"IRC 缺少:\"","\"ConsistencyVerification_IrcLi\":\"IRC is lack of:\""]

{"sheet":"Reading","index":4,"n_rows":93,"n_cols":8,"rows_kept":93}
["外层文件夹","文件夹","文件","字段名","中文","英文"]
[{"$nulls":6},{"$f":"IF(ISBLANK(D2),\"//\"&C3,\"\"\"\"&D2&\"\"\":\"\"\"&E2&\"\"\"\")","v":"//ClinicalDataSetService"},{"$f":"IF(ISBLANK(D2),\"//\"&C3,\"\"\"\"&D2&\"\"\":\"\"\"&F2&\"\"\"\")","v":"//ClinicalDataSetService"}]
[null,"ClinicalData","ClinicalDataSetService","ClinicalDataSet_DupTypeFail","存在同类型的临床数据,操作失败","The same type of clinical data exists. The operation failed.",{"$f":"IF(ISBLANK(D3),\"//\"&C4,\"\"\"\"&D3&\"\"\":\"\"\"&E3&\"\"\"\")","v":"\"ClinicalDataSet_DupTypeFail\":\"存在同类型的临床数据,操作失败\""},{"$f":"IF(ISBLANK(D3),\"//\"&C4,\"\"\"\"&D3&\"\"\":\"\"\"&F3&\"\"\"\")","v":"\"ClinicalDataSet_DupTypeFail\":\"The same type of clinical data exists. The operation failed.\""}]
[{"$nulls":6},"//ReadingClinicalDataService","//ReadingClinicalDataService"]
[null,null,"ReadingClinicalDataService","ReadingClinicalData_DupTypeFail","存在同类型的临床数据,操作失败","The same type of clinical data exists. The operation failed.","\"ReadingClinicalData_DupTypeFail\":\"存在同类型的临床数据,操作失败\"","\"ReadingClinicalData_DupTypeFail\":\"The same type of clinical data exists. The operation failed.\""]
[null,null,"ReadingClinicalDataService","ReadingClinicalData_Unchecked","当前临床数据状态不是已核查状态，不允许签名！","The current clinical data status is not verified and signing is not allowed!","\"ReadingClinicalData_Unchecked\":\"当前临床数据状态不是已核查状态，不允许签名！\"","\"ReadingClinicalData_Unchecked\":\"The current clinical data status is not verified and signing is not allowed!\""]
[{"$nulls":6},"//ReadingGlobalTaskService","//ReadingGlobalTaskService"]
["Reading","ReadingImageTask","ReadingGlobalTaskService","ReadingGlobal_NotGlobal","系统调用错误，当前任务不是全局阅片任务。","System call error. The current read is not a global review read.","\"ReadingGlobal_NotGlobal\":\"系统调用错误，当前任务不是全局阅片任务。\"","\"ReadingGlobal_NotGlobal\":\"System call error. The current read is not a global review read.\""]
[{"$nulls":6},"//ReadingImageTaskService","//ReadingImageTaskService"]
[null,"ReadingImageTask","ReadingImageTaskService","ReadingImage_NotVisit","系统调用错误，当前任务不是访视任务。","System call error. The current read is not a timepoint read.","\"ReadingImage_NotVisit\":\"系统调用错误，当前任务不是访视任务。\"","\"ReadingImage_NotVisit\":\"System call error. The current read is not a timepoint read.\""]
[null,"ReadingImageTask","ReadingImageTaskService","ReadingImage_CantSplit","当前任务是基线任务,不能执行分裂病灶的操作。","The current read is a baseline read, and lesion split is not allowed.","\"ReadingImage_CantSplit\":\"当前任务是基线任务,不能执行分裂病灶的操作。\"","\"ReadingImage_CantSplit\":\"The current read is a baseline read, and lesion split is not allowed.\""]
[null,"ReadingImageTask","ReadingImageTaskService","ReadingImage_BeSigned","当前任务已经签名，请勿重复提交。","The current read has already been signed. Please do not submit it again.","\"ReadingImage_BeSigned\":\"当前任务已经签名，请勿重复提交。\"","\"ReadingImage_BeSigned\":\"The current read has already been signed. Please do not submit it again.\""]
[null,"ReadingImageTask","ReadingImageTaskService","ReadingImage_Beinvalid","当前任务已失效，不能执行阅片。","The current read has already been invalidated, and reading is not allowed anymore.","\"ReadingImage_Beinvalid\":\"当前任务已失效，不能执行阅片。\"","\"ReadingImage_Beinvalid\":\"The current read has already been invalidated, and reading is not allowed anymore.\""]
[null,"ReadingImageTask","ReadingImageTaskService","ReadingImage_PresenceReview","当前受试者存在重阅申请还未处理,不允许操作","The current subject has a re-read request that has not been processed and is not allowed to operate","\"ReadingImage_PresenceReview\":\"当前受试者存在重阅申请还未处理,不允许操作\"","\"ReadingImage_PresenceReview\":\"The current subject has a re-read request that has not been processed and is not allowed to operate\""]
["Reading","ReadingImageTask","ReadingImageTaskService","ReadingImage_NotaTask","合并的病灶并非同一个访视任务","The coalesced lesions are not from the same timepoint.","\"ReadingImage_NotaTask\":\"合并的病灶并非同一个访视任务\"","\"ReadingImage_NotaTask\":\"The coalesced lesions are not from the same timepoint.\""]
["Reading","ReadingImageTask","ReadingImageTaskService","ReadingImage_DeleteError","当前病灶分裂出其他病灶或者其他病灶合并到了当前病灶,删除失败。","Other lesions have split from or coalesced into the current lesion. Deletion failed.","\"ReadingImage_DeleteError\":\"当前病灶分裂出其他病灶或者其他病灶合并到了当前病灶,删除失败。\"","\"ReadingImage_DeleteError\":\"Other lesions have split from or coalesced into the current lesion. Deletion failed.\""]
["Reading","ReadingImageTask","ReadingImageTaskService","ReadingImage_Idnotcorrespond","病灶标记添加失败，影像的Instance ID和Series ID不对应。","Failed to add the lesion mark. The Instance ID and Series ID of the image do not match.","\"ReadingImage_Idnotcorrespond\":\"病灶标记添加失败，影像的Instance ID和Series ID不对应。\"","\"ReadingImage_Idnotcorrespond\":\"Failed to add the lesion mark. The Instance ID and Series ID of the image do not match.\""]
["Reading","ReadingImageTask","ReadingImageTaskService","ReadingImage_IsLymphNotbigger","当前访视该淋巴结非靶病灶的短径小于上一访视的值，不能设置为显著增大。","The short diameter of this nodal non-target lesion on the current visit is smaller than the value on the previous visit, and the state cannot be set to 'Unequivocal progression'.","\"ReadingImage_IsLymphNotbigger\":\"当前访视该淋巴结非靶病灶的短径小于上一访视的值，不能设置为显著增大。\"","\"ReadingImage_IsLymphNotbigger\":\"The short diameter of this nodal non-target lesion on the current visit is smaller than the value on the previous visit, and the state cannot be set to 'Unequivocal progression'.\""]
["Reading","ReadingImageTask","ReadingImageTaskService","ReadingImage_NotLymphNotbigger","当前访视该非淋巴结非靶病灶的长径小于上一访视的值，不能设置为显著增大。","The long diameter of this non-nodal non-target lesion on the current visit is smaller than the value on the previous visit, and the state cannot be set to 'Unequivocal progression'.","\"ReadingImage_NotLymphNotbigger\":\"当前访视该非淋巴结非靶病灶的长径小于上一访视的值，不能设置为显著增大。\"","\"ReadingImage_NotLymphNotbigger\":\"The long diameter of this non-nodal non-target lesion on the current visit is smaller than the value on the previous visit, and the state cannot be set to 'Unequivocal progression'.\""]
["Reading","ReadingImageTask","ReadingImageTaskService","ReadingImage_Twice","系统调用错误，提交的问题及答案重复。","System call error. Questions & answers submitted are duplicated.","\"ReadingImage_Twice\":\"系统调用错误，提交的问题及答案重复。\"","\"ReadingImage_Twice\":\"System call error. Questions & answers submitted are duplicated.\""]
["Reading","ReadingImageTask","ReadingImageTaskService","ReadingImage_MaxQuestion","按照《独立影像评估章程》的相关规则，当前{0}的病灶数量不能超过{1}个。","According to the imaging charter, the number of {0} cannot exceed {1}.","\"ReadingImage_MaxQuestion\":\"按照《独立影像评估章程》的相关规则，当前{0}的病灶数量不能超过{1}个。\"","\"ReadingImage_MaxQuestion\":\"According to the imaging charter, the number of {0} cannot exceed {1}.\""]
["Reading","ReadingImageTask","ReadingImageTaskService","ReadingImage_Maxlesion","按照《独立影像评估章程》的相关规则，同一器官的靶病灶数量不能超过{0}个，请确认","According to the imaging charter, the number of target lesions in the same organ cannot exceed {0}. Please confirm.","\"ReadingImage_Maxlesion\":\"按照《独立影像评估章程》的相关规则，同一器官的靶病灶数量不能超过{0}个，请确认\"","\"ReadingImage_Maxlesion\":\"According to the imaging charter, the number of target lesions in the same organ cannot exceed {0}. Please confirm.\""]
["Reading","ReadingImageTask","ReadingImageTaskService","ReadingImage_Maximum","{0}的重复次数限制为{1},目前已重复{2}次。","{0} can only be repeated {1} times, and it has been repeated {2} times so far.","\"ReadingImage_Maximum\":\"{0}的重复次数限制为{1},目前已重复{2}次。\"","\"ReadingImage_Maximum\":\"{0} can only be repeated {1} times, and it has been repeated {2} times so far.\""]
["Reading","ReadingImageTask","ReadingImageTaskService","ReadingImage_PCWGMaximum","按照《独立影像评估章程》的相关规则，同一部位的基线病灶只需录入{0}次，请确认。","According to the imaging charter, the number of baseline lesions at the same location should enter only {0} time. Please confirm.","\"ReadingImage_PCWGMaximum\":\"按照《独立影像评估章程》的相关规则，同一部位的基线病灶只需录入{0}次，请确认。\"","\"ReadingImage_PCWGMaximum\":\"According to the imaging charter, the number of baseline lesions at the same location should enter only {0} time. Please confirm.\""]
[null,"ReadingImageTask","ReadingImageTaskService","ReadingImage_NotNewFocus","转换后的任务不应该存在新病灶","There should be no new lesions in the converted task","\"ReadingImage_NotNewFocus\":\"转换后的任务不应该存在新病灶\"","\"ReadingImage_NotNewFocus\":\"There should be no new lesions in the converted task\""]
["Reading","ReadingImageTask","ReadingImageTaskService","ReadingImage_RequiredQuestion","提交前，请完成{0}","Before submission, please fill in {0}.","\"ReadingImage_RequiredQuestion\":\"提交前，请完成{0}\"","\"ReadingImage_RequiredQuestion\":\"Before submission, please fill in {0}.\""]
["Reading","ReadingImageTask","ReadingImageTaskService","ReadingImage_ClinicalRead","临床数据未阅读，请确认！","The clinical data has not been read. Please confirm!","\"ReadingImage_ClinicalRead\":\"临床数据未阅读，请确认！\"","\"ReadingImage_ClinicalRead\":\"The clinical data has not been read. Please confirm!\""]
["Reading","ReadingImageTask","ReadingImageTaskService","ReadingImage_IDMust","系统调用失败，当没有任务ID的时候，标准ID必传。","System call failed. When there is no Read ID, the standard ID must be passed.","\"ReadingImage_IDMust\":\"系统调用失败，当没有任务ID的时候，标准ID必传。\"","\"ReadingImage_IDMust\":\"System call failed. When there is no Read ID, the standard ID must be passed.\""]
["Reading","ReadingImageTask","ReadingImageTaskService","ReadingImage_TaskFinish","当前受试者所有阅片任务已完成，请知悉。","Please note that all reads of the current subject have been completed.","\"ReadingImage_TaskFinish\":\"当前受试者所有阅片任务已完成，请知悉。\"","\"ReadingImage_TaskFinish\":\"Please note that all reads of the current subject have been completed.\""]
["Reading","ReadingImageTask","ReadingImageTaskService","ReadingImage_NeedRest","您已连续阅片{0}个小时，请休息{1}分钟后，再继续阅片。","You have been continuously reading for {0} hours. Please take a break of {1} minutes before resumption.","\"ReadingImage_NeedRest\":\"您已连续阅片{0}个小时，请休息{1}分钟后，再继续阅片。\"","\"ReadingImage_NeedRest\":\"You have been continuously reading for {0} hours. Please take a break of {1} minutes before resumption.\""]
[{"$nulls":6},"//ReadingJudgeTaskService","//ReadingJudgeTaskService"]
["Reading","ReadingImageTask","ReadingJudgeTaskService","ReadingJudge_SouceIdNull","系统调用失败，当前裁判的全局任务的SouceId为null。","System call failed. The Source ID of the global review which is being adjudicated currently is 'null'.","\"ReadingJudge_SouceIdNull\":\"系统调用失败，当前裁判的全局任务的SouceId为null。\"","\"ReadingJudge_SouceIdNull\":\"System call failed. The Source ID of the global review which is being adjudicated currently is 'null'.\""]
[{"$nulls":6},"//ReadingOncologyTaskService","//ReadingOncologyTaskService"]
["Reading","ReadingImageTask","ReadingOncologyTaskService","ReadingOncology_TaskError","系统调用错误，当前任务不是肿瘤学任务。","System call error. The current read is not an oncology read.","\"ReadingOncology_TaskError\":\"系统调用错误，当前任务不是肿瘤学任务。\"","\"ReadingOncology_TaskError\":\"System call error. The current read is not an oncology read.\""]
["Reading","ReadingImageTask","ReadingOncologyTaskService","ReadingOncology_Abnormal","系统调用异常，裁判结果为null。","System call exception. The result of adjudication is null",{"$f":"IF(ISBLANK(D35),\"//\"&C36,\"\"\"\"&D35&\"\"\":\"\"\"&E35&\"\"\"\")","v":"\"ReadingOncology_Abnormal\":\"系统调用异常，裁判结果为null。\""},{"$f":"IF(ISBLANK(D35),\"//\"&C36,\"\"\"\"&D35&\"\"\":\"\"\"&F35&\"\"\"\")","v":"\"ReadingOncology_Abnormal\":\"System call exception. The result of adjudication is null\""}]
[{"$nulls":6},"//ReadingCalculate","//ReadingCalculate"]
["Reading","ReadingCalculate","ReadingCalculate","ReadingCalculate_Abnormal","PCWG3标准配置错误，数据验证失败。","Configuration error of PCWG3 criteria. Data verification failed.","\"ReadingCalculate_Abnormal\":\"PCWG3标准配置错误，数据验证失败。\"","\"ReadingCalculate_Abnormal\":\"Configuration error of PCWG3 criteria. Data verification failed.\""]
["Reading","ReadingCalculate","ReadingCalculate","ReadingCalculate_questionable","病灶存在以下问题：","Problems with the lesions are as follows:","\"ReadingCalculate_questionable\":\"病灶存在以下问题：\"","\"ReadingCalculate_questionable\":\"Problems with the lesions are as follows:\""]
["Reading","ReadingCalculate","ReadingCalculate","ReadingCalculate_NoMarker","病灶{0}缺少标记","Lesion {0} lacks mark.","\"ReadingCalculate_NoMarker\":\"病灶{0}缺少标记\"","\"ReadingCalculate_NoMarker\":\"Lesion {0} lacks mark.\""]
["Reading","ReadingCalculate","ReadingCalculate","ReadingCalculate_StatusIsEmpty","病灶{0}状态为空","The state of Lesion {0} is empty.","\"ReadingCalculate_StatusIsEmpty\":\"病灶{0}状态为空\"","\"ReadingCalculate_StatusIsEmpty\":\"The state of Lesion {0} is empty.\""]
["Reading","ReadingCalculate","ReadingCalculate","ReadingCalculate_NoMarkerEmpty","病灶{0}未做标记，且状态为空","Lesion {0} is not marked, and its state is empty.","\"ReadingCalculate_NoMarkerEmpty\":\"病灶{0}未做标记，且状态为空\"","\"ReadingCalculate_NoMarkerEmpty\":\"Lesion {0} is not marked, and its state is empty.\""]
["Reading","ReadingCalculate","ReadingCalculate","ReadingCalculate_NoDeveloped","当前标准自动计算未完成开发，请知悉。","Please note that the current standard automatic calculation has not been developed.","\"ReadingCalculate_NoDeveloped\":\"当前标准自动计算未完成开发，请知悉。\"","\"ReadingCalculate_NoDeveloped\":\"Please note that the current standard automatic calculation has not been developed.\""]
[{"$nulls":6},"//ReadingMedicalReviewService","//ReadingMedicalReviewService"]
["Reading","MedicalAudit","ReadingMedicalReviewService","MedicalReview_invalid","该医学审核任务已失效,操作失败。","This medical review read has already been invalidated, and the operation failed.","\"MedicalReview_invalid\":\"该医学审核任务已失效,操作失败。\"","\"MedicalReview_invalid\":\"This medical review read has already been invalidated, and the operation failed.\""]
["Reading","MedicalAudit","ReadingMedicalReviewService","MedicalReview_SaveQuestion","无法执行当前操作，请先保存医学审核问题。","Unable to perform the current operation. Please save the medical review questions first.","\"MedicalReview_SaveQuestion\":\"无法执行当前操作，请先保存医学审核问题。\"","\"MedicalReview_SaveQuestion\":\"Unable to perform the current operation. Please save the medical review questions first.\""]
["Reading","MedicalAudit","ReadingMedicalReviewService","MedicalReview_NeedSave","无法执行当前操作，请先保存医学审核问题和结论。","Unable to perform the current operation. Please save the medical review questions and conclusions first.","\"MedicalReview_NeedSave\":\"无法执行当前操作，请先保存医学审核问题和结论。\"","\"MedicalReview_NeedSave\":\"Unable to perform the current operation. Please save the medical review questions and conclusions first.\""]
["Reading","MedicalAudit","ReadingMedicalReviewService","MedicalReview_NotClosed","无法执行当前操作，当前医学质询对话未关闭。","Unable to perform the current operation. The current medical query conversation has not been closed.","\"MedicalReview_NotClosed\":\"无法执行当前操作，当前医学质询对话未关闭。\"","\"MedicalReview_NotClosed\":\"Unable to perform the current operation. The current medical query conversation has not been closed.\""]
["Reading","MedicalAudit","ReadingMedicalReviewService","MedicalReview_Finish","当前医学审核任务为最后一个任务。","The current medical review is the last one.","\"MedicalReview_Finish\":\"当前医学审核任务为最后一个任务。\"","\"MedicalReview_Finish\":\"The current medical review is the last one.\""]
[{"$nulls":6},"//ReadingMedicineQuestionService","//ReadingMedicineQuestionService"]
["Reading","MedicalAudit","ReadingMedicineQuestionService","ReadingMed_QNumDup","当前问题序号存在重复","Current question number is repeated","\"ReadingMed_QNumDup\":\"当前问题序号存在重复\"","\"ReadingMed_QNumDup\":\"Current question number is repeated\""]
["Reading","MedicalAudit","ReadingMedicineQuestionService","ReadingMed_HasSubQ","此问题存在子问题,请先删除子问题","This question has sub-question, please delete it first","\"ReadingMed_HasSubQ\":\"此问题存在子问题,请先删除子问题\"","\"ReadingMed_HasSubQ\":\"This question has sub-question, please delete it first\""]
["Reading","MedicalAudit","ReadingMedicineQuestionService","ReadingMed_NoMedQ","当前未添加医学审核问题。请先添加医学审核问题，再进行确认。","Medical review question has not been added yet. Please add it first before confirming","\"ReadingMed_NoMedQ\":\"当前未添加医学审核问题。请先添加医学审核问题，再进行确认。\"","\"ReadingMed_NoMedQ\":\"Medical review question has not been added yet. Please add it first before confirming\""]
["Reading","MedicalAudit","ReadingMedicineQuestionService","ReadingMed_MedQNumDup","影像医学审核问题显示序号不能重复。","The display number of the medical imaging review question cannot be duplicated.","\"ReadingMed_MedQNumDup\":\"影像医学审核问题显示序号不能重复。\"","\"ReadingMed_MedQNumDup\":\"The display number of the medical imaging review question cannot be duplicated.\""]
["Reading","MedicalAudit","ReadingMedicineQuestionService","ReadingMed_ParentNumSmall","父问题的显示序号要比子问题的显示序号小，请确认。","The display number of the parent question should be smaller than that of the child question, please confirm.",{"$f":"IF(ISBLANK(D54),\"//\"&C56,\"\"\"\"&D54&\"\"\":\"\"\"&E54&\"\"\"\")","v":"\"ReadingMed_ParentNumSmall\":\"父问题的显示序号要比子问题的显示序号小，请确认。\""},{"$f":"IF(ISBLANK(D54),\"//\"&C56,\"\"\"\"&D54&\"\"\":\"\"\"&F54&\"\"\"\")","v":"\"ReadingMed_ParentNumSmall\":\"The display number of the parent question should be smaller than that of the child question, please confirm.\""}]
["Reading","MedicalAudit","ReadingMedicineQuestionService","ReadingMed_VisitQNotConfig","当前标准未配置访视医学审核问题。","This review criteria has no medical review questions for 'visit'",{"$f":"IF(ISBLANK(D55),\"//\"&C57,\"\"\"\"&D55&\"\"\":\"\"\"&E55&\"\"\"\")","v":"\"ReadingMed_VisitQNotConfig\":\"当前标准未配置访视医学审核问题。\""},{"$f":"IF(ISBLANK(D55),\"//\"&C57,\"\"\"\"&D55&\"\"\":\"\"\"&F55&\"\"\"\")","v":"\"ReadingMed_VisitQNotConfig\":\"This review criteria has no medical review questions for 'visit'\""}]
["Reading","MedicalAudit","ReadingMedicineQuestionService","ReadingMed_GlobalQNotConfig","当前标准启用了全局阅片,但未配置全局医学审核问题","The global review read is enabled in the current criterion, but has not configured with medical review questions",{"$f":"IF(ISBLANK(D56),\"//\"&C57,\"\"\"\"&D56&\"\"\":\"\"\"&E56&\"\"\"\")","v":"\"ReadingMed_GlobalQNotConfig\":\"当前标准启用了全局阅片,但未配置全局医学审核问题\""},{"$f":"IF(ISBLANK(D56),\"//\"&C57,\"\"\"\"&D56&\"\"\":\"\"\"&F56&\"\"\"\")","v":"\"ReadingMed_GlobalQNotConfig\":\"The global review read is enabled in the current criterion, but has not configured with medical review questions\""}]
[null,"MedicalAudit","ReadingMedicineQuestionService","ReadingMed_ArbitrateQNotConfig","当前标准启用了仲裁阅片,但未配置仲裁医学审核问题","Adjudication review reading is enabled in the current criterion, but has not configured with medical review questions","\"ReadingMed_ArbitrateQNotConfig\":\"当前标准启用了仲裁阅片,但未配置仲裁医学审核问题\"","\"ReadingMed_ArbitrateQNotConfig\":\"Adjudication review reading is enabled in the current criterion, but has not configured with medical review questions\""]
[null,"MedicalAudit","ReadingMedicineQuestionService","ReadingMed_TumorQNotConfig","当前标准启用了肿瘤学阅片,但未配置肿瘤学医学审核问题","Oncology reading is enabled in the current criterion, but the oncology medical review question has not been configured","\"ReadingMed_TumorQNotConfig\":\"当前标准启用了肿瘤学阅片,但未配置肿瘤学医学审核问题\"","\"ReadingMed_TumorQNotConfig\":\"Oncology reading is enabled in the current criterion, but the oncology medical review question has not been configured\""]
["Reading",{"$nulls":5},"//UserService","//UserService"]
["Reading","Management","UserService","User_CheckNameOrPw","请检查用户名或者密码。","Please check the username or password.","\"User_CheckNameOrPw\":\"请检查用户名或者密码。\"","\"User_CheckNameOrPw\":\"Please check the username or password.\""]
["Reading",{"$nulls":5},"//Repository","//Repository"]
["Reading","Repository","Repository","Repository_UpdateError","修改的数据在数据库不存在。","Updated data does not exist in the database. ","\"Repository_UpdateError\":\"修改的数据在数据库不存在。\"","\"Repository_UpdateError\":\"Updated data does not exist in the database. \""]
["Reading","Repository","Repository","Repository_DeleteError","删除的数据在数据库不存在。","Deleted data does not exist in the database.","\"Repository_DeleteError\":\"删除的数据在数据库不存在。\"","\"Repository_DeleteError\":\"Deleted data does not exist in the database.\""]
["Reading",{"$nulls":5},"//OrganInfoService","//OrganInfoService"]
["Reading","ReadingCriterion","OrganInfoService","OrganInfo_DuplicateData","存在相同的数据,操作失败","There are duplicate data, operation failed.","\"OrganInfo_DuplicateData\":\"存在相同的数据,操作失败\"","\"OrganInfo_DuplicateData\":\"There are duplicate data, operation failed.\""]
["Reading","ReadingCriterion",{"$nulls":4},"//ReadingCriterionService","//ReadingCriterionService"]
["Reading","ReadingCriterion","ReadingCriterionService","ReadingCriterion_Referenced","当前标准被引用过了，不可以删除","The current criterion has been referenced and cannot be deleted.","\"ReadingCriterion_Referenced\":\"当前标准被引用过了，不可以删除\"","\"ReadingCriterion_Referenced\":\"The current criterion has been referenced and cannot be deleted.\""]
["Reading","ReadingCriterion","ReadingCriterionService","ReadingCriterion_InUse","此标准在项目里面已被使用,操作失败","This criterion has been used in the project and cannot be deleted.",{"$f":"IF(ISBLANK(D68),\"//\"&C69,\"\"\"\"&D68&\"\"\":\"\"\"&E68&\"\"\"\")","v":"\"ReadingCriterion_InUse\":\"此标准在项目里面已被使用,操作失败\""},{"$f":"IF(ISBLANK(D68),\"//\"&C69,\"\"\"\"&D68&\"\"\":\"\"\"&F68&\"\"\"\")","v":"\"ReadingCriterion_InUse\":\"This criterion has been used in the project and cannot be deleted.\""}]
["Reading","ReadingCriterion","ReadingCriterionService","ReadingCriterion_ArbitratorWithoutJudgment","无裁判问题却有仲裁对象,操作失败","There is no referee problem but there is an arbitration object, operation failed.","\"ReadingCriterion_ArbitratorWithoutJudgment\":\"无裁判问题却有仲裁对象,操作失败\"","\"ReadingCriterion_ArbitratorWithoutJudgment\":\"There is no referee problem but there is an arbitration object, operation failed.\""]
["Reading","ReadingCriterion",{"$nulls":4},"//ReadingQuestionService","//ReadingQuestionService"]
["Reading","ReadingCriterion","ReadingQuestionService","ReadingQuestion_IdDup","问题编号重复","Duplicate problem ID.","\"ReadingQuestion_IdDup\":\"问题编号重复\"","\"ReadingQuestion_IdDup\":\"Duplicate problem ID.\""]
["Reading","ReadingCriterion","ReadingQuestionService","ReadingQuestion_ChildrenExist","此问题存在子问题,请先删除子问题","This problem has sub-problems, please delete the sub-problems first.","\"ReadingQuestion_ChildrenExist\":\"此问题存在子问题,请先删除子问题\"","\"ReadingQuestion_ChildrenExist\":\"This problem has sub-problems, please delete the sub-problems first.\""]
["Reading","ReadingCriterion","ReadingQuestionService","ReadingQuestion_GroupReferenced","此分组已被引用,请先删除被引用的问题","This grouping has been referenced, please delete the referenced problems first.","\"ReadingQuestion_GroupReferenced\":\"此分组已被引用,请先删除被引用的问题\"","\"ReadingQuestion_GroupReferenced\":\"This grouping has been referenced, please delete the referenced problems first.\""]
["Reading","ReadingCriterion","ReadingQuestionService","ReadingQuestion_JudgmentSet","当前问题已经设置了裁判标准了,修改失败","The current question already has a referee criterion set, modification failed.","\"ReadingQuestion_JudgmentSet\":\"当前问题已经设置了裁判标准了,修改失败\"","\"ReadingQuestion_JudgmentSet\":\"The current question already has a referee criterion set, modification failed.\""]
["Reading","ReadingCriterion","ReadingQuestionService","ReadingQuestion_ExcludeWithDependency","显示依赖父问题和必填依赖的问题为同一个,但答案互斥,操作失败","The displayed dependent parent question and the required dependent question are the same, but the answers are mutually exclusive, operation failed.","\"ReadingQuestion_ExcludeWithDependency\":\"显示依赖父问题和必填依赖的问题为同一个,但答案互斥,操作失败\"","\"ReadingQuestion_ExcludeWithDependency\":\"The displayed dependent parent question and the required dependent question are the same, but the answers are mutually exclusive, operation failed.\""]
["Reading","ReadingCriterion","ReadingQuestionService","ReadingQuestion_CircularDependency","计算依赖循环了！","Calculation dependency has looped!","\"ReadingQuestion_CircularDependency\":\"计算依赖循环了！\"","\"ReadingQuestion_CircularDependency\":\"Calculation dependency has looped!\""]
["Reading",{"$nulls":5},"//ReadingPeriodSetService","//ReadingPeriodSetService"]
["Reading","ReadingPeriod","ReadingPeriodSetService","ReadingPeriodSet_NameDup","阅片期名称重复,操作失败","Review period name duplicate, operation failed","\"ReadingPeriodSet_NameDup\":\"阅片期名称重复,操作失败\"","\"ReadingPeriodSet_NameDup\":\"Review period name duplicate, operation failed\""]
["Reading","ReadingPeriod","ReadingPeriodSetService","ReadingPeriodSet_Global","阅片期名称不能为Global","Review period name cannot be Global","\"ReadingPeriodSet_Global\":\"阅片期名称不能为Global\"","\"ReadingPeriodSet_Global\":\"Review period name cannot be Global\""]
["Reading","ReadingPeriod","ReadingPeriodSetService","ReadingPeriodSet_AlreadyAdded","{0}已经添加过阅片期,无法设置生效","{0} has already added the review period, cannot set it effective.","\"ReadingPeriodSet_AlreadyAdded\":\"{0}已经添加过阅片期,无法设置生效\"","\"ReadingPeriodSet_AlreadyAdded\":\"{0} has already added the review period, cannot set it effective.\""]
["Reading","ReadingPeriod","ReadingPeriodSetService","ReadingPeriodSet_TaskCompletedCannotRevoke","当前标准阅片已生成任务并且阅片完成,撤销失败。","The current criterion has generated reads and the reads have been completed, revoke failed.","\"ReadingPeriodSet_TaskCompletedCannotRevoke\":\"当前标准阅片已生成任务并且阅片完成,撤销失败。\"","\"ReadingPeriodSet_TaskCompletedCannotRevoke\":\"The current criterion has generated reads and the reads have been completed, revoke failed.\""]
["Reading","ReadingPeriod","ReadingPeriodSetService","ReadingPeriodSet_LastVisit","末次访视","Last visit.","\"ReadingPeriodSet_LastVisit\":\"末次访视\"","\"ReadingPeriodSet_LastVisit\":\"Last visit.\""]
["Reading","ReadingPeriod",{"$nulls":4},"//ReadModuleService","//ReadModuleService"]
["Reading","ReadingPeriod","ReadModuleService","ReadModule_AlreadyAdded","当前访视已经添加过阅片期","The current visit has already added a review period.","\"ReadModule_AlreadyAdded\":\"当前访视已经添加过阅片期\"","\"ReadModule_AlreadyAdded\":\"The current visit has already added a review period.\""]
["Reading","ReadingPeriod","ReadModuleService","ReadModule_AddGlobalFirst","请先添加全局阅片","Please add global review first.","\"ReadModule_AddGlobalFirst\":\"请先添加全局阅片\"","\"ReadModule_AddGlobalFirst\":\"Please add global review first.\""]
["Reading","ReadingPeriod","ReadModuleService","ReadModule_VisitNotFound","未找到符合要求的访视","No qualified visit was found.","\"ReadModule_VisitNotFound\":\"未找到符合要求的访视\"","\"ReadModule_VisitNotFound\":\"No qualified visit was found.\""]
["Reading","ReadingPeriod","ReadModuleService","ReadModule_SignedDataCannotDelete","临床资料已签名，不允许删除","Clinical data has been signed and cannot be deleted.","\"ReadModule_SignedDataCannotDelete\":\"临床资料已签名，不允许删除\"","\"ReadModule_SignedDataCannotDelete\":\"Clinical data has been signed and cannot be deleted.\""]
["Reading","ReadingPeriod","ReadModuleService","ReadModule_TumorExists","当前访视存在肿瘤学阅片,请先删除肿瘤学阅片","The current visit has a tumor review, please delete it first.","\"ReadModule_TumorExists\":\"当前访视存在肿瘤学阅片,请先删除肿瘤学阅片\"","\"ReadModule_TumorExists\":\"The current visit has a tumor review, please delete it first.\""]
["Reading","ReadingPeriod","ReadModuleService","ReadModule_TaskGenerated","当前阅片已生成任务,操作失败。","The current review has generated reads, operation failed.","\"ReadModule_TaskGenerated\":\"当前阅片已生成任务,操作失败。\"","\"ReadModule_TaskGenerated\":\"The current review has generated reads, operation failed.\""]
["Reading",{"$nulls":5},"//UserWLTemplateService","//UserWLTemplateService"]
["Reading","ShortcutKey","UserWLTemplateService","UserWLTS_MaxTemplate","同一个用户最多只能添加10个模板","The same user can add a maximum of 10 templates.","\"UserWLTS_MaxTemplate\":\"同一个用户最多只能添加10个模板\"","\"UserWLTS_MaxTemplate\":\"The same user can add a maximum of 10 templates.\""]
["Reading","ShortcutKey","UserWLTemplateService","UserWLTS_NameRepeated","模板名称存在重复","The template name is repeated","\"UserWLTS_NameRepeated\":\"模板名称存在重复\"","\"UserWLTS_NameRepeated\":\"The template name is repeated\""]
["Reading","ShortcutKey","UserWLTemplateService","UserWLTS_ContentRepeated","模板内容存在重复","The template content is repeated","\"UserWLTS_ContentRepeated\":\"模板内容存在重复\"","\"UserWLTS_ContentRepeated\":\"The template content is repeated\""]

{"sheet":"Allocation","index":5,"n_rows":54,"n_cols":8,"rows_kept":54}
["外层文件夹","文件夹","文件","字段名","中文","英文"]
[{"$nulls":6},{"$f":"IF(ISBLANK(D2),\"//\"&C3,\"\"\"\"&D2&\"\"\":\"\"\"&E2&\"\"\"\")","v":"//TaskAllocationRuleService"},{"$f":"IF(ISBLANK(D2),\"//\"&C3,\"\"\"\"&D2&\"\"\":\"\"\"&F2&\"\"\"\")","v":"//TaskAllocationRuleService"}]
["Allocation","Allocation","TaskAllocationRuleService","TaskAllocation_DoctorIdNotFound","错误，未在入组表中找到该医生的账号Id","Error, the doctor's account Id was not found in the enrollment table.",{"$f":"IF(ISBLANK(D3),\"//\"&C4,\"\"\"\"&D3&\"\"\":\"\"\"&E3&\"\"\"\")","v":"\"TaskAllocation_DoctorIdNotFound\":\"错误，未在入组表中找到该医生的账号Id\""},{"$f":"IF(ISBLANK(D3),\"//\"&C4,\"\"\"\"&D3&\"\"\":\"\"\"&F3&\"\"\"\")","v":"\"TaskAllocation_DoctorIdNotFound\":\"Error, the doctor's account Id was not found in the enrollment table.\""}]
["Allocation","Allocation","TaskAllocationRuleService","TaskAllocation_DoctorConfigExists","已有该医生配置，不允许继续增加","The doctor configuration is already available, and continued additions cannot be allowed.","\"TaskAllocation_DoctorConfigExists\":\"已有该医生配置，不允许继续增加\"","\"TaskAllocation_DoctorConfigExists\":\"The doctor configuration is already available, and continued additions cannot be allowed.\""]
["Allocation","Allocation","TaskAllocationRuleService","TaskAllocation_TaskAssigned","已分配任务给该医生，不允许删除","A read has been assigned to the doctor and it cannot be deleted.","\"TaskAllocation_TaskAssigned\":\"已分配任务给该医生，不允许删除\"","\"TaskAllocation_TaskAssigned\":\"A read has been assigned to the doctor and it cannot be deleted.\""]
[{"$nulls":6},"//TaskConsistentRuleService","//TaskConsistentRuleService"]
["Allocation","Allocation","TaskConsistentRuleService","TaskConsistent_ConsistencyConfigExists","请配置一致性分析的医生","Please configure the doctor for consistency analysis.","\"TaskConsistent_ConsistencyConfigExists\":\"请配置一致性分析的医生\"","\"TaskConsistent_ConsistencyConfigExists\":\"Please configure the doctor for consistency analysis.\""]
["Allocation","Allocation","TaskConsistentRuleService","TaskConsistent_TaskGenerated","已有该项目配置，不允许继续增加","The trial configuration is already available, and no continued additions are allowed.","\"TaskConsistent_TaskGenerated\":\"已有该项目配置，不允许继续增加\"","\"TaskConsistent_TaskGenerated\":\"The trial configuration is already available, and no continued additions are allowed.\""]
["Allocation","Allocation","TaskConsistentRuleService","TaskConsistent_MedicalAuditTaskExists","该标准已有Subject 生成了任务，不允许修改配置","The criterion already has reads generated by the Subject, and configuration modification is not allowed.","\"TaskConsistent_MedicalAuditTaskExists\":\"该标准已有Subject 生成了任务，不允许修改配置\"","\"TaskConsistent_MedicalAuditTaskExists\":\"The criterion already has reads generated by the Subject, and configuration modification is not allowed.\""]
["Allocation","Allocation","TaskConsistentRuleService","TaskConsistent_SignedTaskCannotBeInvalidated","该标准已产生一致性分析任务，不允许删除","This criterion has generated a consistency analysis task and cannot be deleted.","\"TaskConsistent_SignedTaskCannotBeInvalidated\":\"该标准已产生一致性分析任务，不允许删除\"","\"TaskConsistent_SignedTaskCannotBeInvalidated\":\"This criterion has generated a consistency analysis task and cannot be deleted.\""]
[{"$nulls":6},"//TaskMedicalReviewRuleService","//TaskMedicalReviewRuleService"]
["Allocation","Allocation","TaskMedicalReviewRuleService","TaskMedicalRule_TaskAlreadyAssigned","已有该医生配置，不允许继续增加","The doctor configuration is already available, and continued additions cannot be allowed.","\"TaskMedicalRule_TaskAlreadyAssigned\":\"已有该医生配置，不允许继续增加\"","\"TaskMedicalRule_TaskAlreadyAssigned\":\"The doctor configuration is already available, and continued additions cannot be allowed.\""]
["Allocation","Allocation","TaskMedicalReviewRuleService","TaskMedicalRule_TaskStarted","已产生医学审核任务","A medical review task has been generated.","\"TaskMedicalRule_TaskStarted\":\"已产生医学审核任务\"","\"TaskMedicalRule_TaskStarted\":\"A medical review task has been generated.\""]
["Allocation","Allocation",{"$nulls":4},"//TaskMedicalReviewService","//TaskMedicalReviewService"]
["Allocation","Allocation","TaskMedicalReviewService","TaskMedical_DirtyData","已签名的不允许设置为失效","Signed files cannot be set to invalid.","\"TaskMedical_DirtyData\":\"已签名的不允许设置为失效\"","\"TaskMedical_DirtyData\":\"Signed files cannot be set to invalid.\""]
["Allocation","Allocation","TaskMedicalReviewService","TaskMedical_SubjectInOtherArm","当前有任务已分配给其他人，不允许分配,请刷新列表","A task is currently assigned to someone else,and it cannot be assigned. Please refresh the list.","\"TaskMedical_SubjectInOtherArm\":\"当前有任务已分配给其他人，不允许分配,请刷新列表\"","\"TaskMedical_SubjectInOtherArm\":\"A task is currently assigned to someone else,and it cannot be assigned. Please refresh the list.\""]
[{"$nulls":6},"//VisitTaskService","//VisitTaskService"]
["Allocation","Allocation","VisitTaskService","VisitTask_VisitTask_TaskAlreadyApplied","该项目还未确认任何一个阅片标准","The trial has not confirmed any of the review criteria.","\"VisitTask_VisitTask_TaskAlreadyApplied\":\"该项目还未确认任何一个阅片标准\"","\"VisitTask_VisitTask_TaskAlreadyApplied\":\"The trial has not confirmed any of the review criteria.\""]
["Allocation","Allocation","VisitTaskService","VisitTask_DoctorConfigNotFound","当前医生已开始做该Subject 该标准的任务，不允许取消分配","The current doctor has begun to do the task of this standard of subject, so assignment cannot be canceled.","\"VisitTask_DoctorConfigNotFound\":\"当前医生已开始做该Subject 该标准的任务，不允许取消分配\"","\"VisitTask_DoctorConfigNotFound\":\"The current doctor has begun to do the task of this standard of subject, so assignment cannot be canceled.\""]
["Allocation","Allocation","VisitTaskService","VisitTask_BackendDataError","其中一个任务已分配给该医生，不允许分配","One of the reeads has been assigned to the doctor and is not allowed to be assigned.","\"VisitTask_BackendDataError\":\"其中一个任务已分配给该医生，不允许分配\"","\"VisitTask_BackendDataError\":\"One of the reeads has been assigned to the doctor and is not allowed to be assigned.\""]
["Allocation","Allocation","VisitTaskService","VisitTask_DirtyData","出现脏数据  任务来源字段没有值","Dirty data appears, and the task source field has no value.","\"VisitTask_DirtyData\":\"出现脏数据  任务来源字段没有值\"","\"VisitTask_DirtyData\":\"Dirty data appears, and the task source field has no value.\""]
["Allocation","Allocation","VisitTaskService","VisitTask_MissingTaskSource","该受试者有访视进入了退回流程，还未经过一致性核查通过，不允许分配","The subject had a visit and entered the return process, which has not been verified for consistency and is not allowed to be assigned.","\"VisitTask_MissingTaskSource\":\"该受试者有访视进入了退回流程，还未经过一致性核查通过，不允许分配\"","\"VisitTask_MissingTaskSource\":\"The subject had a visit and entered the return process, which has not been verified for consistency and is not allowed to be assigned.\""]
["Allocation","Allocation","VisitTaskService","VisitTask_InconsistentSubjectStatus","有Subject 在其他Arm组已有该医生，不允许在新的组添加该医生","There is a subject that already has the doctor in another Arm group.  It is not allowed to add the doctor to a new group.","\"VisitTask_InconsistentSubjectStatus\":\"有Subject 在其他Arm组已有该医生，不允许在新的组添加该医生\"","\"VisitTask_InconsistentSubjectStatus\":\"There is a subject that already has the doctor in another Arm group.  It is not allowed to add the doctor to a new group.\""]
["Allocation","Allocation","VisitTaskService","VisitTask_DuplicateDoctorInArm","有Subject 已有该Arm组的医生，不允许继续分配,请刷新页面，确认页面数据是否过期","There is a subject that already has the doctor in another Arm group, so the futher assignment is not allowed. Please refresh the page to confirm whether the data on the page is expired.","\"VisitTask_DuplicateDoctorInArm\":\"有Subject 已有该Arm组的医生，不允许继续分配,请刷新页面，确认页面数据是否过期\"","\"VisitTask_DuplicateDoctorInArm\":\"There is a subject that already has the doctor in another Arm group, so the futher assignment is not allowed. Please refresh the page to confirm whether the data on the page is expired.\""]
["Allocation","Allocation","VisitTaskService","VisitTask_DoctorAlreadyInArm","有Subject任务已应用，不允许取消分配","The assignment of a Subject task cannot be canceled because it has been applied.","\"VisitTask_DoctorAlreadyInArm\":\"有Subject任务已应用，不允许取消分配\"","\"VisitTask_DoctorAlreadyInArm\":\"The assignment of a Subject task cannot be canceled because it has been applied.\""]
["Allocation","Allocation","VisitTaskService","VisitTask_TaskAlreadyApplied","在配置表中未找到配置的医生,无法应用绑定,请核对数据","The configured doctor cannot be found in the configuration table, and the binding cannot be applied. Please check the data.","\"VisitTask_TaskAlreadyApplied\":\"在配置表中未找到配置的医生,无法应用绑定,请核对数据\"","\"VisitTask_TaskAlreadyApplied\":\"The configured doctor cannot be found in the configuration table, and the binding cannot be applied. Please check the data.\""]
["Allocation","Allocation","VisitTaskService","VisitTask_DoctorConfiguration","后台数据有错误","Background data error","\"VisitTask_DoctorConfiguration\":\"后台数据有错误\"","\"VisitTask_DoctorConfiguration\":\"Background data error\""]
["Allocation","Allocation","VisitTaskService","VisitTask_BackendData","未阅片完成，或者未生效的任务不允许申请重阅","Reads that have not been completed or have not been effective are not allowed to request re-reading.","\"VisitTask_BackendData\":\"未阅片完成，或者未生效的任务不允许申请重阅\"","\"VisitTask_BackendData\":\"Reads that have not been completed or have not been effective are not allowed to request re-reading.\""]
["Allocation","Allocation","VisitTaskService","VisitTask_UnreadTask","重阅已申请，或者重阅已同意状态下不允许申请重阅","Reads that re-read has been applied or approved  are not allowed to apply for re-reading.","\"VisitTask_UnreadTask\":\"重阅已申请，或者重阅已同意状态下不允许申请重阅\"","\"VisitTask_UnreadTask\":\"Reads that re-read has been applied or approved  are not allowed to apply for re-reading.\""]
[null,null,"VisitTaskService","VisitTask_NoPMRecheck","附加评估标准任务不允许PM 申请影像重阅","Additional review reads do not allow the PM to apply for re-reading","\"VisitTask_NoPMRecheck\":\"附加评估标准任务不允许PM 申请影像重阅\"","\"VisitTask_NoPMRecheck\":\"Additional review reads do not allow the PM to apply for re-reading\""]
["Allocation","Allocation","VisitTaskService","VisitTask_Reapply","PM 不允许对一致性分析任务进行申请重阅","PM is not allowed to apply for re-reading of consistency analysis reads.","\"VisitTask_Reapply\":\"PM 不允许对一致性分析任务进行申请重阅\"","\"VisitTask_Reapply\":\"PM is not allowed to apply for re-reading of consistency analysis reads.\""]
["Allocation","Allocation","VisitTaskService","VisitTask_ConsistencyAnalysis","PM 仅仅允许对访视类型的任务申请重阅","PM is only allowed to apply for re-reading that the view type is visit.","\"VisitTask_ConsistencyAnalysis\":\"PM 仅仅允许对访视类型的任务申请重阅\"","\"VisitTask_ConsistencyAnalysis\":\"PM is only allowed to apply for re-reading that the view type is visit.\""]
["Allocation","Allocation","VisitTaskService","VisitTask_VisitTypeRestriction","当前为有序阅片，该受试者已有访视已申请重阅还未处理(项目组申请)，暂不能继续申请重阅","This is chronological read, and the subject has visit that has applied for re-read by PM, but has not been processed, so it cannot been applied for continuing re-read at this time.","\"VisitTask_VisitTypeRestriction\":\"当前为有序阅片，该受试者已有访视已申请重阅还未处理(项目组申请)，暂不能继续申请重阅\"","\"VisitTask_VisitTypeRestriction\":\"This is chronological read, and the subject has visit that has applied for re-read by PM, but has not been processed, so it cannot been applied for continuing re-read at this time.\""]
["Allocation","Allocation","VisitTaskService","VisitTask_SequentialReading","当前为有序阅片，该受试者已有访视已申请重阅还未处理，暂不能继续申请重阅","This is chronological read, and the subject has visit that has applied for re-read, but has not been processed, so it cannot been applied for  re-read for now.","\"VisitTask_SequentialReading\":\"当前为有序阅片，该受试者已有访视已申请重阅还未处理，暂不能继续申请重阅\"","\"VisitTask_SequentialReading\":\"This is chronological read, and the subject has visit that has applied for re-read, but has not been processed, so it cannot been applied for  re-read for now.\""]
["Allocation","Allocation","VisitTaskService","VisitTask_ImageProblem","当前为有序阅片，影像存在问题，项目组已申请回退,暂不能申请重阅","This is chronological read, and  there is something wrong with the image. PM has applied for returning, so it cannot been applied for re-reading now.",{"$f":"IF(ISBLANK(D35),\"//\"&C36,\"\"\"\"&D35&\"\"\":\"\"\"&E35&\"\"\"\")","v":"\"VisitTask_ImageProblem\":\"当前为有序阅片，影像存在问题，项目组已申请回退,暂不能申请重阅\""},{"$f":"IF(ISBLANK(D35),\"//\"&C36,\"\"\"\"&D35&\"\"\":\"\"\"&F35&\"\"\"\")","v":"\"VisitTask_ImageProblem\":\"This is chronological read, and  there is something wrong with the image. PM has applied for returning, so it cannot been applied for re-reading now.\""}]
["Allocation","Allocation","VisitTaskService","VisitTask_LastReading","有序阅片，只允许申请该受试者阅片人最后一次完成全局任务重阅","This is chronological read,  and only the request for re-readinng by the subject reader  after completing the global task for the last time is allowed.","\"VisitTask_LastReading\":\"有序阅片，只允许申请该受试者阅片人最后一次完成全局任务重阅\"","\"VisitTask_LastReading\":\"This is chronological read,  and only the request for re-readinng by the subject reader  after completing the global task for the last time is allowed.\""]
[null,null,"VisitTaskService","VisitTask_LastOncologistRecheck","有序阅片，只允许申请该受试者阅片人最后一次完成肿瘤学任务重阅","This is chronological read, and the subject will only be allowed to re-read after IR completing the last oncology read ","\"VisitTask_LastOncologistRecheck\":\"有序阅片，只允许申请该受试者阅片人最后一次完成肿瘤学任务重阅\"","\"VisitTask_LastOncologistRecheck\":\"This is chronological read, and the subject will only be allowed to re-read after IR completing the last oncology read \""]
[null,null,"VisitTaskService","VisitTask_LastAdjudicatorRecheck","有序阅片，只允许申请该受试者阅片人最后一次完成裁判的任务重阅","This is chronological read, and the subject will only be allowed to re-read after IR completing the last adjudication read ","\"VisitTask_LastAdjudicatorRecheck\":\"有序阅片，只允许申请该受试者阅片人最后一次完成裁判的任务重阅\"","\"VisitTask_LastAdjudicatorRecheck\":\"This is chronological read, and the subject will only be allowed to re-read after IR completing the last adjudication read \""]
[null,null,"VisitTaskService","VisitTask_IRGlobalRecheck","无序阅片，仅仅允许IR 申请 全局和访视类型类别的任务进行重阅","This is random read, IR is only allowed to apply for re-reading global and visit reads","\"VisitTask_IRGlobalRecheck\":\"无序阅片，仅仅允许IR 申请 全局和访视类型类别的任务进行重阅\"","\"VisitTask_IRGlobalRecheck\":\"This is random read, IR is only allowed to apply for re-reading global and visit reads\""]
["Allocation","Allocation","VisitTaskService","VisitTask_IRReapply","无序阅片，仅仅允许IR申请全局和访视类型类别的任务进行重阅","This is random read, IR is only allowed to apply for re-reading global and visit reads ","\"VisitTask_IRReapply\":\"无序阅片，仅仅允许IR申请全局和访视类型类别的任务进行重阅\"","\"VisitTask_IRReapply\":\"This is random read, IR is only allowed to apply for re-reading global and visit reads \""]
["Allocation","Allocation","VisitTaskService","VisitTask_InvalidReapplyStatus","当前重阅任务状态不为已申请状态，不允许进行处理，请刷新页面","The current re-read status is not requested and cannot be processed. Please refresh the page.","\"VisitTask_InvalidReapplyStatus\":\"当前重阅任务状态不为已申请状态，不允许进行处理，请刷新页面\"","\"VisitTask_InvalidReapplyStatus\":\"The current re-read status is not requested and cannot be processed. Please refresh the page.\""]
["Allocation","Allocation","VisitTaskService","VisitTask_ReapplyStatusConflict","当前申请重阅任务的状态，已被其他任务重阅已影响，不允许对该状态下的任务进行重阅同意与否操作","The current re-read status has been affected by another re-read reads.  The re-read review operation is not allowed for reads in this state","\"VisitTask_ReapplyStatusConflict\":\"当前申请重阅任务的状态，已被其他任务重阅已影响，不允许对该状态下的任务进行重阅同意与否操作\"","\"VisitTask_ReapplyStatusConflict\":\"The current re-read status has been affected by another re-read reads.  The re-read review operation is not allowed for reads in this state\""]
["Allocation","Allocation","VisitTaskService","VisitTask_ReReadTaskNotApplied","仅允许同意访视类型的任务重阅","Only reads with visit type are allowed to approve of re-read.","\"VisitTask_ReReadTaskNotApplied\":\"仅允许同意访视类型的任务重阅\"","\"VisitTask_ReReadTaskNotApplied\":\"Only reads with visit type are allowed to approve of re-read.\""]
["Allocation","Allocation","VisitTaskService","VisitTask_ReReadTaskAlreadyAffected","不符合  PM申请   SPM / CPM审批 | IR申请  PM 审批 ","Do not conform to the PM request and SPM / CPM approve , or IR request and PM approve.","\"VisitTask_ReReadTaskAlreadyAffected\":\"不符合  PM申请   SPM / CPM审批 | IR申请  PM 审批 \"","\"VisitTask_ReReadTaskAlreadyAffected\":\"Do not conform to the PM request and SPM / CPM approve , or IR request and PM approve.\""]
["Allocation","Allocation","VisitTaskService","VisitTask_TaskTypeNotApproved","当前重阅任务状态不为已申请状态，不允许进行处理，请刷新页面","The current re-read status is not requested and cannot be processed. Please refresh the page.","\"VisitTask_TaskTypeNotApproved\":\"当前重阅任务状态不为已申请状态，不允许进行处理，请刷新页面\"","\"VisitTask_TaskTypeNotApproved\":\"The current re-read status is not requested and cannot be processed. Please refresh the page.\""]
[null,null,"VisitTaskService","VisitTask_NoImageReturn","附加评估标准任务不允许在此入口影像退回","Additional review reads do not allow PM to apply for re-reading","\"VisitTask_NoImageReturn\":\"附加评估标准任务不允许在此入口影像退回\"","\"VisitTask_NoImageReturn\":\"Additional review reads do not allow PM to apply for re-reading\""]
["Allocation","Allocation","VisitTaskService","VisitTask_NonEffectiveTaskCannotBeReturned","仅仅允许针对生效、未完成的访视任务进行退回操作，请刷新页面数据","Only effective and unfinished visit read can be returned. Please refresh the page data.","\"VisitTask_NonEffectiveTaskCannotBeReturned\":\"仅仅允许针对生效、未完成的访视任务进行退回操作，请刷新页面数据\"","\"VisitTask_NonEffectiveTaskCannotBeReturned\":\"Only effective and unfinished visit read can be returned. Please refresh the page data.\""]
[null,null,"VisitTaskService","VisitTask_NoFurtherReturn","当前访视已回退到影像上传，不允许继续回退！","The current visit has been returned to image upload, so continuing to return is not allowed!","\"VisitTask_NoFurtherReturn\":\"当前访视已回退到影像上传，不允许继续回退！\"","\"VisitTask_NoFurtherReturn\":\"The current visit has been returned to image upload, so continuing to return is not allowed!\""]
["Allocation","Allocation","VisitTaskService","VisitTask_ConsistencyTaskCannotBeReturned","一致性分析的任务，不允许设置退回","The consistency analysis read is not allowed to be set return back.","\"VisitTask_ConsistencyTaskCannotBeReturned\":\"一致性分析的任务，不允许设置退回\"","\"VisitTask_ConsistencyTaskCannotBeReturned\":\"The consistency analysis read is not allowed to be set return back.\""]
["Allocation","Allocation","VisitTaskService","VisitTask_PMOnlyAllowedForReturn","仅PM 可以进行回退操作","Only PM can perform the return back.","\"VisitTask_PMOnlyAllowedForReturn\":\"仅PM 可以进行回退操作\"","\"VisitTask_PMOnlyAllowedForReturn\":\"Only PM can perform the return back.\""]
["Allocation","Allocation","VisitTaskService","VisitTask_UnsupportedTaskType","不支持重阅的任务类型","Re-read types are not supported.","\"VisitTask_UnsupportedTaskType\":\"不支持重阅的任务类型\"","\"VisitTask_UnsupportedTaskType\":\"Re-read types are not supported.\""]
["Allocation","Allocation","VisitTaskService","VisitTask_UndefinedList","当前用户查看列表未定义","The current user view list is not defined.","\"VisitTask_UndefinedList\":\"当前用户查看列表未定义\"","\"VisitTask_UndefinedList\":\"The current user view list is not defined.\""]
[null,null,"VisitTaskService","VisitTask_NoConsistencyReturn","不允许退回一致性分析任务","The conformance analysis read cannot be returned back","\"VisitTask_NoConsistencyReturn\":\"不允许退回一致性分析任务\"","\"VisitTask_NoConsistencyReturn\":\"The conformance analysis read cannot be returned back\""]
["Allocation","Allocation","VisitTaskService","VisitTask_VisitTypeTaskAllowedForPMOnly","仅仅访视类型的任务支持PM退回","Only read with visit type can be returned by PM.","\"VisitTask_VisitTypeTaskAllowedForPMOnly\":\"仅仅访视类型的任务支持PM退回\"","\"VisitTask_VisitTypeTaskAllowedForPMOnly\":\"Only read with visit type can be returned by PM.\""]

{"sheet":"Common","index":6,"n_rows":29,"n_cols":8,"rows_kept":29}
["外层文件夹","文件夹","文件","字段名","中文","英文"]
[{"$nulls":6},{"$f":"IF(ISBLANK(D2),\"//\"&C3,\"\"\"\"&D2&\"\"\":\"\"\"&E2&\"\"\"\")","v":"//CommonDocumentService"},{"$f":"IF(ISBLANK(D2),\"//\"&C3,\"\"\"\"&D2&\"\"\":\"\"\"&F2&\"\"\"\")","v":"//CommonDocumentService"}]
["Common","Common","CommonDocumentService","Document_CodeDuplication","文档的Code不能够重复。","The Code of the document cannot be repeated.",{"$f":"IF(ISBLANK(D3),\"//\"&C4,\"\"\"\"&D3&\"\"\":\"\"\"&E3&\"\"\"\")","v":"\"Document_CodeDuplication\":\"文档的Code不能够重复。\""},{"$f":"IF(ISBLANK(D3),\"//\"&C4,\"\"\"\"&D3&\"\"\":\"\"\"&F3&\"\"\"\")","v":"\"Document_CodeDuplication\":\"The Code of the document cannot be repeated.\""}]
["Common","Common","CommonDocumentService","Document_SingleTemplate","一个场景一个标准只允许有一个模板文档","Only one template file is allowed per scenario and  standard.","\"Document_SingleTemplate\":\"一个场景一个标准只允许有一个模板文档\"","\"Document_SingleTemplate\":\"Only one template file is allowed per scenario and  standard.\""]
["Common","Common","CommonDocumentService","Document_ TemplateRead","读取模板内容失败, 请将文件另存为docx格式尝试!","Failed to read the template content, please try saving the file as docx format!","\"Document_ TemplateRead\":\"读取模板内容失败, 请将文件另存为docx格式尝试!\"","\"Document_ TemplateRead\":\"Failed to read the template content, please try saving the file as docx format!\""]
["Common","Common",{"$nulls":4},"//DictionaryService","//DictionaryService"]
["Common","Common","DictionaryService","Dictionary_DictionaryName","已有{0}名称的字典","There is already a dictionary with the name {0}.","\"Dictionary_DictionaryName\":\"已有{0}名称的字典\"","\"Dictionary_DictionaryName\":\"There is already a dictionary with the name {0}.\""]
["Common","Common","DictionaryService","Dictionary_DictionaryDeletion","当前字典在标准中被引用,不允许删除！","The current dictionary is referenced in the standard and cannot be deleted!","\"Dictionary_DictionaryDeletion\":\"当前字典在标准中被引用,不允许删除！\"","\"Dictionary_DictionaryDeletion\":\"The current dictionary is referenced in the standard and cannot be deleted!\""]
["Common","Common","DictionaryService","Dictionary_SubitemDeletion","有子项数据，不允许直接删除！","There is child data, direct deletion is not allowed!","\"Dictionary_SubitemDeletion\":\"有子项数据，不允许直接删除！\"","\"Dictionary_SubitemDeletion\":\"There is child data, direct deletion is not allowed!\""]
["Common","Common","DictionaryService","Dictionary_ResumeReference","当前条目已经在阅片人的简历中被引用。","The current entry has been referenced in the reader resume.","\"Dictionary_ResumeReference\":\"当前条目已经在阅片人的简历中被引用。\"","\"Dictionary_ResumeReference\":\"The current entry has been referenced in the reader resume.\""]
["Common","Common","DictionaryService","Dictionary_ProjectReference","当前条目已经在项目信息中被引用。","The current entry has been referenced in the trial information.","\"Dictionary_ProjectReference\":\"当前条目已经在项目信息中被引用。\"","\"Dictionary_ProjectReference\":\"The current entry has been referenced in the trial information.\""]
["Common","Common","DictionaryService","Dictionary_StandardReference","当前条目已经在阅片标准中被引用。","The current entry has been referenced in the review criteria.","\"Dictionary_StandardReference\":\"当前条目已经在阅片标准中被引用。\"","\"Dictionary_StandardReference\":\"The current entry has been referenced in the review criteria.\""]
["Common","Common",{"$nulls":4},"//ExcelExportService","//ExcelExportService"]
["Common","Common","ExcelExportService","ExcelExport_UnsupportedExport","当前标准导出还未支持","Currently the criterion export is not supported.","\"ExcelExport_UnsupportedExport\":\"当前标准导出还未支持\"","\"ExcelExport_UnsupportedExport\":\"Currently the criterion export is not supported.\""]
["Common","Common",{"$nulls":4},"//MailService","//MailService"]
["Common","Common","MailService","Mail_EmailResetReminder","[来自展影IRC] 关于重置邮箱的提醒","[From Extensive Imaging IRC] A reminder about resetting the email.","\"Mail_EmailResetReminder\":\"[来自展影IRC] 关于重置邮箱的提醒\"","\"Mail_EmailResetReminder\":\"[From Extensive Imaging IRC] A reminder about resetting the email.\""]
["Common","Common","MailService","Mail_Dear"," 尊敬的 {0} , ","Dear {0},","\"Mail_Dear\":\" 尊敬的 {0} , \"","\"Mail_Dear\":\"Dear {0},\""]
["Common","Common","MailService","Mail_ResettingEmail","您正在进行邮箱重置操作","You are resetting an email address.","\"Mail_ResettingEmail\":\"您正在进行邮箱重置操作\"","\"Mail_ResettingEmail\":\"You are resetting an email address.\""]
["Common","Common","MailService","Mail_IRCResettingPassword ","[来自展影IRC] 关于重置密码的提醒","[From Extensive Imaging IRC] A reminder about resetting your  password","\"Mail_IRCResettingPassword \":\"[来自展影IRC] 关于重置密码的提醒\"","\"Mail_IRCResettingPassword \":\"[From Extensive Imaging IRC] A reminder about resetting your  password\""]
["Common","Common","MailService","Mail_ResettingPassword ","您正在进行邮箱重置密码操作","You are resetting the email password","\"Mail_ResettingPassword \":\"您正在进行邮箱重置密码操作\"","\"Mail_ResettingPassword \":\"You are resetting the email password\""]
["Common","Common","MailService","Mail_ImagingIRCReminder","[来自展影IRC]的提醒","[From Extensive Imaging IRC] A reminder","\"Mail_ImagingIRCReminder\":\"[来自展影IRC]的提醒\"","\"Mail_ImagingIRCReminder\":\"[From Extensive Imaging IRC] A reminder\""]
["Common","Common","MailService","Mail_IRCProject","您正在参与展影医疗IRC项目","You are participating in the Extensive Imaging IRC trial","\"Mail_IRCProject\":\"您正在参与展影医疗IRC项目\"","\"Mail_IRCProject\":\"You are participating in the Extensive Imaging IRC trial\""]
["Common","Common","MailService","Mail_ProjectParticipationReminder","[来自展影IRC] [{0}] 关于中心调研的提醒","[From Extensive Imaging IRC] [{0}] A reminder of the Site Survey","\"Mail_ProjectParticipationReminder\":\"[来自展影IRC] [{0}] 关于中心调研的提醒\"","\"Mail_ProjectParticipationReminder\":\"[From Extensive Imaging IRC] [{0}] A reminder of the Site Survey\""]
["Common","Common","MailService","Mail_CenterResearchReminder","您正在参与展影医疗IRC项目中心调研工作","You are participating in the Site Survey of the Extensive Imaging IRC trial.","\"Mail_CenterResearchReminder\":\"您正在参与展影医疗IRC项目中心调研工作\"","\"Mail_CenterResearchReminder\":\"You are participating in the Site Survey of the Extensive Imaging IRC trial.\""]
["Common","Common","MailService","Mail_AccountCreationReminder","[来自展影IRC] 关于创建账户的提醒","[From Extensive Imaging IRC] A reminder about creating an account","\"Mail_AccountCreationReminder\":\"[来自展影IRC] 关于创建账户的提醒\"","\"Mail_AccountCreationReminder\":\"[From Extensive Imaging IRC] A reminder about creating an account\""]
["Common","Common","MailService","Mail_AccountPasswordResetReminder","[来自展影IRC] 关于重置账户密码的提醒","[From Extensive Imaging IRC] A reminder about resetting account passwords","\"Mail_AccountPasswordResetReminder\":\"[来自展影IRC] 关于重置账户密码的提醒\"","\"Mail_AccountPasswordResetReminder\":\"[From Extensive Imaging IRC] A reminder about resetting account passwords\""]
["Common","Common","MailService","Mail_InvitationEmail","[来自展影IRC] [{0}]邀请信","[From Extensive Imaging IRC][{0}]Invitation","\"Mail_InvitationEmail\":\"[来自展影IRC] [{0}]邀请信\"","\"Mail_InvitationEmail\":\"[From Extensive Imaging IRC][{0}]Invitation\""]
[{"$nulls":6},"//SystemMonitor","//SystemMonitor"]
[null,"Common","SystemMonitor","SysMon_JsonConfig","解析Json文件配置出现问题","Parsing the Json file configuration failed","\"SysMon_JsonConfig\":\"解析Json文件配置出现问题\"","\"SysMon_JsonConfig\":\"Parsing the Json file configuration failed\""]

{"sheet":"Doctor","index":7,"n_rows":7,"n_cols":8,"rows_kept":7}
["外层文件夹","文件夹","文件","字段名","中文","英文"]
[{"$nulls":6},{"$f":"IF(ISBLANK(D2),\"//\"&C6,\"\"\"\"&D2&\"\"\":\"\"\"&E2&\"\"\"\")","v":"//DoctorService"},{"$f":"IF(ISBLANK(D2),\"//\"&C6,\"\"\"\"&D2&\"\"\":\"\"\"&F2&\"\"\"\")","v":"//DoctorService"}]
["Doctor","Doctor","DoctorService","Doctor_DupPhoneOrEmail","当前的电话或电子邮件号码已经存在","The current tel or email number already existed","\"Doctor_DupPhoneOrEmail\":\"当前的电话或电子邮件号码已经存在\"","\"Doctor_DupPhoneOrEmail\":\"The current tel or email number already existed\""]
["Doctor","Doctor","DoctorService","Doctor_DupPhone","当前的电话号码已经存在!","The current tel number already existed!","\"Doctor_DupPhone\":\"当前的电话号码已经存在!\"","\"Doctor_DupPhone\":\"The current tel number already existed!\""]
["Doctor","Doctor","DoctorService","Doctor_DupEmail","当前的邮箱已经存在!","The current email already existed!","\"Doctor_DupEmail\":\"当前的邮箱已经存在!\"","\"Doctor_DupEmail\":\"The current email already existed!\""]
["Doctor","Doctor","DoctorService","Doctor_StandardDuplicateFileTypeError","当前标准已添加过此类型文件","This type of file has already been added to the current criterion.","\"Doctor_StandardDuplicateFileTypeError\":\"当前标准已添加过此类型文件\"","\"Doctor_StandardDuplicateFileTypeError\":\"This type of file has already been added to the current criterion.\""]
["Doctor","Doctor","DoctorService","Doctor_RequiredDocumentsError","简历及顾问协议必须上传","Resume & Consultant Agreement must be upload","\"Doctor_RequiredDocumentsError\":\"简历及顾问协议必须上传\"","\"Doctor_RequiredDocumentsError\":\"Resume & Consultant Agreement must be upload\""]

{"sheet":"Document","index":8,"n_rows":44,"n_cols":8,"rows_kept":44}
["外层文件夹","文件夹","文件","字段名","中文","英文"]
[{"$nulls":6},{"$f":"IF(ISBLANK(D2),\"//\"&C3,\"\"\"\"&D2&\"\"\":\"\"\"&E2&\"\"\"\")","v":"//SystemDocumentService"},{"$f":"IF(ISBLANK(D2),\"//\"&C3,\"\"\"\"&D2&\"\"\":\"\"\"&F2&\"\"\"\")","v":"//SystemDocumentService"}]
["Document","Document","SystemDocumentService","SystemD_DuplicateFile","系统中已存在同类型的同名文件。","A file with the same type and same name already exists in the system.",{"$f":"IF(ISBLANK(D3),\"//\"&C4,\"\"\"\"&D3&\"\"\":\"\"\"&E3&\"\"\"\")","v":"\"SystemD_DuplicateFile\":\"系统中已存在同类型的同名文件。\""},{"$f":"IF(ISBLANK(D3),\"//\"&C4,\"\"\"\"&D3&\"\"\":\"\"\"&F3&\"\"\"\")","v":"\"SystemD_DuplicateFile\":\"A file with the same type and same name already exists in the system.\""}]
["Document","Document","SystemDocumentService","SystemD_CannotDeleteSignedFile","已有用户阅读该文档，并签名，不允许删除。","The file has already been read and signed by a user,  and not allowed to be deleted.","\"SystemD_CannotDeleteSignedFile\":\"已有用户阅读该文档，并签名，不允许删除。\"","\"SystemD_CannotDeleteSignedFile\":\"The file has already been read and signed by a user,  and not allowed to be deleted.\""]
["Document","Document",{"$nulls":4},"//TrialDocumentService","//TrialDocumentService"]
["Document","Document","TrialDocumentService","TrialD_DuplicateFileInProject","该项目中已经存在同类型的同名文件。","A file with the same type and same name already exists in this trial .","\"TrialD_DuplicateFileInProject\":\"该项目中已经存在同类型的同名文件。\"","\"TrialD_DuplicateFileInProject\":\"A file with the same type and same name already exists in this trial .\""]
["Document","Document","TrialDocumentService","TrialD_DocumentHasAlready","已有用户阅读该文档，并签名，不允许删除。","The file has already been read and signed by a user,  and not allowed to be deleted.","\"TrialD_DocumentHasAlready\":\"已有用户阅读该文档，并签名，不允许删除。\"","\"TrialD_DocumentHasAlready\":\"The file has already been read and signed by a user,  and not allowed to be deleted.\""]
["Document","Document","TrialDocumentService","TrialD_FileAlreadySigned","该文件已经签名","The file has been signed.","\"TrialD_FileAlreadySigned\":\"该文件已经签名\"","\"TrialD_FileAlreadySigned\":\"The file has been signed.\""]
["Document","Document","TrialDocumentService","TrialD_ObsoleteFile","文件已废除,签署失败！","The file has been revoked. Signature failed!","\"TrialD_ObsoleteFile\":\"文件已废除,签署失败！\"","\"TrialD_ObsoleteFile\":\"The file has been revoked. Signature failed!\""]
["Document","Document",{"$nulls":4},"//TrialEmailNoticeConfigService","//TrialEmailNoticeConfigService"]
["Document","Document","TrialEmailNoticeConfigService","TrialEmailN_TaskNotSigned","进行邮件发送前，该任务必须已签名完成并已经触发完成相应的任务生成","Before sending the email, the task must have been signed and triggered to complete the corresponding task generation.","\"TrialEmailN_TaskNotSigned\":\"进行邮件发送前，该任务必须已签名完成并已经触发完成相应的任务生成\"","\"TrialEmailN_TaskNotSigned\":\"Before sending the email, the task must have been signed and triggered to complete the corresponding task generation.\""]
["Document","Document","TrialEmailNoticeConfigService","TrialEmailN_NoRecipient","没有收件人，无法发送邮件","The message cannot be sent without the recipient.","\"TrialEmailN_NoRecipient\":\"没有收件人，无法发送邮件\"","\"TrialEmailN_NoRecipient\":\"The message cannot be sent without the recipient.\""]
["Document","Document","TrialEmailNoticeConfigService","TrialEmailN_InvalidEmailConfig","项目发件邮箱配置有误，请核实","The configuration of the sender mail of the trial is wrong, please check.","\"TrialEmailN_InvalidEmailConfig\":\"项目发件邮箱配置有误，请核实\"","\"TrialEmailN_InvalidEmailConfig\":\"The configuration of the sender mail of the trial is wrong, please check.\""]
["Document","Document","TrialEmailNoticeConfigService","TrialEmailN_EmailTemplateNotFound","找不到该项目标准场景下邮件模板","The email template in the standard scenario of this trial cannot be found.","\"TrialEmailN_EmailTemplateNotFound\":\"找不到该项目标准场景下邮件模板\"","\"TrialEmailN_EmailTemplateNotFound\":\"The email template in the standard scenario of this trial cannot be found.\""]
["Document","Document","TrialEmailNoticeConfigService","TrialEmailN_EnrollmentConfirmation","【入组确认报告】关于{0}项目{1}受试者","[Enrollment Confirmation Report] About  {0} item {1}Subject","\"TrialEmailN_EnrollmentConfirmation\":\"【入组确认报告】关于{0}项目{1}受试者\"","\"TrialEmailN_EnrollmentConfirmation\":\"[Enrollment Confirmation Report] About  {0} item {1}Subject\""]
["Document","Document","TrialEmailNoticeConfigService","TrialEmailN_Enrollment"," 附件为入组确认报告，请查收","The attachment is the Enrollment Confirmation Report, please check.","\"TrialEmailN_Enrollment\":\" 附件为入组确认报告，请查收\"","\"TrialEmailN_Enrollment\":\"The attachment is the Enrollment Confirmation Report, please check.\""]
["Document","Document","TrialEmailNoticeConfigService","TrialEmailN_PDReport","【疾病进展确认报告】关于{0}项目{1}受试者","[PD Confirmation Report] About  {0} item {1}Subject","\"TrialEmailN_PDReport\":\"【疾病进展确认报告】关于{0}项目{1}受试者\"","\"TrialEmailN_PDReport\":\"[PD Confirmation Report] About  {0} item {1}Subject\""]
["Document","Document","TrialEmailNoticeConfigService","TrialEmailN_SubjectDiseaseProgression"," 附件为疾病进展确认报告，请查收 ","The attachment is the PD Confirmation Report, please check.","\"TrialEmailN_SubjectDiseaseProgression\":\" 附件为疾病进展确认报告，请查收 \"","\"TrialEmailN_SubjectDiseaseProgression\":\"The attachment is the PD Confirmation Report, please check.\""]
["Document","Document","TrialEmailNoticeConfigService","TrialEmailN_SingleBlindedSet","单重有序阅片配置有误(不应该有仲裁对象配置)，请核查！","The configuration of the single and chronological read is incorrect (there should be no adjudicator configuration), please check!","\"TrialEmailN_SingleBlindedSet\":\"单重有序阅片配置有误(不应该有仲裁对象配置)，请核查！\"","\"TrialEmailN_SingleBlindedSet\":\"The configuration of the single and chronological read is incorrect (there should be no adjudicator configuration), please check!\""]
["Document","Document","TrialEmailNoticeConfigService","TrialEmailN_SingleBlindedSequenced","单重有序阅片 该类型的任务不应进入此处逻辑，请联系后台开发核查！","The single and chronological read, should not enter the logic here, please contact the background developers to check!","\"TrialEmailN_SingleBlindedSequenced\":\"单重有序阅片 该类型的任务不应进入此处逻辑，请联系后台开发核查！\"","\"TrialEmailN_SingleBlindedSequenced\":\"The single and chronological read, should not enter the logic here, please contact the background developers to check!\""]
["Document","Document","TrialEmailNoticeConfigService","TrialEmailN_PDProgressEmailTask","发送PD 进展邮件中发现任务数据有问题！","Send PD progress email found problem with the task data!","\"TrialEmailN_PDProgressEmailTask\":\"发送PD 进展邮件中发现任务数据有问题！\"","\"TrialEmailN_PDProgressEmailTask\":\"Send PD progress email found problem with the task data!\""]
["Document","Document","TrialEmailNoticeConfigService","TrialEmailN_DoubleBlindedError","双重有序阅片 没有定义该仲裁规则处理逻辑，请联系业务和后台开发核查！","The double and chronological read does not defined the adjudication rule logic, please contact the developers to check!","\"TrialEmailN_DoubleBlindedError\":\"双重有序阅片 没有定义该仲裁规则处理逻辑，请联系业务和后台开发核查！\"","\"TrialEmailN_DoubleBlindedError\":\"The double and chronological read does not defined the adjudication rule logic, please contact the developers to check!\""]
["Document","Document","TrialEmailNoticeConfigService","TrialEmailN_InCons","项目未配置入组确认！","The trial is not configured with the Enrollment Confirmation!","\"TrialEmailN_InCons\":\"项目未配置入组确认！\"","\"TrialEmailN_InCons\":\"The trial is not configured with the Enrollment Confirmation!\""]
["Document","Document","TrialEmailNoticeConfigService","TrialEmailN_NoBaseLine","不存在配置了入组确认的并且已阅的基线访视","There is no baseline visit configured with Enrollment Confirmation and IR readed，so email failed to send","\"TrialEmailN_NoBaseLine\":\"不存在配置了入组确认的并且已阅的基线访视\"","\"TrialEmailN_NoBaseLine\":\"There is no baseline visit configured with Enrollment Confirmation and IR readed，so email failed to send\""]
["Document","Document","TrialEmailNoticeConfigService","TrialEmailN_IncompBase","做入组确认的阅片人基线任务没有阅片完！","The baseline reads for enrollment confirmation has not been finished for IR!","\"TrialEmailN_IncompBase\":\"做入组确认的阅片人基线任务没有阅片完！\"","\"TrialEmailN_IncompBase\":\"The baseline reads for enrollment confirmation has not been finished for IR!\""]
["Document","Document","TrialEmailNoticeConfigService","TrialEmailN_EmailFail","邮件手动生成失败，请联系开发核实该场景失败原因","Email failed to generate manually，please  contact developer to verify the failure cause","\"TrialEmailN_EmailFail\":\"邮件手动生成失败，请联系开发核实该场景失败原因\"","\"TrialEmailN_EmailFail\":\"Email failed to generate manually，please  contact developer to verify the failure cause\""]
["Document","Document","TrialEmailNoticeConfigService","TrialEmailN_NoReader","当前未有阅片人读完基线任务！","No IR has finished the baseline read at present!","\"TrialEmailN_NoReader\":\"当前未有阅片人读完基线任务！\"","\"TrialEmailN_NoReader\":\"No IR has finished the baseline read at present!\""]
["Document","Document","TrialEmailNoticeConfigService","TrialEmailN_NoPDConfig","项目未配置PD进展！","The trial is not configured with PD Confirmation!","\"TrialEmailN_NoPDConfig\":\"项目未配置PD进展！\"","\"TrialEmailN_NoPDConfig\":\"The trial is not configured with PD Confirmation!\""]
["Document","Document","TrialEmailNoticeConfigService","TrialEmailN_NoPDTasks","不存在配置了PD进展的并且已阅的访视","There is no baseline visit configured with “PD Confirmation” and IR readed，so email failed to send","\"TrialEmailN_NoPDTasks\":\"不存在配置了PD进展的并且已阅的访视\"","\"TrialEmailN_NoPDTasks\":\"There is no baseline visit configured with “PD Confirmation” and IR readed，so email failed to send\""]
["Document","Document","TrialEmailNoticeConfigService","TrialEmailN_PDNotFinished","当前受试者最新PD访视阅片任务完成状态不符合发送条件","The completion status of the latest PD interview and film reading task of the current subject does not meet the sending conditions","\"TrialEmailN_PDNotFinished\":\"当前受试者最新PD访视阅片任务完成状态不符合发送条件\"","\"TrialEmailN_PDNotFinished\":\"The completion status of the latest PD interview and film reading task of the current subject does not meet the sending conditions\""]
["Document","Document","TrialEmailNoticeConfigService","TrialEmailN_PDNoImaging","项目配置了阅片期仲裁，但是当前受试者最新PD访视没有影像学阅片期","The trial is configured with review period adjudication, but the current subject' s latest visit marked 'PD' have no review period","\"TrialEmailN_PDNoImaging\":\"项目配置了阅片期仲裁，但是当前受试者最新PD访视没有影像学阅片期\"","\"TrialEmailN_PDNoImaging\":\"The trial is configured with review period adjudication, but the current subject' s latest visit marked 'PD' have no review period\""]
["Document","Document","TrialEmailNoticeConfigService","TrialEmailN_PDPhaseNotFinished","当前受试者最新PD访视阅片期任务完成状态不符合发送条件","The review period status of the current subject's latest PD visit  does not meet the sending conditions","\"TrialEmailN_PDPhaseNotFinished\":\"当前受试者最新PD访视阅片期任务完成状态不符合发送条件\"","\"TrialEmailN_PDPhaseNotFinished\":\"The review period status of the current subject's latest PD visit  does not meet the sending conditions\""]
["Document","Document","TrialEmailNoticeConfigService","TrialEmailN_NoRuleDefined","未定义该仲裁规则发送业务逻辑！","The sending logic for adjudication rule is not defined! ","\"TrialEmailN_NoRuleDefined\":\"未定义该仲裁规则发送业务逻辑！\"","\"TrialEmailN_NoRuleDefined\":\"The sending logic for adjudication rule is not defined! \""]
["Document","Document","TrialEmailNoticeConfigService","TrialEmailN_NoDoubleOrder","当前项目配置，不满足双重有序阅片，不满足发送条件！","The current trial is not double and chronological read, so the sending condition is not met","\"TrialEmailN_NoDoubleOrder\":\"当前项目配置，不满足双重有序阅片，不满足发送条件！\"","\"TrialEmailN_NoDoubleOrder\":\"The current trial is not double and chronological read, so the sending condition is not met\""]
["Document","Document","TrialEmailNoticeConfigService","TrialEmailN_NoSendLogicDefined","当前项目配置，未定义发送业务逻辑！","The current trial is not defined sending logic","\"TrialEmailN_NoSendLogicDefined\":\"当前项目配置，未定义发送业务逻辑！\"","\"TrialEmailN_NoSendLogicDefined\":\"The current trial is not defined sending logic\""]
["Document","Document","TrialEmailNoticeConfigService","TrialEmailN_BlindedSequencedReading","有序阅片配置有误(应为单重或者双重阅片)，请核查！","The configuration of the chronological read is wrong (should be single or double reading), please check!","\"TrialEmailN_BlindedSequencedReading\":\"有序阅片配置有误(应为单重或者双重阅片)，请核查！\"","\"TrialEmailN_BlindedSequencedReading\":\"The configuration of the chronological read is wrong (should be single or double reading), please check!\""]
["Document","Document","TrialEmailNoticeConfigService","TrialEmailN_UnblindedSequencedReading","无序阅片配置有误(应为单重无仲裁对象，双重针对访视仲裁)，请核查！","The configuration of random read is wrong (should be single read without adjudication, or double read with adjudication for visiting ), please check!","\"TrialEmailN_UnblindedSequencedReading\":\"无序阅片配置有误(应为单重无仲裁对象，双重针对访视仲裁)，请核查！\"","\"TrialEmailN_UnblindedSequencedReading\":\"The configuration of random read is wrong (should be single read without adjudication, or double read with adjudication for visiting ), please check!\""]
["Document","Document","TrialEmailNoticeConfigService","TrialEmailN_InvalidTaskTypeForEmailSending","不应有除访视、裁判、全局其他类型的任务进行发送邮件，请核查业务逻辑","Do not send emails for other type except visit, adjudication and global read. Please check the logic.","\"TrialEmailN_InvalidTaskTypeForEmailSending\":\"不应有除访视、裁判、全局其他类型的任务进行发送邮件，请核查业务逻辑\"","\"TrialEmailN_InvalidTaskTypeForEmailSending\":\"Do not send emails for other type except visit, adjudication and global read. Please check the logic.\""]
["Document","Document","TrialEmailNoticeConfigService","TrialEmailN_PDLogicNotDefined","该标准任务还未定义PD获取逻辑，联系业务和后台开发协商后补充","Reads for this criterion has not yet defined the PD logic,  please supplement it after consultation with the developer.","\"TrialEmailN_PDLogicNotDefined\":\"该标准任务还未定义PD获取逻辑，联系业务和后台开发协商后补充\"","\"TrialEmailN_PDLogicNotDefined\":\"Reads for this criterion has not yet defined the PD logic,  please supplement it after consultation with the developer.\""]
["Document","Document","TrialEmailNoticeConfigService","TrialEmailN_MailboxWrong","项目发件邮箱配置有误，请核实","The configuration of the sender mailbox of the trial is wrong, please check it.","\"TrialEmailN_MailboxWrong\":\"项目发件邮箱配置有误，请核实\"","\"TrialEmailN_MailboxWrong\":\"The configuration of the sender mailbox of the trial is wrong, please check it.\""]
["Document","Document","TrialEmailNoticeConfigService","TrialEmailN_InvalidRecipient","项目没有有效的收件人，无法发送邮件","The trial does not have a valid recipient, so the message cannot be sent.","\"TrialEmailN_InvalidRecipient\":\"项目没有有效的收件人，无法发送邮件\"","\"TrialEmailN_InvalidRecipient\":\"The trial does not have a valid recipient, so the message cannot be sent.\""]
["Document","Document","TrialEmailNoticeConfigService","TrialEmailN_EmailTestMessage","项目邮件测试","Trial mail test","\"TrialEmailN_EmailTestMessage\":\"项目邮件测试\"","\"TrialEmailN_EmailTestMessage\":\"Trial mail test\""]
["Document","Document","TrialEmailNoticeConfigService","TrialEmailN_ConfigurationCorrect"," 收到此邮件，代表邮件配置正确","If this email is received, the email configuration is correct.","\"TrialEmailN_ConfigurationCorrect\":\" 收到此邮件，代表邮件配置正确\"","\"TrialEmailN_ConfigurationCorrect\":\"If this email is received, the email configuration is correct.\""]
["Document","Document","TrialEmailNoticeConfigService","TrialEmailN_InvalidSenderEmailConfig","发件人配置错误，请核对服务器地址或者授权码是否填写有误","The sender configuration is incorrect. Please check whether the server address or authorization code is correct or not.","\"TrialEmailN_InvalidSenderEmailConfig\":\"发件人配置错误，请核对服务器地址或者授权码是否填写有误\"","\"TrialEmailN_InvalidSenderEmailConfig\":\"The sender configuration is incorrect. Please check whether the server address or authorization code is correct or not.\""]

{"sheet":"Financial","index":9,"n_rows":12,"n_cols":8,"rows_kept":12}
["外层文件夹","文件夹","文件","字段名","中文","英文"]
[{"$nulls":6},{"$f":"IF(ISBLANK(D2),\"//\"&C3,\"\"\"\"&D2&\"\"\":\"\"\"&E2&\"\"\"\")","v":"//CalculateService"},{"$f":"IF(ISBLANK(D2),\"//\"&C3,\"\"\"\"&D2&\"\"\":\"\"\"&F2&\"\"\"\")","v":"//CalculateService"}]
["Financial","Financial","CalculateService","Cal_VolDataErr","体积数据错误","Volume reward data error.",{"$f":"IF(ISBLANK(D3),\"//\"&C4,\"\"\"\"&D3&\"\"\":\"\"\"&E3&\"\"\"\")","v":"\"Cal_VolDataErr\":\"体积数据错误\""},{"$f":"IF(ISBLANK(D3),\"//\"&C4,\"\"\"\"&D3&\"\"\":\"\"\"&F3&\"\"\"\")","v":"\"Cal_VolDataErr\":\"Volume reward data error.\""}]
["Financial","Financial",{"$nulls":4},"//ExchangeRateService","//ExchangeRateService"]
["Financial","Financial","ExchangeRateService","ExR_SameMthExist","同月的汇率已存在","The exchange rate of the same month already existed.","\"ExR_SameMthExist\":\"同月的汇率已存在\"","\"ExR_SameMthExist\":\"The exchange rate of the same month already existed.\""]
["Financial","Financial","ExchangeRateService","ExR_MthPymtRate","按月付款采用汇率","The exchange rate has been used in monthly payment","\"ExR_MthPymtRate\":\"按月付款采用汇率\"","\"ExR_MthPymtRate\":\"The exchange rate has been used in monthly payment\""]
["Financial","Financial",{"$nulls":4},"//PaymentAdjustmentService","//PaymentAdjustmentService"]
["Financial","Financial","PaymentAdjustmentService","PayAdj_DocPymtLock","医生付款已确认锁定","Doctor payment has confirmed lock","\"PayAdj_DocPymtLock\":\"医生付款已确认锁定\"","\"PayAdj_DocPymtLock\":\"Doctor payment has confirmed lock\""]
["Financial","Financial",{"$nulls":4},"//RankPriceService","//RankPriceService"]
["Financial","Financial","RankPriceService","RP_TitleUsedByRev","此标题已被审稿人付款信息所使用","This title has been used by reviewer payment information","\"RP_TitleUsedByRev\":\"此标题已被审稿人付款信息所使用\"","\"RP_TitleUsedByRev\":\"This title has been used by reviewer payment information\""]
["Financial","Financial",{"$nulls":4},"//TrialRevenuesPriceService","//TrialRevenuesPriceService"]
["Financial","Financial","TrialRevenuesPriceService","TRP_AddMeaningful","请添加有意义的数据","Please add meaningful data","\"TRP_AddMeaningful\":\"请添加有意义的数据\"","\"TRP_AddMeaningful\":\"Please add meaningful data\""]

{"sheet":"ImageAndDoc","index":10,"n_rows":14,"n_cols":8,"rows_kept":14}
["外层文件夹","文件夹","文件","字段名","中文","英文"]
[{"$nulls":6},{"$f":"IF(ISBLANK(D2),\"//\"&C3,\"\"\"\"&D2&\"\"\":\"\"\"&E2&\"\"\"\")","v":"//DicomArchiveService"},{"$f":"IF(ISBLANK(D2),\"//\"&C3,\"\"\"\"&D2&\"\"\":\"\"\"&F2&\"\"\"\")","v":"//DicomArchiveService"}]
["ImageAndDoc","ImageAndDoc","DicomArchiveService","DAS_NoAnonCacheData","未取到缓存匿名化配置数据，上传停止,请联系开发人员核实","The cache data for anonymous config is not obtained, and the upload stops. Please contact the developer to verify.",{"$f":"IF(ISBLANK(D3),\"//\"&C4,\"\"\"\"&D3&\"\"\":\"\"\"&E3&\"\"\"\")","v":"\"DAS_NoAnonCacheData\":\"未取到缓存匿名化配置数据，上传停止,请联系开发人员核实\""},{"$f":"IF(ISBLANK(D3),\"//\"&C4,\"\"\"\"&D3&\"\"\":\"\"\"&F3&\"\"\"\")","v":"\"DAS_NoAnonCacheData\":\"The cache data for anonymous config is not obtained, and the upload stops. Please contact the developer to verify.\""}]
["ImageAndDoc","ImageAndDoc",{"$nulls":4},"//ImageShareService","//ImageShareService"]
["ImageAndDoc","ImageAndDoc","ImageShareService","ISS_NoImgToShare","当前检查没有影像可以分享。 ","There are no images to share for the current study.","\"ISS_NoImgToShare\":\"当前检查没有影像可以分享。 \"","\"ISS_NoImgToShare\":\"There are no images to share for the current study.\""]
["ImageAndDoc","ImageAndDoc","ImageShareService","ISS_ResNotExists","资源不存在。","The request resource wasn’t found.","\"ISS_ResNotExists\":\"资源不存在。\"","\"ISS_ResNotExists\":\"The request resource wasn’t found.\""]
["ImageAndDoc","ImageAndDoc","ImageShareService","ISS_SharePwdError","分享密码错误。","The shared password is incorrect.","\"ISS_SharePwdError\":\"分享密码错误。\"","\"ISS_SharePwdError\":\"The shared password is incorrect.\""]
["ImageAndDoc","ImageAndDoc","ImageShareService","ISS_ShareExpiration","资源分享过期。","Resource sharing expires.","\"ISS_ShareExpiration\":\"资源分享过期。\"","\"ISS_ShareExpiration\":\"Resource sharing expires.\""]
["ImageAndDoc","ImageAndDoc",{"$nulls":4},"//StudyService","//StudyService"]
["ImageAndDoc","ImageAndDoc","StudyService","Study_VisitBeforePrevError","当前访视检查时间{0}不能早于前序访视检查时间{1}，请核对检查数据是否有误","The current visit  check time {0} cannot be earlier than the previous visit check time {1}. Please check whether the check data is correct.","\"Study_VisitBeforePrevError\":\"当前访视检查时间{0}不能早于前序访视检查时间{1}，请核对检查数据是否有误\"","\"Study_VisitBeforePrevError\":\"The current visit  check time {0} cannot be earlier than the previous visit check time {1}. Please check whether the check data is correct.\""]
["ImageAndDoc","ImageAndDoc","StudyService","Study_VisitAfterSubseqError","当前访视检查时间{0}不能晚于该访视之后的检查时间{1}，请核对检查数据是否有误","The current visit check time {0} cannot be later than the visit check time {1} .Please check whether the check data is correct.","\"Study_VisitAfterSubseqError\":\"当前访视检查时间{0}不能晚于该访视之后的检查时间{1}，请核对检查数据是否有误\"","\"Study_VisitAfterSubseqError\":\"The current visit check time {0} cannot be later than the visit check time {1} .Please check whether the check data is correct.\""]
["ImageAndDoc","ImageAndDoc","StudyService","Study_UploadArchiving","当前有人正在上传归档该检查!","Someone is currently uploading and archiving this visit!","\"Study_UploadArchiving\":\"当前有人正在上传归档该检查!\"","\"Study_UploadArchiving\":\"Someone is currently uploading and archiving this visit!\""]
["ImageAndDoc","ImageAndDoc","StudyService","Study_VisitEndedNotAllowed","受试者访视结束，不允许上传!","Subject visit is over, and uploading is not allowed!","\"Study_VisitEndedNotAllowed\":\"受试者访视结束，不允许上传!\"","\"Study_VisitEndedNotAllowed\":\"Subject visit is over, and uploading is not allowed!\""]
["ImageAndDoc","ImageAndDoc","StudyService","Study_ImgAlreadyUploaded","此处不可以上传。当前影像检查已经上传给受试者{0}的{1}","Uploading is not allowed above here.The current image check has been uploaded to {1} of subject {0}","\"Study_ImgAlreadyUploaded\":\"此处不可以上传。当前影像检查已经上传给受试者{0}的{1}\"","\"Study_ImgAlreadyUploaded\":\"Uploading is not allowed above here.The current image check has been uploaded to {1} of subject {0}\""]

{"sheet":"Inspection","index":11,"n_rows":7,"n_cols":8,"rows_kept":7}
["外层文件夹","文件夹","文件","字段名","中文","英文"]
[{"$nulls":6},{"$f":"IF(ISBLANK(D2),\"//\"&C3,\"\"\"\"&D2&\"\"\":\"\"\"&E2&\"\"\"\")","v":"//FrontAuditConfigService"},{"$f":"IF(ISBLANK(D2),\"//\"&C3,\"\"\"\"&D2&\"\"\":\"\"\"&F2&\"\"\"\")","v":"//FrontAuditConfigService"}]
["Inspection","Inspection","FrontAuditConfigService","FrontAudit_IdDup","标识重复","The identifier is duplicated.","\"FrontAudit_IdDup\":\"标识重复\"","\"FrontAudit_IdDup\":\"The identifier is duplicated.\""]
[null,null,"FrontAuditConfigService","FrontAudit_NameDup","名称重复","The name is duplicated .","\"FrontAudit_NameDup\":\"名称重复\"","\"FrontAudit_NameDup\":\"The name is duplicated .\""]
[null,null,"FrontAuditConfigService","FrontAudit_CannotDelSub","存在子类 不能删除","Subclasses exist, cannot delete.","\"FrontAudit_CannotDelSub\":\"存在子类 不能删除\"","\"FrontAudit_CannotDelSub\":\"Subclasses exist, cannot delete.\""]
[{"$nulls":6},"//InspectionService","//InspectionService"]
[null,null,"InspectionService","Inspection_UserDisabled","当前用户已被禁用。","The current user has been disabled.","\"Inspection_UserDisabled\":\"当前用户已被禁用。\"","\"Inspection_UserDisabled\":\"The current user has been disabled.\""]

{"sheet":"Institution","index":12,"n_rows":14,"n_cols":8,"rows_kept":14}
["外层文件夹","文件夹","文件","字段名","中文","英文"]
[{"$nulls":6},{"$f":"IF(ISBLANK(D2),\"//\"&C3,\"\"\"\"&D2&\"\"\":\"\"\"&E2&\"\"\"\")","v":"//CROService"},{"$f":"IF(ISBLANK(D2),\"//\"&C3,\"\"\"\"&D2&\"\"\":\"\"\"&F2&\"\"\"\")","v":"//CROService"}]
["Institution","Institution","CROService","CRO_DupName","已经存在同名的CRO，请确认。","CRO with the same name already exists. Please confirm.",{"$f":"IF(ISBLANK(D3),\"//\"&C4,\"\"\"\"&D3&\"\"\":\"\"\"&E3&\"\"\"\")","v":"\"CRO_DupName\":\"已经存在同名的CRO，请确认。\""},{"$f":"IF(ISBLANK(D3),\"//\"&C4,\"\"\"\"&D3&\"\"\":\"\"\"&F3&\"\"\"\")","v":"\"CRO_DupName\":\"CRO with the same name already exists. Please confirm.\""}]
[null,null,"CROService","CRO_InProject","该CRO已经参与项目，不能被删除。","The CRO has participated in the trial and cannot be deleted.","\"CRO_InProject\":\"该CRO已经参与项目，不能被删除。\"","\"CRO_InProject\":\"The CRO has participated in the trial and cannot be deleted.\""]
[{"$nulls":6},"//HospitalService","//HospitalService"]
[null,null,"HospitalService","Hospital_DupName","已经存在同名的医院，请确认。","Hospital with the same name already exists. Please confirm.","\"Hospital_DupName\":\"已经存在同名的医院，请确认。\"","\"Hospital_DupName\":\"Hospital with the same name already exists. Please confirm.\""]
[null,null,"HospitalService","Hospital_SiteAdded","当前Site已经添加到其他Hospital了。","The current Site has been added to another Hospital.","\"Hospital_SiteAdded\":\"当前Site已经添加到其他Hospital了。\"","\"Hospital_SiteAdded\":\"The current Site has been added to another Hospital.\""]
[null,null,"HospitalService","Hospital_HasDoctors","该医院下已经注册有医生，不可以删除。","There are already doctors registered under the hospital's account and cannot be deleted.","\"Hospital_HasDoctors\":\"该医院下已经注册有医生，不可以删除。\"","\"Hospital_HasDoctors\":\"There are already doctors registered under the hospital's account and cannot be deleted.\""]
[{"$nulls":6},"//SiteService","//SiteService"]
[null,null,"SiteService","Site_DupName","已经存在同名的中心，请确认。","Site with  the same name already exists. Please confirm.","\"Site_DupName\":\"已经存在同名的中心，请确认。\"","\"Site_DupName\":\"Site with  the same name already exists. Please confirm.\""]
[null,null,"SiteService","Site_InProject","该中心已经加入项目，不可以被删除。","This site has been added to the project and cannot be deleted.","\"Site_InProject\":\"该中心已经加入项目，不可以被删除。\"","\"Site_InProject\":\"This site has been added to the project and cannot be deleted.\""]
[{"$nulls":6},"//SponsorService","//SponsorService"]
[null,null,"SponsorService","Sponsor_DupName","已经存在同名的申办方，请确认。","Sponsor with the same name already exists. Please confirm.","\"Sponsor_DupName\":\"已经存在同名的申办方，请确认。\"","\"Sponsor_DupName\":\"Sponsor with the same name already exists. Please confirm.\""]
[null,null,"SponsorService","Sponsor_InProject","该申办方已经加入项目，不允许删除。","The sponsor has been added to the trial and it is not allowed to delete.","\"Sponsor_InProject\":\"该申办方已经加入项目，不允许删除。\"","\"Sponsor_InProject\":\"The sponsor has been added to the trial and it is not allowed to delete.\""]

{"sheet":"Management","index":13,"n_rows":20,"n_cols":8,"rows_kept":20}
["外层文件夹","文件夹","文件","字段名","中文","英文"]
[{"$nulls":6},{"$f":"IF(ISBLANK(D2),\"//\"&C3,\"\"\"\"&D2&\"\"\":\"\"\"&E2&\"\"\"\")","v":"//MenuService"},{"$f":"IF(ISBLANK(D2),\"//\"&C3,\"\"\"\"&D2&\"\"\":\"\"\"&F2&\"\"\"\")","v":"//MenuService"}]
["Management","Management","MenuService","Menu_ParentDupChild","该父节点下已经存在同名的子节点。","A child node with the same name already exists under the parent node.",{"$f":"IF(ISBLANK(D3),\"//\"&C4,\"\"\"\"&D3&\"\"\":\"\"\"&E3&\"\"\"\")","v":"\"Menu_ParentDupChild\":\"该父节点下已经存在同名的子节点。\""},{"$f":"IF(ISBLANK(D3),\"//\"&C4,\"\"\"\"&D3&\"\"\":\"\"\"&F3&\"\"\"\")","v":"\"Menu_ParentDupChild\":\"A child node with the same name already exists under the parent node.\""}]
[null,null,"MenuService","Menu_ChildExist","该节点存在子节点，请在删除子节点后，再删除该节点。","Child nodes already exists under this node . Delete the child nodes before deleting the node.","\"Menu_ChildExist\":\"该节点存在子节点，请在删除子节点后，再删除该节点。\"","\"Menu_ChildExist\":\"Child nodes already exists under this node . Delete the child nodes before deleting the node.\""]
[{"$nulls":6},"//UserService","//UserService"]
[null,null,"UserService","User_UsernameExist","用户名已经存在。","The user name already exists.","\"User_UsernameExist\":\"用户名已经存在。\"","\"User_UsernameExist\":\"The user name already exists.\""]
[null,null,"UserService","User_PhoneDup","该用户类型中已存在具有相同的电话的用户。","A user with the same phone number already exists in this user type.","\"User_PhoneDup\":\"该用户类型中已存在具有相同的电话的用户。\"","\"User_PhoneDup\":\"A user with the same phone number already exists in this user type.\""]
[null,null,"UserService","User_EmailDup","该用户类型中已存在具有相同邮箱的用户。","A user with the same email already exists in this user type.","\"User_EmailDup\":\"该用户类型中已存在具有相同邮箱的用户。\"","\"User_EmailDup\":\"A user with the same email already exists in this user type.\""]
[null,null,"UserService","User_NewOldPwdSame","新密码与旧密码相同。","The new password is the same as the old one.","\"User_NewOldPwdSame\":\"新密码与旧密码相同。\"","\"User_NewOldPwdSame\":\"The new password is the same as the old one.\""]
[null,null,"UserService","User_OldPwdInvalid","旧密码验证失败。","Failed to verify the old password.","\"User_OldPwdInvalid\":\"旧密码验证失败。\"","\"User_OldPwdInvalid\":\"Failed to verify the old password.\""]
[null,null,"UserService","User_LegalEmail","请输入合法的电子邮件。","Please input a legal email.","\"User_LegalEmail\":\"请输入合法的电子邮件。\"","\"User_LegalEmail\":\"Please input a legal email.\""]
[null,null,"UserService","User_VerificationCodeError","验证码错误。","The verification code is wrong.","\"User_VerificationCodeError\":\"验证码错误。\"","\"User_VerificationCodeError\":\"The verification code is wrong.\""]
[null,null,"UserService","User_VerificationCodeExpired","验证码已经过期。","The verification code has expired.","\"User_VerificationCodeExpired\":\"验证码已经过期。\"","\"User_VerificationCodeExpired\":\"The verification code has expired.\""]
[null,null,"UserService","User_CreateFailed","请检查邮箱地址或者联系维护人员, 邮件发送失败, 未能创建账户成功。","Check the email address or contact maintainers. The email fails to be sent and the account cannot be created.","\"User_CreateFailed\":\"请检查邮箱地址或者联系维护人员, 邮件发送失败, 未能创建账户成功。\"","\"User_CreateFailed\":\"Check the email address or contact maintainers. The email fails to be sent and the account cannot be created.\""]
[null,null,"UserService","User_InvalidEmail","请输入一个正确的邮箱。","Please enter a correct E-mail address.","\"User_InvalidEmail\":\"请输入一个正确的邮箱。\"","\"User_InvalidEmail\":\"Please enter a correct E-mail address.\""]
[null,null,"UserService","User_EmailError","邮箱错误。","The email adress is wrong.","\"User_EmailError\":\"邮箱错误。\"","\"User_EmailError\":\"The email adress is wrong.\""]
[null,null,"UserService","User_InProject","该用户已经参加项目，不能够删除。","The user has participated in the trial and cannot be deleted.","\"User_InProject\":\"该用户已经参加项目，不能够删除。\"","\"User_InProject\":\"The user has participated in the trial and cannot be deleted.\""]
[null,null,"UserService","User_Disabled","该用户已经被禁用。","The user has been disabled.","\"User_Disabled\":\"该用户已经被禁用。\"","\"User_Disabled\":\"The user has been disabled.\""]
[{"$nulls":6},"//UserTypeService","//UserTypeService"]
[null,null,"UserTypeService","UserType_InUse","该用户类型中已存在用户，不能删除。","User already exists in that user type, and it cannot be deleted.","\"UserType_InUse\":\"该用户类型中已存在用户，不能删除。\"","\"UserType_InUse\":\"User already exists in that user type, and it cannot be deleted.\""]

{"sheet":"QC","index":14,"n_rows":76,"n_cols":8,"rows_kept":76}
["外层文件夹","文件夹","文件","字段名","中文","英文"]
[{"$nulls":6},{"$f":"IF(ISBLANK(D2),\"//\"&C3,\"\"\"\"&D2&\"\"\":\"\"\"&E2&\"\"\"\")","v":"//QCCommon"},{"$f":"IF(ISBLANK(D2),\"//\"&C3,\"\"\"\"&D2&\"\"\":\"\"\"&F2&\"\"\"\")","v":"//QCCommon"}]
["QC","QC","QCCommon","QCCommon_CannotOperate","CRC已提交影像，不能进行操作。","CRC has submitted the image. Operation is not allowed.",{"$f":"IF(ISBLANK(D3),\"//\"&C4,\"\"\"\"&D3&\"\"\":\"\"\"&E3&\"\"\"\")","v":"\"QCCommon_CannotOperate\":\"CRC已提交影像，不能进行操作。\""},{"$f":"IF(ISBLANK(D3),\"//\"&C4,\"\"\"\"&D3&\"\"\":\"\"\"&F3&\"\"\"\")","v":"\"QCCommon_CannotOperate\":\"CRC has submitted the image. Operation is not allowed.\""}]
[null,null,"QCCommon","QCCommon_NoPermission","您不是该质控任务当前领取人，没有操作权限!","You are not the current recipient of the image QC. No operation authority!","\"QCCommon_NoPermission\":\"您不是该质控任务当前领取人，没有操作权限!\"","\"QCCommon_NoPermission\":\"You are not the current recipient of the image QC. No operation authority!\""]
[null,null,"QCCommon","QCCommon_CheckTimeEarly","当前访视检查时间{0}不能早于前序访视检查时间{1}，请核对检查数据是否有误","The current visit study time {0} cannot be earlier than the previous visit study time {1}. Please check whether the study data is correct.","\"QCCommon_CheckTimeEarly\":\"当前访视检查时间{0}不能早于前序访视检查时间{1}，请核对检查数据是否有误\"","\"QCCommon_CheckTimeEarly\":\"The current visit study time {0} cannot be earlier than the previous visit study time {1}. Please check whether the study data is correct.\""]
[null,null,"QCCommon","QCCommon_CheckTimeLate","当前访视检查时间{0}不能晚于该访视之后的检查时间{1}，请核对检查数据是否有误","The current visit study time {0} cannot be later than the visit study time {1} .Please check whether the study data is correct.","\"QCCommon_CheckTimeLate\":\"当前访视检查时间{0}不能晚于该访视之后的检查时间{1}，请核对检查数据是否有误\"","\"QCCommon_CheckTimeLate\":\"The current visit study time {0} cannot be later than the visit study time {1} .Please check whether the study data is correct.\""]
[{"$nulls":6},"//QCOperationService","//QCOperationService"]
[null,null,"QCOperationService","QCOperation_CheckFirst","请先核查图像，并保存审核问题，然后再发质疑。","Please check the image first and save review questions before query.","\"QCOperation_CheckFirst\":\"请先核查图像，并保存审核问题，然后再发质疑。\"","\"QCOperation_CheckFirst\":\"Please check the image first and save review questions before query.\""]
[null,null,"QCOperationService","QCOperation_QuestionExist","当前访视未关闭的质疑已设置了同意CRC重传影像。请在CRC完成影像重传后，先关闭原质疑，再添加新的质疑。","The unclosed query of the current visit has been set to approve CRC reupload. After CRC has  reuploaded image, please close the original query first and then add a new query.","\"QCOperation_QuestionExist\":\"当前访视未关闭的质疑已设置了同意CRC重传影像。请在CRC完成影像重传后，先关闭原质疑，再添加新的质疑。\"","\"QCOperation_QuestionExist\":\"The unclosed query of the current visit has been set to approve CRC reupload. After CRC has  reuploaded image, please close the original query first and then add a new query.\""]
[null,null,"QCOperationService","QCOperation_QuestionCannotClose","CRC已申请重传或者QC同意重传，不允许关闭该质疑。请在QC拒绝重传申请或者CRC设置重传影像后，再关闭质疑。","CRC has applied for reuploading or QC has agreed to reupload. To close the query is not allowed. Please do not close the query until the QC rejects or the CRC reuploads the image.","\"QCOperation_QuestionCannotClose\":\"CRC已申请重传或者QC同意重传，不允许关闭该质疑。请在QC拒绝重传申请或者CRC设置重传影像后，再关闭质疑。\"","\"QCOperation_QuestionCannotClose\":\"CRC has applied for reuploading or QC has agreed to reupload. To close the query is not allowed. Please do not close the query until the QC rejects or the CRC reuploads the image.\""]
[null,null,"QCOperationService","QCOperation_CloseReason","关闭原因: ","Reason for closing:","\"QCOperation_CloseReason\":\"关闭原因: \"","\"QCOperation_CloseReason\":\"Reason for closing:\""]
[null,null,"QCOperationService","QCOperation_QuestionReplied","当前QC质疑已经回复。","The QC query has been answered.","\"QCOperation_QuestionReplied\":\"当前QC质疑已经回复。\"","\"QCOperation_QuestionReplied\":\"The QC query has been answered.\""]
[null,null,"QCOperationService","QCOperation_NoPermissionReply","您没有权限回复一致性核查对话。","You do not have permission to reply to the data reconciliation conversation.","\"QCOperation_NoPermissionReply\":\"您没有权限回复一致性核查对话。\"","\"QCOperation_NoPermissionReply\":\"You do not have permission to reply to the data reconciliation conversation.\""]
[null,null,"QCOperationService","QCOperation_CannotClose","当前访视处于申请重传状态， 不允许关闭质疑。","The current visit status is CRC request re-upload. The query is not allowed to be closed.","\"QCOperation_CannotClose\":\"当前访视处于申请重传状态， 不允许关闭质疑。\"","\"QCOperation_CannotClose\":\"The current visit status is CRC request re-upload. The query is not allowed to be closed.\""]
[null,null,"QCOperationService","QCOperation_Reason","原因:","Notes:","\"QCOperation_Reason\":\"原因:\"","\"QCOperation_Reason\":\"Notes:\""]
[null,null,"QCOperationService","QCOperation_CannotPass","当前访视处于回退状态,不允许设置一致性核查通过","The current visit is in the return status, and the data reconciliation cannot be set.","\"QCOperation_CannotPass\":\"当前访视处于回退状态,不允许设置一致性核查通过\"","\"QCOperation_CannotPass\":\"The current visit is in the return status, and the data reconciliation cannot be set.\""]
[null,null,"QCOperationService","QCOperation_PassAfterClose","请先关闭一致性核查质疑后，再设置一致性核查通过。","Please close the data reconciliation query first, and then set the data reconciliation pass.","\"QCOperation_PassAfterClose\":\"请先关闭一致性核查质疑后，再设置一致性核查通过。\"","\"QCOperation_PassAfterClose\":\"Please close the data reconciliation query first, and then set the data reconciliation pass.\""]
[null,null,"QCOperationService","QCOperation_Cannotback","当前访视已通过一致性核查，不允许申请重传","The current visit has passed the consistency check and cannot be applied for re-upload.","\"QCOperation_Cannotback\":\"当前访视已通过一致性核查，不允许申请重传\"","\"QCOperation_Cannotback\":\"The current visit has passed the consistency check and cannot be applied for re-upload.\""]
[null,null,"QCOperationService","QCOperation_CRCRollback","CRC申请重传","CRC apples for re-upload.","\"QCOperation_CRCRollback\":\"CRC申请重传\"","\"QCOperation_CRCRollback\":\"CRC apples for re-upload.\""]
[null,null,"QCOperationService","QCOperation_OtherCRC","其他CRC已申请处理，请刷新页面","Other CRCs have applied for processing. Please refresh the page.","\"QCOperation_OtherCRC\":\"其他CRC已申请处理，请刷新页面\"","\"QCOperation_OtherCRC\":\"Other CRCs have applied for processing. Please refresh the page.\""]
[null,null,"QCOperationService","QCOperation_PMReject","PM/APM拒绝一致性核查回退","PM/APM rejected the data reconciliation return.","\"QCOperation_PMReject\":\"PM/APM拒绝一致性核查回退\"","\"QCOperation_PMReject\":\"PM/APM rejected the data reconciliation return.\""]
[null,null,"QCOperationService","QCOperation_NoPermission","您不具备操作权限。","You do not have operation permission.","\"QCOperation_NoPermission\":\"您不具备操作权限。\"","\"QCOperation_NoPermission\":\"You do not have operation permission.\""]
[null,null,"QCOperationService","QCOperation_CannotRollback","当前访视还未进行核查或者核查已通过，不允许设置回退。","If the current visit has not do reconciliation or has passed, setbacks are not allowed.","\"QCOperation_CannotRollback\":\"当前访视还未进行核查或者核查已通过，不允许设置回退。\"","\"QCOperation_CannotRollback\":\"If the current visit has not do reconciliation or has passed, setbacks are not allowed.\""]
[null,null,"QCOperationService","QCOperation_PMAPMConsistency","PM/APM同意一致性核查回退。","PM/APM agrees to the data reconciliation rollback.","\"QCOperation_PMAPMConsistency\":\"PM/APM同意一致性核查回退。\"","\"QCOperation_PMAPMConsistency\":\"PM/APM agrees to the data reconciliation rollback.\""]
[null,null,"QCOperationService","QCOperation_NoModifyAfterSubmit","提交之后，不允许修改!","Once submitted, no modifications are allowed.","\"QCOperation_NoModifyAfterSubmit\":\"提交之后，不允许修改!\"","\"QCOperation_NoModifyAfterSubmit\":\"Once submitted, no modifications are allowed.\""]
[null,null,"QCOperationService","QCOperation_UnresolvedQCQuery","当前访视有质疑未关闭，不允许该操作","Image query of the current visit is not closed. This operation is not allowed.","\"QCOperation_UnresolvedQCQuery\":\"当前访视有质疑未关闭，不允许该操作\"","\"QCOperation_UnresolvedQCQuery\":\"Image query of the current visit is not closed. This operation is not allowed.\""]
[null,null,"QCOperationService","QCOperation_CrcNoDelete","CRC已经提交，不允许删除。","The CRC has been committed and cannot be deleted.","\"QCOperation_CrcNoDelete\":\"CRC已经提交，不允许删除。\"","\"QCOperation_CrcNoDelete\":\"The CRC has been committed and cannot be deleted.\""]
[null,null,"QCOperationService","QCOperation_NoRecipient","您不是该质控任务当前领取人，没有操作权限!","You are not the current recipient of the quality control task, no operation authority!","\"QCOperation_NoRecipient\":\"您不是该质控任务当前领取人，没有操作权限!\"","\"QCOperation_NoRecipient\":\"You are not the current recipient of the quality control task, no operation authority!\""]
[null,null,"QCOperationService","QCOperation_QCImageTaskAlreadyReleased","当前访视的影像质控任务已被原领取人释放。您可以通过“领取”获得","The image QC of the current visit has been released by the original recipient. You can get it by 'claime'.","\"QCOperation_QCImageTaskAlreadyReleased\":\"当前访视的影像质控任务已被原领取人释放。您可以通过“领取”获得\"","\"QCOperation_QCImageTaskAlreadyReleased\":\"The image QC of the current visit has been released by the original recipient. You can get it by 'claime'.\""]
[null,null,"QCOperationService","QCOperation_QCTaskNoAccess","当前访视的影像质控任务已被其他QC领取，不允许领取","The image quality control task of the current visit has been claimed by other QC, so it is not allowed to claim.","\"QCOperation_QCTaskNoAccess\":\"当前访视的影像质控任务已被其他QC领取，不允许领取\"","\"QCOperation_QCTaskNoAccess\":\"The image quality control task of the current visit has been claimed by other QC, so it is not allowed to claim.\""]
[null,null,"QCOperationService","QCOperation_QCConfigFirst","请先配置影像质控审核问题，再领取影像质控任务","Please configure the image QC question before claiming the image QC task.","\"QCOperation_QCConfigFirst\":\"请先配置影像质控审核问题，再领取影像质控任务\"","\"QCOperation_QCConfigFirst\":\"Please configure the image QC question before claiming the image QC task.\""]
[null,null,"QCOperationService","QCOperation_NoQC","项目配置为不审，没有领取QC Task","The trial configuration of image QC was not check, and the QC Task was not be claimed.","\"QCOperation_NoQC\":\"项目配置为不审，没有领取QC Task\"","\"QCOperation_NoQC\":\"The trial configuration of image QC was not check, and the QC Task was not be claimed.\""]
[null,null,"QCOperationService","QCOperation_InitialAuditPassed","初审已通过，不能继续领取","The first review has passed, continue to receive can not be allowed.","\"QCOperation_InitialAuditPassed\":\"初审已通过，不能继续领取\"","\"QCOperation_InitialAuditPassed\":\"The first review has passed, continue to receive can not be allowed.\""]
[null,null,"QCOperationService","QCOperation_NoSingleAudit","项目配置为单审,不满足Submmit State：已提交 或者 Audit State：待审核/审核中, 不允许领取,请刷新界面","The trial is configured with single image QC , does not meet Submmit State: Submitted or Audit State: pending QC/ in QC, not allowed to collect.Please refresh the page.","\"QCOperation_NoSingleAudit\":\"项目配置为单审,不满足Submmit State：已提交 或者 Audit State：待审核/审核中, 不允许领取,请刷新界面\"","\"QCOperation_NoSingleAudit\":\"The trial is configured with single image QC , does not meet Submmit State: Submitted or Audit State: pending QC/ in QC, not allowed to collect.Please refresh the page.\""]
[null,null,"QCOperationService","QCOperation_NoSameReviewer","复审不能和初审是同一个人","The secondary QC cannot be the same person as the primary QC.",{"$f":"IF(ISBLANK(D35),\"//\"&C36,\"\"\"\"&D35&\"\"\":\"\"\"&E35&\"\"\"\")","v":"\"QCOperation_NoSameReviewer\":\"复审不能和初审是同一个人\""},{"$f":"IF(ISBLANK(D35),\"//\"&C36,\"\"\"\"&D35&\"\"\":\"\"\"&F35&\"\"\"\")","v":"\"QCOperation_NoSameReviewer\":\"The secondary QC cannot be the same person as the primary QC.\""}]
[null,null,"QCOperationService","QCOperation_NoSecondaryAudit","项目配置为复审，不满足提交状态：已提交或者审核状态：待审核/QC中, 不允许领取,请刷新界面","The trial is configured withr double image QC , does not meet Submmit State: Submitted or Audit State: pending review/ in QC, not allowed to collect.Please refresh the page.","\"QCOperation_NoSecondaryAudit\":\"项目配置为复审，不满足提交状态：已提交或者审核状态：待审核/QC中, 不允许领取,请刷新界面\"","\"QCOperation_NoSecondaryAudit\":\"The trial is configured withr double image QC , does not meet Submmit State: Submitted or Audit State: pending review/ in QC, not allowed to collect.Please refresh the page.\""]
[null,null,"QCOperationService","QCOperation_NoTaskAccess","您不是该质控任务当前领取人，没有操作权限!","You are not the current recipient of the quality control task, no operation authority!","\"QCOperation_NoTaskAccess\":\"您不是该质控任务当前领取人，没有操作权限!\"","\"QCOperation_NoTaskAccess\":\"You are not the current recipient of the quality control task, no operation authority!\""]
[null,null,"QCOperationService","QCOperation_NoQCFunction","项目配置影像质控为不审，不需要取消任务功能","The project configuration of image QC process was not check, so there is no need to cancel the task function.","\"QCOperation_NoQCFunction\":\"项目配置影像质控为不审，不需要取消任务功能\"","\"QCOperation_NoQCFunction\":\"The project configuration of image QC process was not check, so there is no need to cancel the task function.\""]
[null,null,"QCOperationService","QCOperation_NoTaskOwner","当前访视影像质控任务没有当前领取人，不能释放。","The current visiting image QC has not been claimed by anyone, and cannot been released.","\"QCOperation_NoTaskOwner\":\"当前访视影像质控任务没有当前领取人，不能释放。\"","\"QCOperation_NoTaskOwner\":\"The current visiting image QC has not been claimed by anyone, and cannot been released.\""]
[null,null,"QCOperationService","QCOperation_DiseaseProgressConfirmation","当前访视要求进行疾病进展确认。请在提交当前访视前，先处理未提交的前序访视：{0}。","Current visit required PD Confirmation. Please process the unsubmitted prior visit before submitting the current visit: {0}.","\"QCOperation_DiseaseProgressConfirmation\":\"当前访视要求进行疾病进展确认。请在提交当前访视前，先处理未提交的前序访视：{0}。\"","\"QCOperation_DiseaseProgressConfirmation\":\"Current visit required PD Confirmation. Please process the unsubmitted prior visit before submitting the current visit: {0}.\""]
[null,null,"QCOperationService","QCOperation_UnsubmittedVisits","在提交当前访视后，请尽快处理尚未提交的前序访视：{0}。"," After submitting the current visit, please as soon as possible process any prior visits that have not been submitted: {0}.","\"QCOperation_UnsubmittedVisits\":\"在提交当前访视后，请尽快处理尚未提交的前序访视：{0}。\"","\"QCOperation_UnsubmittedVisits\":\" After submitting the current visit, please as soon as possible process any prior visits that have not been submitted: {0}.\""]
[null,null,"QCOperationService","QCOperation_NoBaselineData","基线没有临床数据，确认提交？","No clinical data at baseline, confirm to submit?","\"QCOperation_NoBaselineData\":\"基线没有临床数据，确认提交？\"","\"QCOperation_NoBaselineData\":\"No clinical data at baseline, confirm to submit?\""]
[null,null,"QCOperationService","QCOperation_NoImageData","有访视未上传任何Dicom/非Dicom影像数据，不允许提交","Dicom/ Non-dicom image data has not been uploaded. Submission is not allowed.","\"QCOperation_NoImageData\":\"有访视未上传任何Dicom/非Dicom影像数据，不允许提交\"","\"QCOperation_NoImageData\":\"Dicom/ Non-dicom image data has not been uploaded. Submission is not allowed.\""]
[null,null,"QCOperationService","QCOperation_ImagesSubmitted","当前访视的影像数据，已经由其他CRC提交。","The image data of the current visit has been submitted by another CRC.","\"QCOperation_ImagesSubmitted\":\"当前访视的影像数据，已经由其他CRC提交。\"","\"QCOperation_ImagesSubmitted\":\"The image data of the current visit has been submitted by another CRC.\""]
[null,null,"QCOperationService","QCOperation_BatchImagesSubmitted","当前批量提交访视的影像数据，其中部分已由其他CRC提交。","The visit image data is currently submitted in batches, part of which has been submitted by other CRCs.","\"QCOperation_BatchImagesSubmitted\":\"当前批量提交访视的影像数据，其中部分已由其他CRC提交。\"","\"QCOperation_BatchImagesSubmitted\":\"The visit image data is currently submitted in batches, part of which has been submitted by other CRCs.\""]
[null,null,"QCOperationService","QCOperation_MissingBaselineDate","项目配置了需要填写访视基准日期。但是受试者没有填写访视基准日期，不允许提交","The trial is configured with the visit start date, but the visit start date for the subject is not filled. Submittion is not allowed.","\"QCOperation_MissingBaselineDate\":\"项目配置了需要填写访视基准日期。但是受试者没有填写访视基准日期，不允许提交\"","\"QCOperation_MissingBaselineDate\":\"The trial is configured with the visit start date, but the visit start date for the subject is not filled. Submittion is not allowed.\""]
[null,null,"QCOperationService","QCOperation_RemoveItem","您已经被移出项目，没有操作权限。","You have been removed from the trial and have no operation rights.","\"QCOperation_RemoveItem\":\"您已经被移出项目，没有操作权限。\"","\"QCOperation_RemoveItem\":\"You have been removed from the trial and have no operation rights.\""]
[null,null,"QCOperationService","QCOperation_QCNotClosed","当前访视有影像质控质疑未关闭，不能进行此操作。","The QC query has not been closed for the current visit. This operation cannot be performed.","\"QCOperation_QCNotClosed\":\"当前访视有影像质控质疑未关闭，不能进行此操作。\"","\"QCOperation_QCNotClosed\":\"The QC query has not been closed for the current visit. This operation cannot be performed.\""]
[null,null,"QCOperationService","QCOperation_NoQCNeeded","项目配置影像质控为不审，不需要设置为影像质控通过。","The trial configuration of image QC was no. No need to set image QC as pass.","\"QCOperation_NoQCNeeded\":\"项目配置影像质控为不审，不需要设置为影像质控通过。\"","\"QCOperation_NoQCNeeded\":\"The trial configuration of image QC was no. No need to set image QC as pass.\""]
[null,null,"QCOperationService","QCOperation_QCNotSaved","影像质控审核问题没有保存，不能进行此操作。","Image QC question is not saved. This operation is not allowed.","\"QCOperation_QCNotSaved\":\"影像质控审核问题没有保存，不能进行此操作。\"","\"QCOperation_QCNotSaved\":\"Image QC question is not saved. This operation is not allowed.\""]
[null,null,"QCOperationService","QCOperation_NotChangePass","项目配置影像质控为单审，当前访视影像质控任务不能从当前审核状态变更到 审核通过。","The trial configuration of image QC process was double check, so the current image QC task cannot change from the current state to pass.","\"QCOperation_NotChangePass\":\"项目配置影像质控为单审，当前访视影像质控任务不能从当前审核状态变更到 审核通过。\"","\"QCOperation_NotChangePass\":\"The trial configuration of image QC process was double check, so the current image QC task cannot change from the current state to pass.\""]
[null,null,"QCOperationService","QCOperation_CannotChangeToPass","项目配置影像质控为双审。当前审核状态为 {0}，不能变更到 审核通过。","The trial configuration of image QC process was double check. The current audit state is {0}, which cannot be changed to  approved.","\"QCOperation_CannotChangeToPass\":\"项目配置影像质控为双审。当前审核状态为 {0}，不能变更到 审核通过。\"","\"QCOperation_CannotChangeToPass\":\"The trial configuration of image QC process was double check. The current audit state is {0}, which cannot be changed to  approved.\""]
[null,null,"QCOperationService","QCOperation_NoQCNeededNotEnd","项目配置影像质控为不审，不允许设置影像质控终止。","The trial configuration of image QC process was not check, and setting image quality control termination is not allowed.","\"QCOperation_NoQCNeededNotEnd\":\"项目配置影像质控为不审，不允许设置影像质控终止。\"","\"QCOperation_NoQCNeededNotEnd\":\"The trial configuration of image QC process was not check, and setting image quality control termination is not allowed.\""]
[null,null,"QCOperationService","QCOperation_CannotChangeToStop","项目配置影像质控为单审，当前审核状态不为 In Primary QC，不能变更到 审核终止","The trial configuration of image QC process was single check, and the current review state is not In Primary QC and cannot be changed to the QC termination.","\"QCOperation_CannotChangeToStop\":\"项目配置影像质控为单审，当前审核状态不为 In Primary QC，不能变更到 审核终止\"","\"QCOperation_CannotChangeToStop\":\"The trial configuration of image QC process was single check, and the current review state is not In Primary QC and cannot be changed to the QC termination.\""]
[null,null,"QCOperationService","QCOperation_CannotChangeStop","项目配置影像质控为双审，当前审核状态为 {0}，不能变更到 审核终止","The trial configuration of image QC process was double check, and the current review state is {0} and cannot be changed to the QC termination.","\"QCOperation_CannotChangeStop\":\"项目配置影像质控为双审，当前审核状态为 {0}，不能变更到 审核终止\"","\"QCOperation_CannotChangeStop\":\"The trial configuration of image QC process was double check, and the current review state is {0} and cannot be changed to the QC termination.\""]
[null,null,"QCOperationService","QCOperation_InvalidResend","当前重传状态不为QC同意重传，不允许重传","The current reupload state is not QC agree, so reuploading is not allowed.","\"QCOperation_InvalidResend\":\"当前重传状态不为QC同意重传，不允许重传\"","\"QCOperation_InvalidResend\":\"The current reupload state is not QC agree, so reuploading is not allowed.\""]
[null,null,"QCOperationService","QCOperation_NoResendNeeded","不审操作，不会有需要重传的操作!","No check operation, there will be no need to reupload!","\"QCOperation_NoResendNeeded\":\"不审操作，不会有需要重传的操作!\"","\"QCOperation_NoResendNeeded\":\"No check operation, there will be no need to reupload!\""]
[null,null,"QCOperationService","QCOperation_InvalidAgreeResend","当前重传状态不为CRC申请重传，不允许设置同意重传","The current re-upload- status is  not CRC requested and the approve of reuploading cannot be set.","\"QCOperation_InvalidAgreeResend\":\"当前重传状态不为CRC申请重传，不允许设置同意重传\"","\"QCOperation_InvalidAgreeResend\":\"The current re-upload- status is  not CRC requested and the approve of reuploading cannot be set.\""]
[null,null,"QCOperationService","QCOperation_CannotAgreeResend","当前访视,有一个未关闭的质疑 QC设置了同意重传，CRC还未完成上传，当前不允许再次设置","At the current visit, there is an unclosed query that QC set to agree to reupload, CRC has not uploaded, currently is not allowed to set again.","\"QCOperation_CannotAgreeResend\":\"当前访视,有一个未关闭的质疑 QC设置了同意重传，CRC还未完成上传，当前不允许再次设置\"","\"QCOperation_CannotAgreeResend\":\"At the current visit, there is an unclosed query that QC set to agree to reupload, CRC has not uploaded, currently is not allowed to set again.\""]
[null,null,"QCOperationService","QCOperation_AgreeResend","QC同意重传","QC agrees to re-upload.","\"QCOperation_AgreeResend\":\"QC同意重传\"","\"QCOperation_AgreeResend\":\"QC agrees to re-upload.\""]
[null,null,"QCOperationService","QCOperation_InvalidCompleteResend","当前重传状态不为QC同意重传，不允许设置重传完成","The current reupload status is not QC approved, setting reuploading completion is not allowed.","\"QCOperation_InvalidCompleteResend\":\"当前重传状态不为QC同意重传，不允许设置重传完成\"","\"QCOperation_InvalidCompleteResend\":\"The current reupload status is not QC approved, setting reuploading completion is not allowed.\""]
[null,null,"QCOperationService","QCOperation_NoImageNotAllowed","当前没有影像，不允许设置重传完成","No image is currently available. Setting reuploaded is not allowed.","\"QCOperation_NoImageNotAllowed\":\"当前没有影像，不允许设置重传完成\"","\"QCOperation_NoImageNotAllowed\":\"No image is currently available. Setting reuploaded is not allowed.\""]
[null,null,"QCOperationService","QCOperation_CRCTransferCompleted","CRC已重传完成","CRC reuploading has been completed. ","\"QCOperation_CRCTransferCompleted\":\"CRC已重传完成\"","\"QCOperation_CRCTransferCompleted\":\"CRC reuploading has been completed. \""]
[null,null,"QCOperationService","QCOperation_InvalidTransferStatus","当前质疑重传状态不为初始状态|CRC重传完成状态，不允许申请重传","The current query re-upload status is not the initial| CRC re-uploaded. Application for re-uploading is not allowed","\"QCOperation_InvalidTransferStatus\":\"当前质疑重传状态不为初始状态|CRC重传完成状态，不允许申请重传\"","\"QCOperation_InvalidTransferStatus\":\"The current query re-upload status is not the initial| CRC re-uploaded. Application for re-uploading is not allowed\""]
[null,null,"QCOperationService","QCOperation_CRCTransfer","CRC申请重传/上传影像","CRC requests to reupload/upload images.","\"QCOperation_CRCTransfer\":\"CRC申请重传/上传影像\"","\"QCOperation_CRCTransfer\":\"CRC requests to reupload/upload images.\""]
[null,null,"QCOperationService","QCOperation_CannotModifyConfirmation","该访视已提交，不能修改入组确认状态","The visit has been submitted, and the  enrollment confirmation state cannot be modified.","\"QCOperation_CannotModifyConfirmation\":\"该访视已提交，不能修改入组确认状态\"","\"QCOperation_CannotModifyConfirmation\":\"The visit has been submitted, and the  enrollment confirmation state cannot be modified.\""]
[null,null,"QCOperationService","QCOperation_CannotModifyPDStatus","该访视为回退访视，不允许修改PD确认状态","This visit status is return back. Modification of PD Confirmation status is not allowed.","\"QCOperation_CannotModifyPDStatus\":\"该访视为回退访视，不允许修改PD确认状态\"","\"QCOperation_CannotModifyPDStatus\":\"This visit status is return back. Modification of PD Confirmation status is not allowed.\""]
[null,null,"QCOperationService","QCOperation_ForwardingFailed","转发影像失败。","Failed to forward the image:","\"QCOperation_ForwardingFailed\":\"转发影像失败。\"","\"QCOperation_ForwardingFailed\":\"Failed to forward the image:\""]
[{"$nulls":6},"//QCQuestionService","//QCQuestionService"]
[null,null,"QCQuestionService","QCQuestion_DuplicateIndexFailed","序号重复,操作失败","Operation failed because the serial number is repeated.","\"QCQuestion_DuplicateIndexFailed\":\"序号重复,操作失败\"","\"QCQuestion_DuplicateIndexFailed\":\"Operation failed because the serial number is repeated.\""]
[null,null,"QCQuestionService","QCQuestion_HasChildQuestion","当前任务存在子问题,删除失败","The current task has a sub-question. Deletion failed.","\"QCQuestion_HasChildQuestion\":\"当前任务存在子问题,删除失败\"","\"QCQuestion_HasChildQuestion\":\"The current task has a sub-question. Deletion failed.\""]
[{"$nulls":6},"//TrialQCQuestionService","//TrialQCQuestionService"]
[null,null,"TrialQCQuestionService","TrialQCQuestion_TemplateConfirmed","影像质控审核问题模板已经确认，不允许操作。","Image QC question template has been confirmed. No operation is allowed.","\"TrialQCQuestion_TemplateConfirmed\":\"影像质控审核问题模板已经确认，不允许操作。\"","\"TrialQCQuestion_TemplateConfirmed\":\"Image QC question template has been confirmed. No operation is allowed.\""]
[null,null,"TrialQCQuestionService","TrialQCQuestion_DuplicateIndexFailed","序号重复,操作失败","Operation failed because the serial number is repeated.","\"TrialQCQuestion_DuplicateIndexFailed\":\"序号重复,操作失败\"","\"TrialQCQuestion_DuplicateIndexFailed\":\"Operation failed because the serial number is repeated.\""]
[null,null,"TrialQCQuestionService","TrialQCQuestion_DeleteChildFirst","请在删除父问题前，请先删除引用该父问题的子问题。","Before deleting the parent question, delete the child question that references the parent question.","\"TrialQCQuestion_DeleteChildFirst\":\"请在删除父问题前，请先删除引用该父问题的子问题。\"","\"TrialQCQuestion_DeleteChildFirst\":\"Before deleting the parent question, delete the child question that references the parent question.\""]
[null,null,"TrialQCQuestionService","TrialQCQuestion_ReferencedByQCProcess","该审核问题已被影像质控过程引用，不允许删除","This review question has been cited by the image QC. Deletion is not allowed.","\"TrialQCQuestion_ReferencedByQCProcess\":\"该审核问题已被影像质控过程引用，不允许删除\"","\"TrialQCQuestion_ReferencedByQCProcess\":\"This review question has been cited by the image QC. Deletion is not allowed.\""]

{"sheet":"ReadingAndReport","index":15,"n_rows":2,"n_cols":8,"rows_kept":2}
["外层文件夹","文件夹","文件","字段名","中文","英文"]
[{"$nulls":6},{"$f":"IF(ISBLANK(D2),\"//\"&C3,\"'\"&D2&\"':'\"&E2&\"'\")","v":"//"},{"$f":"IF(ISBLANK(D2),\"//\"&C3,\"'\"&D2&\"':'\"&F2&\"'\")","v":"//"}]

{"sheet":"SiteSurvey","index":16,"n_rows":27,"n_cols":8,"rows_kept":27}
["外层文件夹","文件夹","文件","字段名","中文","英文"]
[{"$nulls":6},{"$f":"IF(ISBLANK(D2),\"//\"&C3,\"\"\"\"&D2&\"\"\":\"\"\"&E2&\"\"\"\")","v":"//TrialSiteEquipmentSurveyService"},{"$f":"IF(ISBLANK(D2),\"//\"&C3,\"\"\"\"&D2&\"\"\":\"\"\"&F2&\"\"\"\")","v":"//TrialSiteEquipmentSurveyService"}]
["SiteSurvey","SiteSurvey","TrialSiteEquipmentSurveyService","TrialSiteEquipment_Locked","已锁定,不允许操作","Locked and operation is not allowed.",{"$f":"IF(ISBLANK(D3),\"//\"&C4,\"\"\"\"&D3&\"\"\":\"\"\"&E3&\"\"\"\")","v":"\"TrialSiteEquipment_Locked\":\"已锁定,不允许操作\""},{"$f":"IF(ISBLANK(D3),\"//\"&C4,\"\"\"\"&D3&\"\"\":\"\"\"&F3&\"\"\"\")","v":"\"TrialSiteEquipment_Locked\":\"Locked and operation is not allowed.\""}]
["SiteSurvey","SiteSurvey",{"$nulls":4},"//TrialSiteSurveyService","//TrialSiteSurveyService"]
["SiteSurvey","SiteSurvey","TrialSiteSurveyService","TrialSiteSurvey_InvalidEmail","请输入正确的邮箱地址。","Please enter the correct email address.","\"TrialSiteSurvey_InvalidEmail\":\"请输入正确的邮箱地址。\"","\"TrialSiteSurvey_InvalidEmail\":\"Please enter the correct email address.\""]
["SiteSurvey","SiteSurvey","TrialSiteSurveyService","TrialSiteSurvey_WrongVerificationCode","验证码错误。","The verification code is incorrect.","\"TrialSiteSurvey_WrongVerificationCode\":\"验证码错误。\"","\"TrialSiteSurvey_WrongVerificationCode\":\"The verification code is incorrect.\""]
["SiteSurvey","SiteSurvey","TrialSiteSurveyService","TrialSiteSurvey_ExpiredVerificationCode","验证码已经过期。","The verification code has expired.","\"TrialSiteSurvey_ExpiredVerificationCode\":\"验证码已经过期。\"","\"TrialSiteSurvey_ExpiredVerificationCode\":\"The verification code has expired.\""]
["SiteSurvey","SiteSurvey","TrialSiteSurveyService","TrialSiteSurvey_NoRecordToUpdate","该中心不存在该交接人的中心调研记录表,不允许选择更新。","The site does not have a site survey record for the transferor , so it is not allowed to choose to update.","\"TrialSiteSurvey_NoRecordToUpdate\":\"该中心不存在该交接人的中心调研记录表,不允许选择更新。\"","\"TrialSiteSurvey_NoRecordToUpdate\":\"The site does not have a site survey record for the transferor , so it is not allowed to choose to update.\""]
["SiteSurvey","SiteSurvey","TrialSiteSurveyService","TrialSiteSurvey_RecordUnderReview","您的中心调研记录正在审核中，不允许进行更新操作。若需要更新，请在驳回后进行操作。","Your site survey record is in review and cannot be updated. If you need to update, please do so after rejection.","\"TrialSiteSurvey_RecordUnderReview\":\"您的中心调研记录正在审核中，不允许进行更新操作。若需要更新，请在驳回后进行操作。\"","\"TrialSiteSurvey_RecordUnderReview\":\"Your site survey record is in review and cannot be updated. If you need to update, please do so after rejection.\""]
["SiteSurvey","SiteSurvey","TrialSiteSurveyService","TrialSiteSurvey_LockedByCurrentUser","当前中心中，您提交调研记录表已锁定，不允许更新其他人邮箱调研记录。","In the current site, the submitted survey record has been locked. Updation of other people's email survey records is not allowed.","\"TrialSiteSurvey_LockedByCurrentUser\":\"当前中心中，您提交调研记录表已锁定，不允许更新其他人邮箱调研记录。\"","\"TrialSiteSurvey_LockedByCurrentUser\":\"In the current site, the submitted survey record has been locked. Updation of other people's email survey records is not allowed.\""]
["SiteSurvey","SiteSurvey","TrialSiteSurveyService","TrialSiteSurvey_LockedByOtherUsers","当前中心，您提交的调研记录表已锁定。当前存在其他人员提交的调研记录表未锁定，不允许更新您之前提交的调研记录。","The submitted survey record of the current site has been locked. Currently, the survey record submitted by other personnel is not locked. Updation of the survey submitted before is not allowed.","\"TrialSiteSurvey_LockedByOtherUsers\":\"当前中心，您提交的调研记录表已锁定。当前存在其他人员提交的调研记录表未锁定，不允许更新您之前提交的调研记录。\"","\"TrialSiteSurvey_LockedByOtherUsers\":\"The submitted survey record of the current site has been locked. Currently, the survey record submitted by other personnel is not locked. Updation of the survey submitted before is not allowed.\""]
["SiteSurvey","SiteSurvey","TrialSiteSurveyService","TrialSiteSurvey_UnlockedRecordsExist","当前中心存在未锁定的调研记录，不允许更新已锁定的调研记录。","The current site has unlocked survey records. Locked survey records cannot be updated.","\"TrialSiteSurvey_UnlockedRecordsExist\":\"当前中心存在未锁定的调研记录，不允许更新已锁定的调研记录。\"","\"TrialSiteSurvey_UnlockedRecordsExist\":\"The current site has unlocked survey records. Locked survey records cannot be updated.\""]
["SiteSurvey","SiteSurvey","TrialSiteSurveyService","TrialSiteSurvey_NonLatestLockedRecord","该邮箱{0}对应的调查表不是最新锁定的记录，不允许更新！","The site survey corresponding to the mailbox {0} is not the latest. Updation is not allowed","\"TrialSiteSurvey_NonLatestLockedRecord\":\"该邮箱{0}对应的调查表不是最新锁定的记录，不允许更新！\"","\"TrialSiteSurvey_NonLatestLockedRecord\":\"The site survey corresponding to the mailbox {0} is not the latest. Updation is not allowed\""]
["SiteSurvey","SiteSurvey","TrialSiteSurveyService","TrialSiteSurvey_AlreadyFilledByOtherUsers","该中心下已经有其他用户已填写的调研表，您不被允许继续填写","There are already survey filled out by other users under this site. You are not allowed to fill them out","\"TrialSiteSurvey_AlreadyFilledByOtherUsers\":\"该中心下已经有其他用户已填写的调研表，您不被允许继续填写\"","\"TrialSiteSurvey_AlreadyFilledByOtherUsers\":\"There are already survey filled out by other users under this site. You are not allowed to fill them out\""]
["SiteSurvey","SiteSurvey","TrialSiteSurveyService","TrialSiteSurvey_Locked","中心调研已锁定,不允许操作。","The site survey has been locked, and no operation is allowed.","\"TrialSiteSurvey_Locked\":\"中心调研已锁定,不允许操作。\"","\"TrialSiteSurvey_Locked\":\"The site survey has been locked, and no operation is allowed.\""]
["SiteSurvey","SiteSurvey","TrialSiteSurveyService","TrialSiteSurvey_IRCNotification","[来自展影IRC] [{0}] 关于中心调研审批的提醒","[from Extensive Imaging IRC] A reminder about the site survey approval.","\"TrialSiteSurvey_IRCNotification\":\"[来自展影IRC] [{0}] 关于中心调研审批的提醒\"","\"TrialSiteSurvey_IRCNotification\":\"[from Extensive Imaging IRC] A reminder about the site survey approval.\""]
["SiteSurvey","SiteSurvey","TrialSiteSurveyService","TrialSiteSurvey_CancelUnsubmittedRecord","只允许废除未提交的记录。","Only unsubmitted records are allowed to be repealed.","\"TrialSiteSurvey_CancelUnsubmittedRecord\":\"只允许废除未提交的记录。\"","\"TrialSiteSurvey_CancelUnsubmittedRecord\":\"Only unsubmitted records are allowed to be repealed.\""]
["SiteSurvey","SiteSurvey","TrialSiteSurveyService","TrialSiteSurvey_NoAdminAcces","不允许管理员操作。","The operation is not allowed by the administrator.","\"TrialSiteSurvey_NoAdminAcces\":\"不允许管理员操作。\"","\"TrialSiteSurvey_NoAdminAcces\":\"The operation is not allowed by the administrator.\""]
["SiteSurvey","SiteSurvey","TrialSiteSurveyService","TrialSiteSurvey_FailedToGenerateAccountId","生成账户Id 未取到值，请排查","If no value is obtained for the generated account Id. Please check.","\"TrialSiteSurvey_FailedToGenerateAccountId\":\"生成账户Id 未取到值，请排查\"","\"TrialSiteSurvey_FailedToGenerateAccountId\":\"If no value is obtained for the generated account Id. Please check.\""]
["SiteSurvey","SiteSurvey","TrialSiteSurveyService","TrialSiteSurvey_IRCInvitation","[来自展影IRC] [{0}] 邀请信","[from Extensive Imaging IRC][{0}] Invitation letter","\"TrialSiteSurvey_IRCInvitation\":\"[来自展影IRC] [{0}] 邀请信\"","\"TrialSiteSurvey_IRCInvitation\":\"[from Extensive Imaging IRC][{0}] Invitation letter\""]
["SiteSurvey","SiteSurvey","TrialSiteSurveyService","TrialSiteSurvey_IRCInvitationContent"," 您好，展影医疗作为 实验方案号：{0} 项目的IRC供应商，诚邀您参加该项目IRC相关工作，欢迎您提供指导和建议，非常感谢！","Hello, as the IRC supplier of experiment plan No. {0} trial, Extensive Imaging sincerely invites you to participate in the IRC related work of this project. Your guidance and suggestions are welcome.","\"TrialSiteSurvey_IRCInvitationContent\":\" 您好，展影医疗作为 实验方案号：{0} 项目的IRC供应商，诚邀您参加该项目IRC相关工作，欢迎您提供指导和建议，非常感谢！\"","\"TrialSiteSurvey_IRCInvitationContent\":\"Hello, as the IRC supplier of experiment plan No. {0} trial, Extensive Imaging sincerely invites you to participate in the IRC related work of this project. Your guidance and suggestions are welcome.\""]
["SiteSurvey","SiteSurvey","TrialSiteSurveyService","TrialSiteSurvey_ViewAndConfirm","查看并确认","Check and confirm","\"TrialSiteSurvey_ViewAndConfirm\":\"查看并确认\"","\"TrialSiteSurvey_ViewAndConfirm\":\"Check and confirm\""]
["SiteSurvey","SiteSurvey",{"$nulls":4},"//TrialSiteUserSurveyService","//TrialSiteUserSurveyService"]
["SiteSurvey","SiteSurvey","TrialSiteUserSurveyService","TrialSiteUser_Locked","已锁定,不允许操作","Locked and not allowed to operate.","\"TrialSiteUser_Locked\":\"已锁定,不允许操作\"","\"TrialSiteUser_Locked\":\"Locked and not allowed to operate.\""]
["SiteSurvey","SiteSurvey","TrialSiteUserSurveyService","TrialSiteUser_InconsistentInfo","该邮件地址在系统中所对应的用户为 {0}, 电话号码是 {1}。请将所输入的信息修改为与系统一致后，再保存。","The corresponding user of this email address is {0}, and the phone number is {1}. Please modify the inputted information and make it consistent with that already in the system, and then save.","\"TrialSiteUser_InconsistentInfo\":\"该邮件地址在系统中所对应的用户为 {0}, 电话号码是 {1}。请将所输入的信息修改为与系统一致后，再保存。\"","\"TrialSiteUser_InconsistentInfo\":\"The corresponding user of this email address is {0}, and the phone number is {1}. Please modify the inputted information and make it consistent with that already in the system, and then save.\""]
["SiteSurvey","SiteSurvey","TrialSiteUserSurveyService","TrialSiteUser_NoTestUserForFormal","正式类型 、培训类型的项目 不允许加入测试用户","Formal and training triala are not allowed to add test users.","\"TrialSiteUser_NoTestUserForFormal\":\"正式类型 、培训类型的项目 不允许加入测试用户\"","\"TrialSiteUser_NoTestUserForFormal\":\"Formal and training triala are not allowed to add test users.\""]
["SiteSurvey","SiteSurvey","TrialSiteUserSurveyService","TrialSiteUser_NoFormalUserForTest","测试项目  不允许加入正式用户","It is the test project that regular users are not allowed in.","\"TrialSiteUser_NoFormalUserForTest\":\"测试项目  不允许加入正式用户\"","\"TrialSiteUser_NoFormalUserForTest\":\"It is the test project that regular users are not allowed in.\""]

{"sheet":"Stat","index":17,"n_rows":3,"n_cols":8,"rows_kept":3}
["外层文件夹","文件夹","文件","字段名","中文","英文"]
[{"$nulls":6},"//QCCommon","//QCCommon"]
["Stat","Stat"]

{"sheet":"TrialSiteUser","index":18,"n_rows":51,"n_cols":8,"rows_kept":51}
["外层文件夹","文件夹","文件","字段名","中文","英文"]
[{"$nulls":6},{"$f":"IF(ISBLANK(D2),\"//\"&C3,\"\"\"\"&D2&\"\"\":\"\"\"&E2&\"\"\"\")","v":"//TrialConfigService"},{"$f":"IF(ISBLANK(D2),\"//\"&C3,\"\"\"\"&D2&\"\"\":\"\"\"&F2&\"\"\"\")","v":"//TrialConfigService"}]
["TrialSiteUser","TrialSiteUser","TrialConfigService","TrialConfig_JudgeTaskFail","有裁判问题未配置产生裁判阅片任务的条件,操作失败！","There are adjudication questions that the conditions for generating adjudication review read are not configured. Operation failed!",{"$f":"IF(ISBLANK(D3),\"//\"&C4,\"\"\"\"&D3&\"\"\":\"\"\"&E3&\"\"\"\")","v":"\"TrialConfig_JudgeTaskFail\":\"有裁判问题未配置产生裁判阅片任务的条件,操作失败！\""},{"$f":"IF(ISBLANK(D3),\"//\"&C4,\"\"\"\"&D3&\"\"\":\"\"\"&F3&\"\"\"\")","v":"\"TrialConfig_JudgeTaskFail\":\"There are adjudication questions that the conditions for generating adjudication review read are not configured. Operation failed!\""}]
["TrialSiteUser","TrialSiteUser","TrialConfigService","TrialConfig_StdConfigMissing","当前标准下未配置问题","Questions are not configured under the current criterion.","\"TrialConfig_StdConfigMissing\":\"当前标准下未配置问题\"","\"TrialConfig_StdConfigMissing\":\"Questions are not configured under the current criterion.\""]
[null,"TrialSiteUser","TrialConfigService","TrialConfig_AddEvalReq","选择了附加评估,必须勾选附加评估类型","Selected additional assessment, must check additional assessment type","\"TrialConfig_AddEvalReq\":\"选择了附加评估,必须勾选附加评估类型\"","\"TrialConfig_AddEvalReq\":\"Selected additional assessment, must check additional assessment type\""]
["TrialSiteUser","TrialSiteUser","TrialConfigService","TrialConfig_SignTemplateMissing","该操作需要电子签名确认，但未在系统中找到该场景的签名模板。","This operation requires electronic signature confirmation, but the signature template for this scenario is not found in the system.","\"TrialConfig_SignTemplateMissing\":\"该操作需要电子签名确认，但未在系统中找到该场景的签名模板。\"","\"TrialConfig_SignTemplateMissing\":\"This operation requires electronic signature confirmation, but the signature template for this scenario is not found in the system.\""]
["TrialSiteUser","TrialSiteUser","TrialConfigService","TrialConfig_ProjectEnded","该项目已结束或停止，不允许修改配置。","The trial has ended or stopped. Configuration changes are not allowed.","\"TrialConfig_ProjectEnded\":\"该项目已结束或停止，不允许修改配置。\"","\"TrialConfig_ProjectEnded\":\"The trial has ended or stopped. Configuration changes are not allowed.\""]
["TrialSiteUser","TrialSiteUser","TrialConfigService","TrialConfig_NoImageAuditQuestion","当前未添加影像质控审核问题。请先添加影像质控审核问题，再进行确认。","No image QC question is currently added. Please add the image QC questions first, and then confirm.","\"TrialConfig_NoImageAuditQuestion\":\"当前未添加影像质控审核问题。请先添加影像质控审核问题，再进行确认。\"","\"TrialConfig_NoImageAuditQuestion\":\"No image QC question is currently added. Please add the image QC questions first, and then confirm.\""]
["TrialSiteUser","TrialSiteUser","TrialConfigService","TrialConfig_DuplicateAuditQuestionId","影像质控审核问题显示序号不能重复。","Image QC question display number cannot be repeated.","\"TrialConfig_DuplicateAuditQuestionId\":\"影像质控审核问题显示序号不能重复。\"","\"TrialConfig_DuplicateAuditQuestionId\":\"Image QC question display number cannot be repeated.\""]
["TrialSiteUser","TrialSiteUser","TrialConfigService","TrialConfig_InvalidParentQuestionId","父问题的显示序号要比子问题的显示序号小，请确认。","Make sure that the display sequence number of the parent question is smaller than that of the child.","\"TrialConfig_InvalidParentQuestionId\":\"父问题的显示序号要比子问题的显示序号小，请确认。\"","\"TrialConfig_InvalidParentQuestionId\":\"Make sure that the display sequence number of the parent question is smaller than that of the child.\""]
["TrialSiteUser","TrialSiteUser","TrialConfigService","TrialConfig_AuditQuestionConfirmed","影像质控审核问题已被其他人员确认，不允许再次确认。","The image QC questions have been confirmed by other personnel. Cofirmation again is not allowed. ","\"TrialConfig_AuditQuestionConfirmed\":\"影像质控审核问题已被其他人员确认，不允许再次确认。\"","\"TrialConfig_AuditQuestionConfirmed\":\"The image QC questions have been confirmed by other personnel. Cofirmation again is not allowed. \""]
["TrialSiteUser","TrialSiteUser","TrialConfigService","TrialConfig_ProjectNotInitialized","该项目当前状态不是初始化，不允许进行该操作。","The current trial status is not initialized. This operation is not allowed.","\"TrialConfig_ProjectNotInitialized\":\"该项目当前状态不是初始化，不允许进行该操作。\"","\"TrialConfig_ProjectNotInitialized\":\"The current trial status is not initialized. This operation is not allowed.\""]
["TrialSiteUser","TrialSiteUser","TrialConfigService","TrialConfig_UnconfirmedConfiguration","该项目的项目配置、访视管理尚未完成，无法将项目状态设为”启动”。","This trial’s project configuration, & visit management  have not been finished, and its status cannot be changed to “Ongoing”.","\"TrialConfig_UnconfirmedConfiguration\":\"该项目的项目配置、访视管理尚未完成，无法将项目状态设为”启动”。\"","\"TrialConfig_UnconfirmedConfiguration\":\"This trial’s project configuration, & visit management  have not been finished, and its status cannot be changed to “Ongoing”.\""]
["TrialSiteUser","TrialSiteUser","TrialConfigService","TrialConfig_UnconfirmedUNACKD","该项目的项目配置、访视管理中，有未确认项，无法变更项目状态。","This trial’s project configuration, & visit management  have not been all confirmed, and its status cannot be changed","\"TrialConfig_UnconfirmedUNACKD\":\"该项目的项目配置、访视管理中，有未确认项，无法变更项目状态。\"","\"TrialConfig_UnconfirmedUNACKD\":\"This trial’s project configuration, & visit management  have not been all confirmed, and its status cannot be changed\""]
["TrialSiteUser","TrialSiteUser","TrialConfigService","TrialConfig_ProjectNotStarted","项目没有进入启动状态，不能设置为停止或完成状态","This trial status is not “Ongoing”, and cannot be set to Stoped or Completed.","\"TrialConfig_ProjectNotStarted\":\"项目没有进入启动状态，不能设置为停止或完成状态\"","\"TrialConfig_ProjectNotStarted\":\"This trial status is not “Ongoing”, and cannot be set to Stoped or Completed.\""]
["TrialSiteUser","TrialSiteUser",{"$nulls":4},"//TrialExternalUserService","//TrialExternalUserService"]
["TrialSiteUser","TrialSiteUser","TrialExternalUserService","TrialExternalUser_Inconsistency","该用户在系统中的用户名为：{0} 电话：{1}，与填写信息存在不一致项, 请将界面信息修改为与系统一致，再进行保存","The user's account name in the system is{0}, and there are inconsistent items with the filled information. Now modify the interface information to be consistent with the system and save it.","\"TrialExternalUser_Inconsistency\":\"该用户在系统中的用户名为：{0} 电话：{1}，与填写信息存在不一致项, 请将界面信息修改为与系统一致，再进行保存\"","\"TrialExternalUser_Inconsistency\":\"The user's account name in the system is{0}, and there are inconsistent items with the filled information. Now modify the interface information to be consistent with the system and save it.\""]
["TrialSiteUser","TrialSiteUser","TrialExternalUserService","TrialExternalUser_EmailTypeDuplicate","系统已经存在与列表中填写的邮箱和用户类型相同的账户，请确认。","Please confirm that the system already has an account with the same email address and user type as the one entered in the list.","\"TrialExternalUser_EmailTypeDuplicate\":\"系统已经存在与列表中填写的邮箱和用户类型相同的账户，请确认。\"","\"TrialExternalUser_EmailTypeDuplicate\":\"Please confirm that the system already has an account with the same email address and user type as the one entered in the list.\""]
["TrialSiteUser","TrialSiteUser","TrialExternalUserService","TrialExternalUser_TestUserNotAllowed","正式类型 、培训类型的项目 不允许加入测试用户 ","Formal and training trials are not allowed to add test users.","\"TrialExternalUser_TestUserNotAllowed\":\"正式类型 、培训类型的项目 不允许加入测试用户 \"","\"TrialExternalUser_TestUserNotAllowed\":\"Formal and training trials are not allowed to add test users.\""]
["TrialSiteUser","TrialSiteUser","TrialExternalUserService","TrialExternalUser_FormalUserNotAllowed","测试项目  不允许加入正式用户 ","It is a training trial that regular users are not allowed in.","\"TrialExternalUser_FormalUserNotAllowed\":\"测试项目  不允许加入正式用户 \"","\"TrialExternalUser_FormalUserNotAllowed\":\"It is a training trial that regular users are not allowed in.\""]
["TrialSiteUser","TrialSiteUser","TrialExternalUserService","TrialExternalUser_NotEditable","人员信息不支持编辑，请删除后重新添加。","Staff  information cannot be edited. Please delete it and add it again.","\"TrialExternalUser_NotEditable\":\"人员信息不支持编辑，请删除后重新添加。\"","\"TrialExternalUser_NotEditable\":\"Staff  information cannot be edited. Please delete it and add it again.\""]
["TrialSiteUser","TrialSiteUser","TrialExternalUserService","TrialExternalUser_CannotDelete","当前用户已参与到项目，不允许删除","The current user has participated in the trial and cannot be deleted.","\"TrialExternalUser_CannotDelete\":\"当前用户已参与到项目，不允许删除\"","\"TrialExternalUser_CannotDelete\":\"The current user has participated in the trial and cannot be deleted.\""]
["TrialSiteUser","TrialSiteUser","TrialExternalUserService","TrialExternalUser_IRCInvitation"," 您好，展影医疗作为 实验方案号：{0} 项目的IRC供应商，诚邀您参加该项目IRC相关工作，欢迎您提供指导和建议，非常感谢！","Hello, as the IRC supplier of experiment plan No. {0} trial, Extensive Imaging sincerely invites you to participate in the IRC related work of this project. Your guidance and suggestions are welcome.","\"TrialExternalUser_IRCInvitation\":\" 您好，展影医疗作为 实验方案号：{0} 项目的IRC供应商，诚邀您参加该项目IRC相关工作，欢迎您提供指导和建议，非常感谢！\"","\"TrialExternalUser_IRCInvitation\":\"Hello, as the IRC supplier of experiment plan No. {0} trial, Extensive Imaging sincerely invites you to participate in the IRC related work of this project. Your guidance and suggestions are welcome.\""]
["TrialSiteUser","TrialSiteUser","TrialExternalUserService","TrialExternalUser_ViewAndConfirm","查看并确认","Check and confirm","\"TrialExternalUser_ViewAndConfirm\":\"查看并确认\"","\"TrialExternalUser_ViewAndConfirm\":\"Check and confirm\""]
["TrialSiteUser","TrialSiteUser","TrialExternalUserService","TrialExternalUser_InvitationExpired","邀请加入时间已过期，重新被邀请后才可以进行确认操作","The invitation time has expired. You can only confirm it after you are invited again.","\"TrialExternalUser_InvitationExpired\":\"邀请加入时间已过期，重新被邀请后才可以进行确认操作\"","\"TrialExternalUser_InvitationExpired\":\"The invitation time has expired. You can only confirm it after you are invited again.\""]
["TrialSiteUser","TrialSiteUser","TrialExternalUserService","TrialExternalUser_AccountInfo","[来自展影IRC] [{0}] 账户信息","[from Extensive Imaging IRC][{0}] account information","\"TrialExternalUser_AccountInfo\":\"[来自展影IRC] [{0}] 账户信息\"","\"TrialExternalUser_AccountInfo\":\"[from Extensive Imaging IRC][{0}] account information\""]
["TrialSiteUser","TrialSiteUser","TrialExternalUserService","TrialExternalUser_Welcome","您好，欢迎您参加项目  实验方案号：{0}IRC相关工作。该项目采用电子化工作流，系统及您的账号信息如下：","Hello, welcome to participate in the relevant work of trial scheme No. {0}IRC of the project. This trial adopts electronic workflow. The system and your account information are as follows:","\"TrialExternalUser_Welcome\":\"您好，欢迎您参加项目  实验方案号：{0}IRC相关工作。该项目采用电子化工作流，系统及您的账号信息如下：\"","\"TrialExternalUser_Welcome\":\"Hello, welcome to participate in the relevant work of trial scheme No. {0}IRC of the project. This trial adopts electronic workflow. The system and your account information are as follows:\""]
["TrialSiteUser","TrialSiteUser","TrialExternalUserService","TrialExternalUser_ProjectNumber","项目编号: {0}","Trial ID: {0}","\"TrialExternalUser_ProjectNumber\":\"项目编号: {0}\"","\"TrialExternalUser_ProjectNumber\":\"Trial ID: {0}\""]
["TrialSiteUser","TrialSiteUser","TrialExternalUserService","TrialExternalUser_ExperimentPlanNumber","试验方案号: {0}","Protocol ID: {0}","\"TrialExternalUser_ExperimentPlanNumber\":\"试验方案号: {0}\"","\"TrialExternalUser_ExperimentPlanNumber\":\"Protocol ID: {0}\""]
["TrialSiteUser","TrialSiteUser","TrialExternalUserService","TrialExternalUser_ExperimentName","试验名称: {0}","Study Name: {0}","\"TrialExternalUser_ExperimentName\":\"试验名称: {0}\"","\"TrialExternalUser_ExperimentName\":\"Study Name: {0}\""]
["TrialSiteUser","TrialSiteUser","TrialExternalUserService","TrialExternalUser_Username","用户名: {0}","User name: {0}","\"TrialExternalUser_Username\":\"用户名: {0}\"","\"TrialExternalUser_Username\":\"User name: {0}\""]
["TrialSiteUser","TrialSiteUser","TrialExternalUserService","TrialExternalUser_Password","密码: ({0})(请在登录后进行修改) : ***(您已有账号, 若忘记密码, 请通过邮箱找回)","Password: {0}（Please modify it after login）: ***（You already have your account. If you forget your password, please find it by email）","\"TrialExternalUser_Password\":\"密码: ({0})(请在登录后进行修改) : ***(您已有账号, 若忘记密码, 请通过邮箱找回)\"","\"TrialExternalUser_Password\":\"Password: {0}（Please modify it after login）: ***（You already have your account. If you forget your password, please find it by email）\""]
["TrialSiteUser","TrialSiteUser","TrialExternalUserService","TrialExternalUser_Role","角色: {0}","User role: {0}","\"TrialExternalUser_Role\":\"角色: {0}\"","\"TrialExternalUser_Role\":\"User role: {0}\""]
["TrialSiteUser","TrialSiteUser","TrialExternalUserService","TrialExternalUser_LoginUrl","系统登录地址: {0} ","System login address: {0} ","\"TrialExternalUser_LoginUrl\":\"系统登录地址: {0} \"","\"TrialExternalUser_LoginUrl\":\"System login address: {0} \""]
["TrialSiteUser","TrialSiteUser","TrialExternalUserService","TrialExternalUser_ReinvitationRequired","邀请加入时间已过期，重新被邀请后才可以进行确认操作","The invitation time has expired. You can only confirm it after you are invited again.",{"$f":"IF(ISBLANK(D35),\"//\"&C36,\"\"\"\"&D35&\"\"\":\"\"\"&E35&\"\"\"\")","v":"\"TrialExternalUser_ReinvitationRequired\":\"邀请加入时间已过期，重新被邀请后才可以进行确认操作\""},{"$f":"IF(ISBLANK(D35),\"//\"&C36,\"\"\"\"&D35&\"\"\":\"\"\"&F35&\"\"\"\")","v":"\"TrialExternalUser_ReinvitationRequired\":\"The invitation time has expired. You can only confirm it after you are invited again.\""}]
["TrialSiteUser","TrialSiteUser","TrialExternalUserService","TrialExternalUser_UserIdStorageProblem","调研表系统用户Id 存储有问题","There is a problem with the system user Id storage of the survey table. ","\"TrialExternalUser_UserIdStorageProblem\":\"调研表系统用户Id 存储有问题\"","\"TrialExternalUser_UserIdStorageProblem\":\"There is a problem with the system user Id storage of the survey table. \""]
["TrialSiteUser","TrialSiteUser","TrialExternalUserService","TrialExternalUser_IRCAccountInfo","[来自展影IRC] [{0}] 账户信息","[from Extensive Imaging IRC][{0}] account information","\"TrialExternalUser_IRCAccountInfo\":\"[来自展影IRC] [{0}] 账户信息\"","\"TrialExternalUser_IRCAccountInfo\":\"[from Extensive Imaging IRC][{0}] account information\""]
["TrialSiteUser","TrialSiteUser",{"$nulls":4},"//TrialMaintenanceService","//TrialMaintenanceService"]
["TrialSiteUser","TrialSiteUser","TrialMaintenanceService","TrialMaint_PersonnelJoined","人员已加入现场维护","Participant has participated in site maintenance","\"TrialMaint_PersonnelJoined\":\"人员已加入现场维护\"","\"TrialMaint_PersonnelJoined\":\"Participant has participated in site maintenance\""]
["TrialSiteUser","TrialSiteUser",{"$nulls":4},"//TrialService","//TrialService"]
["TrialSiteUser","TrialSiteUser","TrialService","Trial_PMApmPermission","只有PM/APM拥有操作权限!","Only PM/APM has the operation permission!","\"Trial_PMApmPermission\":\"只有PM/APM拥有操作权限!\"","\"Trial_PMApmPermission\":\"Only PM/APM has the operation permission!\""]
["TrialSiteUser","TrialSiteUser","TrialService","Trial_TestUserCreateOnlyNonFormal","测试用户 只能创建非正式项目","Test users can only create informal projects","\"Trial_TestUserCreateOnlyNonFormal\":\"测试用户 只能创建非正式项目\"","\"Trial_TestUserCreateOnlyNonFormal\":\"Test users can only create informal projects\""]
["TrialSiteUser","TrialSiteUser","TrialService","Trial_DuplicateProjectNumber","已经存在相同的项目编号。","The same project ID already exists.","\"Trial_DuplicateProjectNumber\":\"已经存在相同的项目编号。\"","\"Trial_DuplicateProjectNumber\":\"The same project ID already exists.\""]
["TrialSiteUser","TrialSiteUser","TrialService","Trial_InvalidProjectStatus","项目状态只有处于：初始化或者进行中时，才允许操作。","Operations are allowed only when the project state is: initializing or ongoing.","\"Trial_InvalidProjectStatus\":\"项目状态只有处于：初始化或者进行中时，才允许操作。\"","\"Trial_InvalidProjectStatus\":\"Operations are allowed only when the project state is: initializing or ongoing.\""]
["TrialSiteUser","TrialSiteUser","TrialService","Trial_CannotDeleteProject","当前运行环境下，不允许删除项目数据。","Deleting project data is not allowed in the current running environment.","\"Trial_CannotDeleteProject\":\"当前运行环境下，不允许删除项目数据。\"","\"Trial_CannotDeleteProject\":\"Deleting project data is not allowed in the current running environment.\""]
["TrialSiteUser","TrialSiteUser",{"$nulls":4},"//TrialSiteService","//TrialSiteService"]
["TrialSiteUser","TrialSiteUser","TrialSiteService","TrialSite_ParticipantJoined","已有受试者加入中心，无法禁用","The subjects has been added to  this site, and couldn't be disable.","\"TrialSite_ParticipantJoined\":\"已有受试者加入中心，无法禁用\"","\"TrialSite_ParticipantJoined\":\"The subjects has been added to  this site, and couldn't be disable.\""]
["TrialSiteUser","TrialSiteUser","TrialSiteService","TrialSite_CodeDuplicate","代码不能重复","Code is not allowed to be repeated","\"TrialSite_CodeDuplicate\":\"代码不能重复\"","\"TrialSite_CodeDuplicate\":\"Code is not allowed to be repeated\""]
["TrialSiteUser","TrialSiteUser","TrialSiteService","TrialSite_CannotDeleteAssociatedCRC","中心已经和CRC关联，不能删除","The site has been associated with CRC, and couldn't be deleted.","\"TrialSite_CannotDeleteAssociatedCRC\":\"中心已经和CRC关联，不能删除\"","\"TrialSite_CannotDeleteAssociatedCRC\":\"The site has been associated with CRC, and couldn't be deleted.\""]
[null,"TrialSiteUser","TrialSiteService","TrialSite_CannotDeleteAssociatedSubject","受试者已经添加,不能删除","The subjects has been added, and couldn't be deleted.","\"TrialSite_CannotDeleteAssociatedSubject\":\"受试者已经添加,不能删除\"","\"TrialSite_CannotDeleteAssociatedSubject\":\"The subjects has been added, and couldn't be deleted.\""]
["TrialSiteUser","TrialSiteUser","TrialSiteService","TrialSite_CannotDeleteUploadedData","中心已经上传调研，无法删除","The site has been uploaded survey, and couldn't be deleted.","\"TrialSite_CannotDeleteUploadedData\":\"中心已经上传调研，无法删除\"","\"TrialSite_CannotDeleteUploadedData\":\"The site has been uploaded survey, and couldn't be deleted.\""]

{"sheet":"Visit","index":19,"n_rows":29,"n_cols":8,"rows_kept":29}
["外层文件夹","文件夹","文件","字段名","中文","英文"]
["Visit","Visit",{"$nulls":4},{"$f":"IF(ISBLANK(D2),\"//\"&C3,\"\"\"\"&D2&\"\"\":\"\"\"&E2&\"\"\"\")","v":"//SubjectService"},{"$f":"IF(ISBLANK(D2),\"//\"&C3,\"\"\"\"&D2&\"\"\":\"\"\"&F2&\"\"\"\")","v":"//SubjectService"}]
["Visit","Visit","SubjectService","Subject_NoConfirmedPlan","项目访视计划没有确认。请联系项目经理确认项目访视计划后，再添加受试者。","The visit plan of the trial is not confirmed. Please contact PM to confirm the visit plan before adding subjects.",{"$f":"IF(ISBLANK(D3),\"//\"&C4,\"\"\"\"&D3&\"\"\":\"\"\"&E3&\"\"\"\")","v":"\"Subject_NoConfirmedPlan\":\"项目访视计划没有确认。请联系项目经理确认项目访视计划后，再添加受试者。\""},{"$f":"IF(ISBLANK(D3),\"//\"&C4,\"\"\"\"&D3&\"\"\":\"\"\"&F3&\"\"\"\")","v":"\"Subject_NoConfirmedPlan\":\"The visit plan of the trial is not confirmed. Please contact PM to confirm the visit plan before adding subjects.\""}]
["Visit","Visit","SubjectService","Subject_DuplicateSubjectNum","已存在具有相关受试者编号的受试者。","Subjects with the relevant subject ID already exists.","\"Subject_DuplicateSubjectNum\":\"已存在具有相关受试者编号的受试者。\"","\"Subject_DuplicateSubjectNum\":\"Subjects with the relevant subject ID already exists.\""]
["Visit","Visit","SubjectService","Subject_UploadedVisitNoDelete","该受试者已经有访视已经上传影像，不允许删除。","The subject has visit that has uploaded the image. Deletion is not allowed.","\"Subject_UploadedVisitNoDelete\":\"该受试者已经有访视已经上传影像，不允许删除。\"","\"Subject_UploadedVisitNoDelete\":\"The subject has visit that has uploaded the image. Deletion is not allowed.\""]
["Visit","Visit",{"$nulls":4},"//SubjectVisitService","//SubjectVisitService"]
["Visit","Visit","SubjectVisitService","Visit_DuplicateVisitNo","该受试者的访视计划中已经包含一个具有相同访视号的访视。","The subject's visit schedule already includes a visit with the same visit ID.","\"Visit_DuplicateVisitNo\":\"该受试者的访视计划中已经包含一个具有相同访视号的访视。\"","\"Visit_DuplicateVisitNo\":\"The subject's visit schedule already includes a visit with the same visit ID.\""]
["Visit","Visit","SubjectVisitService","Visit_LastVisitNoChange","该受试者已经有访视设置为末次访视，不允许将当前访视设置为末次访视。","The subject has already had a visit set as the last, and the current visit cannot be set as the last visit.","\"Visit_LastVisitNoChange\":\"该受试者已经有访视设置为末次访视，不允许将当前访视设置为末次访视。\"","\"Visit_LastVisitNoChange\":\"The subject has already had a visit set as the last, and the current visit cannot be set as the last visit.\""]
["Visit","Visit","SubjectVisitService","Visit_DuplicateVisitName","该受试者的访视计划中已经包含一个具有相同访视名称的访视。","The subject's visit schedule already includes a visit with the same visit name.","\"Visit_DuplicateVisitName\":\"该受试者的访视计划中已经包含一个具有相同访视名称的访视。\"","\"Visit_DuplicateVisitName\":\"The subject's visit schedule already includes a visit with the same visit name.\""]
["Visit","Visit","SubjectVisitService","Visit_NoExtraVisitAfterLast","设置末次评估后，不允许添加计划外访视。","Unplanned visits cannot be added after the last assessment is set.","\"Visit_NoExtraVisitAfterLast\":\"设置末次评估后，不允许添加计划外访视。\"","\"Visit_NoExtraVisitAfterLast\":\"Unplanned visits cannot be added after the last assessment is set.\""]
["Visit","Visit","SubjectVisitService","Visit_FinishedTasksNoAdd","该受试者后续访视已有任务完成阅片(有序阅片标准)，不允许在此添加，如果确实需要，请回退","The subject has reads completed in follow-up visit ( chronological read ) , which is not allowed to be added here. If necessary, please return.","\"Visit_FinishedTasksNoAdd\":\"该受试者后续访视已有任务完成阅片(有序阅片标准)，不允许在此添加，如果确实需要，请回退\"","\"Visit_FinishedTasksNoAdd\":\"The subject has reads completed in follow-up visit ( chronological read ) , which is not allowed to be added here. If necessary, please return.\""]
["Visit","Visit","SubjectVisitService","Visit_NoPDStatusChangeAfterSubmission","当前访视影像提交后，不允许修改PD确认状态。","The PD Confirmation status cannot be modified after the current visit image is submitted.","\"Visit_NoPDStatusChangeAfterSubmission\":\"当前访视影像提交后，不允许修改PD确认状态。\"","\"Visit_NoPDStatusChangeAfterSubmission\":\"The PD Confirmation status cannot be modified after the current visit image is submitted.\""]
["Visit","Visit","SubjectVisitService","Visit_UploadedNoLost","当前访视已经有影像上传，不允许设置为失访。","The current visit has already uploaded images and cannot be set as visit lost to follow-up.","\"Visit_UploadedNoLost\":\"当前访视已经有影像上传，不允许设置为失访。\"","\"Visit_UploadedNoLost\":\"The current visit has already uploaded images and cannot be set as visit lost to follow-up.\""]
["Visit","Visit","SubjectVisitService","Visit_UploadedNoDelete","当前访视已经有影像上传，不允许删除。","The current visit has already uploaded images and deletion is not allowed.","\"Visit_UploadedNoDelete\":\"当前访视已经有影像上传，不允许删除。\"","\"Visit_UploadedNoDelete\":\"The current visit has already uploaded images and deletion is not allowed.\""]
["Visit","Visit","SubjectVisitService","Visit_PlanVisitNoDelete","计划内的访视不允许删除。","Planned visits are not allowed to be deleted.","\"Visit_PlanVisitNoDelete\":\"计划内的访视不允许删除。\"","\"Visit_PlanVisitNoDelete\":\"Planned visits are not allowed to be deleted.\""]
["Visit","Visit","SubjectVisitService","Visit_PreviousVisitNoDelete","当前访视已经被设置为另一访视的上一访视，不允许删除。","The current visit has been set to the previous visit of another visit and cannot be deleted.","\"Visit_PreviousVisitNoDelete\":\"当前访视已经被设置为另一访视的上一访视，不允许删除。\"","\"Visit_PreviousVisitNoDelete\":\"The current visit has been set to the previous visit of another visit and cannot be deleted.\""]
["Visit","Visit",{"$nulls":4},"//VisitPlanService","//VisitPlanService"]
["Visit","Visit","VisitPlanService","VisitPlan_OnlyInitOrOngoing","只有当项目状态为：初始化或进行中时，可以操作。","Can be operated only when the trial state is: Initialized or ongoing.","\"VisitPlan_OnlyInitOrOngoing\":\"只有当项目状态为：初始化或进行中时，可以操作。\"","\"VisitPlan_OnlyInitOrOngoing\":\"Can be operated only when the trial state is: Initialized or ongoing.\""]
["Visit","Visit","VisitPlanService","VisitPlan_LargerVisitNumLargerInterval","访视计划中，访视号大的访视，其访视间隔也应该比访视号小的访视大。","In the visit plan, the interval between visits with a large number should also be larger than that of a visit with a smaller number.","\"VisitPlan_LargerVisitNumLargerInterval\":\"访视计划中，访视号大的访视，其访视间隔也应该比访视号小的访视大。\"","\"VisitPlan_LargerVisitNumLargerInterval\":\"In the visit plan, the interval between visits with a large number should also be larger than that of a visit with a smaller number.\""]
["Visit","Visit","VisitPlanService","VisitPlan_LargerPlanNumLargerInterval","访视计划中，访视号大的计划访视，其访视间隔也应该比访视号小的计划访视大。","In the visit plan, the planned visit with a large number should also have a larger interval than the planned visit with a smaller event number.","\"VisitPlan_LargerPlanNumLargerInterval\":\"访视计划中，访视号大的计划访视，其访视间隔也应该比访视号小的计划访视大。\"","\"VisitPlan_LargerPlanNumLargerInterval\":\"In the visit plan, the planned visit with a large number should also have a larger interval than the planned visit with a smaller event number.\""]
["Visit","Visit","VisitPlanService","VisitPlan_ExistNameOrNumTemplate","访视计划中已经存在具有项目访视名称或者访视号的计划访视模板。","A plan visit template with visit name or visit ID of trial already exists in the visit plan.","\"VisitPlan_ExistNameOrNumTemplate\":\"访视计划中已经存在具有项目访视名称或者访视号的计划访视模板。\"","\"VisitPlan_ExistNameOrNumTemplate\":\"A plan visit template with visit name or visit ID of trial already exists in the visit plan.\""]
["Visit","Visit","VisitPlanService","VisitPlan_ExistBaseline","访视计划中已经存在基线。","A baseline already exists in the visit plan.","\"VisitPlan_ExistBaseline\":\"访视计划中已经存在基线。\"","\"VisitPlan_ExistBaseline\":\"A baseline already exists in the visit plan.\""]
["Visit","Visit","VisitPlanService","VisitPlan_ExistBaselineImgNoModify","有受试者的基线已经上传了影像数据,不允许修改基线访视。","The subjects’ baseline image data has been uploaded, so modification of baseline visits is not allowed.","\"VisitPlan_ExistBaselineImgNoModify\":\"有受试者的基线已经上传了影像数据,不允许修改基线访视。\"","\"VisitPlan_ExistBaselineImgNoModify\":\"The subjects’ baseline image data has been uploaded, so modification of baseline visits is not allowed.\""]
["Visit","Visit","VisitPlanService","VisitPlan_OnlyInitOrOngoingModifyConfirm","仅仅在项目初始化或者进行中时，才允许修改确认","Modification confirmation is allowed only when the trial is initialized or ongoing.","\"VisitPlan_OnlyInitOrOngoingModifyConfirm\":\"仅仅在项目初始化或者进行中时，才允许修改确认\"","\"VisitPlan_OnlyInitOrOngoingModifyConfirm\":\"Modification confirmation is allowed only when the trial is initialized or ongoing.\""]
["Visit","Visit","VisitPlanService","VisitPlan_NoBaselineNotConfirm","没有基线，不允许确认","No baseline, no confirmation allowed.","\"VisitPlan_NoBaselineNotConfirm\":\"没有基线，不允许确认\"","\"VisitPlan_NoBaselineNotConfirm\":\"No baseline, no confirmation allowed.\""]
["Visit","Visit","VisitPlanService","VisitPlan_ConfigNotConfirmNotConfirm","项目配置未确认，不允许确认访视计划","If the trial configuration is not confirmed, the visit plan cannot be confirmed.","\"VisitPlan_ConfigNotConfirmNotConfirm\":\"项目配置未确认，不允许确认访视计划\"","\"VisitPlan_ConfigNotConfirmNotConfirm\":\"If the trial configuration is not confirmed, the visit plan cannot be confirmed.\""]
["Visit","Visit","VisitPlanService","VisitPlan_BaselineNotMinDayNotConfirm","基线VisitDay 不是最小的， 不允许确认","Baseline's VisitDay is not minimal. Confirmation is not allowed.","\"VisitPlan_BaselineNotMinDayNotConfirm\":\"基线VisitDay 不是最小的， 不允许确认\"","\"VisitPlan_BaselineNotMinDayNotConfirm\":\"Baseline's VisitDay is not minimal. Confirmation is not allowed.\""]
["Visit","Visit","VisitPlanService","VisitPlan_CheckExport","检查导出_{0}.xlsx","Study export _{0}.xlsx","\"VisitPlan_CheckExport\":\"检查导出_{0}.xlsx\"","\"VisitPlan_CheckExport\":\"Study export _{0}.xlsx\""]
["Visit","Visit","VisitPlanService","VisitPlan_Assigned","访问计划已分配给受试者并已执行","The visit plan has been assigned to the subjects and executed.","\"VisitPlan_Assigned\":\"访问计划已分配给受试者并已执行\"","\"VisitPlan_Assigned\":\"The visit plan has been assigned to the subjects and executed.\""]

{"sheet":"WorkLoad","index":20,"n_rows":9,"n_cols":8,"rows_kept":9}
["外层文件夹","文件夹","文件","字段名","中文","英文"]
[{"$nulls":6},{"$f":"IF(ISBLANK(D2),\"//\"&C3,\"\"\"\"&D2&\"\"\":\"\"\"&E2&\"\"\"\")","v":"//DoctorWorkloadService"},{"$f":"IF(ISBLANK(D2),\"//\"&C3,\"\"\"\"&D2&\"\"\":\"\"\"&F2&\"\"\"\")","v":"//DoctorWorkloadService"}]
[null,null,"DoctorWorkloadService","DoctorWorkload_AssignType","已分配任务，不允许减少阅片类型","A task has been assigned and does not allow you to reduce the reading type.",{"$f":"IF(ISBLANK(D3),\"//\"&C4,\"\"\"\"&D3&\"\"\":\"\"\"&E3&\"\"\"\")","v":"\"DoctorWorkload_AssignType\":\"已分配任务，不允许减少阅片类型\""},{"$f":"IF(ISBLANK(D3),\"//\"&C4,\"\"\"\"&D3&\"\"\":\"\"\"&F3&\"\"\"\")","v":"\"DoctorWorkload_AssignType\":\"A task has been assigned and does not allow you to reduce the reading type.\""}]
[null,null,"DoctorWorkloadService","DoctorWorkload_Unique","此类数据唯一","This type of data can only have one","\"DoctorWorkload_Unique\":\"此类数据唯一\"","\"DoctorWorkload_Unique\":\"This type of data can only have one\""]
[null,null,"DoctorWorkloadService","DoctorWorkload_FeeSettled","费用已结算，工作量无法修改","Expenses have been settled and workload cannot be modified.","\"DoctorWorkload_FeeSettled\":\"费用已结算，工作量无法修改\"","\"DoctorWorkload_FeeSettled\":\"Expenses have been settled and workload cannot be modified.\""]
[{"$nulls":6},"//EnrollService","//EnrollService"]
[null,null,"EnrollService","Enroll_NotFound","无法找到项目{0}","Cannot find trial {0}","\"Enroll_NotFound\":\"无法找到项目{0}\"","\"Enroll_NotFound\":\"Cannot find trial {0}\""]
[null,null,"EnrollService","Enroll_EmailFormat","{0}邮箱格式存在问题","The {0} mailbox format is faulty.","\"Enroll_EmailFormat\":\"{0}邮箱格式存在问题\"","\"Enroll_EmailFormat\":\"The {0} mailbox format is faulty.\""]
[null,null,"EnrollService","Enroll_CannotRollback","已有分配的审核人员不能回退","Reviewers with workload cannot go back","\"Enroll_CannotRollback\":\"已有分配的审核人员不能回退\"","\"Enroll_CannotRollback\":\"Reviewers with workload cannot go back\""]

{"sheet":"Triggers","index":21,"n_rows":9,"n_cols":8,"rows_kept":9}
["外层文件夹","文件夹","文件","字段名","中文","英文"]
[{"$nulls":6},{"$f":"IF(ISBLANK(D2),\"//\"&C3,\"\"\"\"&D2&\"\"\":\"\"\"&E2&\"\"\"\")","v":"//AddlTrialUserTrigger"},{"$f":"IF(ISBLANK(D2),\"//\"&C3,\"\"\"\"&D2&\"\"\":\"\"\"&F2&\"\"\"\")","v":"//AddlTrialUserTrigger"}]
[null,null,"AddlTrialUserTrigger","AddlTrialUser_NoTestUser","正式类型 、培训类型的项目 不允许加入测试用户","Formal and training trials are not allowed to be added test users.",{"$f":"IF(ISBLANK(D3),\"//\"&C4,\"\"\"\"&D3&\"\"\":\"\"\"&E3&\"\"\"\")","v":"\"AddlTrialUser_NoTestUser\":\"正式类型 、培训类型的项目 不允许加入测试用户\""},{"$f":"IF(ISBLANK(D3),\"//\"&C4,\"\"\"\"&D3&\"\"\":\"\"\"&F3&\"\"\"\")","v":"\"AddlTrialUser_NoTestUser\":\"Formal and training trials are not allowed to be added test users.\""}]
[null,null,"AddlTrialUserTrigger","AddlTrialUser_NoFormalUser","测试项目不允许加入正式用户","It is a training trial that regular users are not allowed in.","\"AddlTrialUser_NoFormalUser\":\"测试项目不允许加入正式用户\"","\"AddlTrialUser_NoFormalUser\":\"It is a training trial that regular users are not allowed in.\""]
[{"$nulls":6},"//SubjectStateTrigger","//SubjectStateTrigger"]
[null,null,"SubjectStateTrigger","SubjectState_CannotSetCurrentAsLastVisit","该受试者已经有访视被设置为末次访视，不允许将当前访视设置为末次访视。","The subject has already had a visit set as the last, and the current visit cannot be set as the last.","\"SubjectState_CannotSetCurrentAsLastVisit\":\"该受试者已经有访视被设置为末次访视，不允许将当前访视设置为末次访视。\"","\"SubjectState_CannotSetCurrentAsLastVisit\":\"The subject has already had a visit set as the last, and the current visit cannot be set as the last.\""]
[null,null,"SubjectStateTrigger","SubjectState_CannotSetAsLastVisitWithImage","该受试者当前访视后有访视的影像已上传，当前访视不允许设置为末次访视。","The image of the subject's visit after the current visit has been uploaded, and the current visit is not allowed to be set as the last visit.","\"SubjectState_CannotSetAsLastVisitWithImage\":\"该受试者当前访视后有访视的影像已上传，当前访视不允许设置为末次访视。\"","\"SubjectState_CannotSetAsLastVisitWithImage\":\"The image of the subject's visit after the current visit has been uploaded, and the current visit is not allowed to be set as the last visit.\""]
[{"$nulls":6},"//SubjectVisitFinalVisitTrigger","//SubjectVisitFinalVisitTrigger"]
[null,null,"SubjectVisitFinalVisitTrigger","SubjectVisit_CannotSetAsLastVisit","该受试者已有后续访视已上传影像或已提交，当前访视不允许设置为末次访视。","The subject's follow-up visits has uploaded images or submitted , and the current visit is not allowed to be set as the last visit.","\"SubjectVisit_CannotSetAsLastVisit\":\"该受试者已有后续访视已上传影像或已提交，当前访视不允许设置为末次访视。\"","\"SubjectVisit_CannotSetAsLastVisit\":\"The subject's follow-up visits has uploaded images or submitted , and the current visit is not allowed to be set as the last visit.\""]

{"sheet":"BusinessFilter","index":22,"n_rows":31,"n_cols":8,"rows_kept":31}
["外层文件夹","文件夹","文件","字段名","中文","英文"]
["BusinessFilter",{"$nulls":5},{"$f":"IF(ISBLANK(D2),\"//\"&C3,\"\"\"\"&D2&\"\"\":\"\"\"&E2&\"\"\"\")","v":"//LimitUserRequestAuthorization"},{"$f":"IF(ISBLANK(D2),\"//\"&C3,\"\"\"\"&D2&\"\"\":\"\"\"&F2&\"\"\"\")","v":"//LimitUserRequestAuthorization"}]
["BusinessFilter",null,"LimitUserRequestAuthorization","LimitUser_AuthTokenMissing","当前请求未从Header/Url取到用户Token,请联系开发者","User token was not retrieved from Header/URL, please contact developer",{"$f":"IF(ISBLANK(D3),\"//\"&C4,\"\"\"\"&D3&\"\"\":\"\"\"&E3&\"\"\"\")","v":"\"LimitUser_AuthTokenMissing\":\"当前请求未从Header/Url取到用户Token,请联系开发者\""},{"$f":"IF(ISBLANK(D3),\"//\"&C4,\"\"\"\"&D3&\"\"\":\"\"\"&F3&\"\"\"\")","v":"\"LimitUser_AuthTokenMissing\":\"User token was not retrieved from Header/URL, please contact developer\""}]
["BusinessFilter",null,"LimitUserRequestAuthorization","LimitUser_AccountLoggedInElsewhere","您的账户在其他地方已登陆，您被迫下线。","User token was not retrieved from Header/URL, please contact developer","\"LimitUser_AccountLoggedInElsewhere\":\"您的账户在其他地方已登陆，您被迫下线。\"","\"LimitUser_AccountLoggedInElsewhere\":\"User token was not retrieved from Header/URL, please contact developer\""]
["BusinessFilter",{"$nulls":5},"//ModelActionFilter ","//ModelActionFilter "]
["BusinessFilter",null,"ModelActionFilter ","ModelAction_InvalidAPIParameter","提供给接口的参数无效。","Invalid parameters provided for the API.","\"ModelAction_InvalidAPIParameter\":\"提供给接口的参数无效。\"","\"ModelAction_InvalidAPIParameter\":\"Invalid parameters provided for the API.\""]
["BusinessFilter",{"$nulls":5},"//ProjectExceptionFilter","//ProjectExceptionFilter"]
["BusinessFilter",null,"ProjectExceptionFilter","ProjectException_ConcurrentUpdateNotAllowed","并发更新，当前不允许该操作","Concurrent update, operation not allowed at this time.","\"ProjectException_ConcurrentUpdateNotAllowed\":\"并发更新，当前不允许该操作\"","\"ProjectException_ConcurrentUpdateNotAllowed\":\"Concurrent update, operation not allowed at this time.\""]
["BusinessFilter",null,"ProjectExceptionFilter","Project_ExceptionContactDeveloper","程序异常，请联系开发人员。 ","Program exception, please contact developer.","\"Project_ExceptionContactDeveloper\":\"程序异常，请联系开发人员。 \"","\"Project_ExceptionContactDeveloper\":\"Program exception, please contact developer.\""]
["BusinessFilter",{"$nulls":5},"//TrialResourceFilter","//TrialResourceFilter"]
["BusinessFilter",null,"TrialResourceFilter","TrialResource_NoAccessPermission","对不起，您的账户没有操作权限。","Sorry, your account does not have operation permissions.","\"TrialResource_NoAccessPermission\":\"对不起，您的账户没有操作权限。\"","\"TrialResource_NoAccessPermission\":\"Sorry, your account does not have operation permissions.\""]
["BusinessFilter",null,"TrialResourceFilter","TrialResource_ReferTrialIdFailed","正则取请求Refer 中trialId 失败，请联系开发人员核查","Regular expression failed to fetch trialId from request Refer, please contact developer to check","\"TrialResource_ReferTrialIdFailed\":\"正则取请求Refer 中trialId 失败，请联系开发人员核查\"","\"TrialResource_ReferTrialIdFailed\":\"Regular expression failed to fetch trialId from request Refer, please contact developer to check\""]
["BusinessFilter",null,"TrialResourceFilter","TrialResource_InterceptedProjectStatusRule","本次请求被配置规则拦截：项目状态处于进行中时,才允许操作,若此处逻辑有误，请联系开发人员修改","This request was blocked by configured rules: only operations allowed when project status is in progress, please contact developer if this logic is incorrect and needs to be modified","\"TrialResource_InterceptedProjectStatusRule\":\"本次请求被配置规则拦截：项目状态处于进行中时,才允许操作,若此处逻辑有误，请联系开发人员修改\"","\"TrialResource_InterceptedProjectStatusRule\":\"This request was blocked by configured rules: only operations allowed when project status is in progress, please contact developer if this logic is incorrect and needs to be modified\""]
["BusinessFilter",null,"TrialResourceFilter","TrialResource_MissingProjectNumber","该接口参数中，没有传递项目编号，请核对。","Project number not passed in the API parameters, please verify.","\"TrialResource_MissingProjectNumber\":\"该接口参数中，没有传递项目编号，请核对。\"","\"TrialResource_MissingProjectNumber\":\"Project number not passed in the API parameters, please verify.\""]
["BusinessFilter",{"$nulls":5},"//UnifiedApiResultFilter","//UnifiedApiResultFilter"]
["BusinessFilter",null,"UnifiedApiResultFilter","UnifiedAPI_ProgramError","程序错误，请联系开发人员。","Program error, please contact developer.","\"UnifiedAPI_ProgramError\":\"程序错误，请联系开发人员。\"","\"UnifiedAPI_ProgramError\":\"Program error, please contact developer.\""]
["BusinessFilter"]
["BusinessFilter"]
["BusinessFilter"]
["BusinessFilter"]
["BusinessFilter"]
["BusinessFilter"]
["BusinessFilter"]
["BusinessFilter"]
["BusinessFilter"]
["BusinessFilter"]
["BusinessFilter"]
["BusinessFilter"]
["BusinessFilter"]
["BusinessFilter"]
["BusinessFilter"]

{"sheet":"Helper","index":23,"n_rows":7,"n_cols":8,"rows_kept":7}
["外层文件夹","文件夹","文件","字段名","中文","英文"]
[{"$nulls":6},{"$f":"IF(ISBLANK(D2),\"//\"&C3,\"\"\"\"&D2&\"\"\":\"\"\"&E2&\"\"\"\")","v":"//FileStoreHelper"},{"$f":"IF(ISBLANK(D2),\"//\"&C3,\"\"\"\"&D2&\"\"\":\"\"\"&F2&\"\"\"\")","v":"//FileStoreHelper"}]
[null,null,"FileStoreHelper","FileStore_TemplateFileNotFound","数据库没有找到对应的数据模板文件,请联系系统运维人员。","Database did not find the corresponding data template file for FileStoreHelper, please contact system maintenance personnel.","\"FileStore_TemplateFileNotFound\":\"数据库没有找到对应的数据模板文件,请联系系统运维人员。\"","\"FileStore_TemplateFileNotFound\":\"Database did not find the corresponding data template file for FileStoreHelper, please contact system maintenance personnel.\""]
[null,null,"FileStoreHelper","FileStore_TemplateFileStoragePathInvalid","文件不存在，请联系系统管理员！","File doesn’t exist. Please contact the system administrator!","\"FileStore_TemplateFileStoragePathInvalid\":\"文件不存在，请联系系统管理员！\"","\"FileStore_TemplateFileStoragePathInvalid\":\"File doesn’t exist. Please contact the system administrator!\""]
[{"$nulls":6},"//SendEmailHelper","//SendEmailHelper"]
[null,null,"SendEmailHelper","SendEmail_SendFail","邮件发送失败，您进行的操作未能成功，请检查邮箱或联系维护人员","Failed to send email in SendEmailHelper. Your operation was unsuccessful, please check your email or contact maintenance personnel.","\"SendEmail_SendFail\":\"邮件发送失败，您进行的操作未能成功，请检查邮箱或联系维护人员\"","\"SendEmail_SendFail\":\"Failed to send email in SendEmailHelper. Your operation was unsuccessful, please check your email or contact maintenance personnel.\""]
[null,null,"SendEmailHelper","SendEmail_NoRecipient","没有收件人","No recipient in SendEmailHelper.","\"SendEmail_NoRecipient\":\"没有收件人\"","\"SendEmail_NoRecipient\":\"No recipient in SendEmailHelper.\""]

{"sheet":"IRaCIS.Core.Domain","index":24,"n_rows":3,"n_cols":8,"rows_kept":3}
["外层文件夹","文件夹","文件","字段名","中文","英文"]
[{"$nulls":6},{"$f":"IF(ISBLANK(D2),\"//\"&C3,\"\"\"\"&D2&\"\"\":\"\"\"&E2&\"\"\"\")","v":"//Trial"},{"$f":"IF(ISBLANK(D2),\"//\"&C3,\"\"\"\"&D2&\"\"\":\"\"\"&F2&\"\"\"\")","v":"//Trial"}]
[null,"Trial","Trial","Trial_number","编号由5位数字组成，前2位为中心编号，后3位为顺序号，请与EDC录入的编号保持一致","Subject ID is composed of 5 digits. The first 2 is the Site ID, and the following 3 is the order number. Please ensure it is identical to the ID from the EDC system. ",{"$f":"IF(ISBLANK(D3),\"//\"&C4,\"\"\"\"&D3&\"\"\":\"\"\"&E3&\"\"\"\")","v":"\"Trial_number\":\"编号由5位数字组成，前2位为中心编号，后3位为顺序号，请与EDC录入的编号保持一致\""},{"$f":"IF(ISBLANK(D3),\"//\"&C4,\"\"\"\"&D3&\"\"\":\"\"\"&F3&\"\"\"\")","v":"\"Trial_number\":\"Subject ID is composed of 5 digits. The first 2 is the Site ID, and the following 3 is the order number. Please ensure it is identical to the ID from the EDC system. \""}]

{"sheet":"IRaCIS.Core.Infrastructure","index":25,"n_rows":5,"n_cols":8,"rows_kept":5}
["外层文件夹","文件夹","文件","字段名","中文","英文"]
[{"$nulls":6},{"$f":"IF(ISBLANK(D2),\"//\"&C3,\"\"\"\"&D2&\"\"\":\"\"\"&E2&\"\"\"\")","v":"//ResponseOutput"},{"$f":"IF(ISBLANK(D2),\"//\"&C3,\"\"\"\"&D2&\"\"\":\"\"\"&F2&\"\"\"\")","v":"//ResponseOutput"}]
["_IRaCIS","_IRaCIS","ResponseOutput","RO_BizObjNotExistsOrParamIncorrect","业务对象{0}在数据库中不存在，或被他人删除，或参数查询不正确导致","The business object{0} does not exist in the database, or was deleted by someone else, or an incorrect parameter query caused",{"$f":"IF(ISBLANK(D3),\"//\"&C4,\"\"\"\"&D3&\"\"\":\"\"\"&E3&\"\"\"\")","v":"\"RO_BizObjNotExistsOrParamIncorrect\":\"业务对象{0}在数据库中不存在，或被他人删除，或参数查询不正确导致\""},{"$f":"IF(ISBLANK(D3),\"//\"&C4,\"\"\"\"&D3&\"\"\":\"\"\"&F3&\"\"\"\")","v":"\"RO_BizObjNotExistsOrParamIncorrect\":\"The business object{0} does not exist in the database, or was deleted by someone else, or an incorrect parameter query caused\""}]
[null,null,"ResponseOutput","RO_ExpectChangeButNoEffect","期望发生更改，但数据库数据没有更改","Expect a change, but the database data has not changed",{"$f":"IF(ISBLANK(D4),\"//\"&C5,\"\"\"\"&D4&\"\"\":\"\"\"&E4&\"\"\"\")","v":"\"RO_ExpectChangeButNoEffect\":\"期望发生更改，但数据库数据没有更改\""},{"$f":"IF(ISBLANK(D4),\"//\"&C5,\"\"\"\"&D4&\"\"\":\"\"\"&F4&\"\"\"\")","v":"\"RO_ExpectChangeButNoEffect\":\"Expect a change, but the database data has not changed\""}]
[null,null,"ResponseOutput","RO_SaveFailed","保存失败","Saved failed",{"$f":"IF(ISBLANK(D5),\"//\"&C6,\"\"\"\"&D5&\"\"\":\"\"\"&E5&\"\"\"\")","v":"\"RO_SaveFailed\":\"保存失败\""},{"$f":"IF(ISBLANK(D5),\"//\"&C6,\"\"\"\"&D5&\"\"\":\"\"\"&F5&\"\"\"\")","v":"\"RO_SaveFailed\":\"Saved failed\""}]

{"sheet":"Sheet1","index":26,"n_rows":0,"n_cols":0,"rows_kept":0}

{"sheet":"Sheet2","index":27,"n_rows":0,"n_cols":0,"rows_kept":0}